Workbook

Sheet 0. CONTENTS & PREFACE
B1: Gambling Commission
B2: Local authority statistics - 01 April 2009 - 31 March 2019
B4: 0 Contents & Preface
B7: Section 1: Statistics
C9: 1 | D9: Permits Issued
C10: 2 | D10: Permits Cumulative
C11: 3 | D11: Notices
C12: 4 | D12: Inspections and Test Purchase visits
C13: 4.1 | D13: Map of LAs showing number of recorded inspections/visits
C14: 5 | D14: Local Authority Compliance Events
C15: 6 | D15: Appendices (Terminology and Methodology)
B18: For further information
B20: Release Date: | D20: 2019-09-26
B21: Next Release: | D21: 2020-09-24
B23: Website: | C23: https://www.gambling commission.gov.uk
B25: Produced by: Data Team
B26: This report is compiled from data submitted by 380 out of 380 Licensing Authorities

Sheet 1. PERMITS ISSUED
B1: Gambling Commission
B2: Local authority statistics - 01 April 2009 - 31 March 2019
A4: 1 Permits Issued
A7: From 2012/13 where a permit is issued for premises providing only category D machines, the data has been detailed under Unlicensed Family Entertainment Centres (UFECs).
A10: Permit Type | B10: 2009/10 | C10: 2010/11 | D10: 2011/12 | E10: 2012/13 | F10: 2013/14 | G10: 2014/15 | H10: 2015/16 | I10: 2016/17 | J10: 2017/18 | K10: 2018/19
A11: Alcohol Licensed Premises - Automatic Entitlement | B11: 10390 | C11: 9012 | D11: 6167 | E11: 4299 | F11: 3284 | G11: 3115 | H11: 2493 | I11: 2322 | J11: 3415 | K11: 2111
A12: Alcohol Licensed Premises - Gaming Machine Permit | B12: 2178 | C12: 1803 | D12: 1023 | E12: 758 | F12: 793 | G12: 661 | H12: 686 | I12: 709 | J12: 594 | K12: 396
A13: Club Machine Permit | B13: 1578 | C13: 2325 | D13: 1132 | E13: 711 | F13: 315 | G13: 191 | H13: 240 | I13: 213 | J13: 204 | K13: 163
A14: Unlicensed FEC | B14: 138 | C14: 38 | D14: 55 | E14: 130 | F14: 111 | G14: 98 | H14: 112 | I14: 128 | J14: 241 | K14: 128
A15: Club Gaming Permit | B15: 179 | C15: 265 | D15: 190 | E15: 100 | F15: 64 | G15: 44 | H15: 66 | I15: 25 | J15: 56 | K15: 40
A16: FEC Gaming Machine Permit | B16: 95 | C16: 80 | D16: 117
A17: Totals | B17: 14558 | C17: 13523 | D17: 8684 | E17: 5998 | F17: 4567 | G17: 4109 | H17: 3597 | I17: 3397 | J17: =SUM(J11:J16) -> 4510 | K17: =SUM(K11:K16) -> 2838
A18: % Difference of Total from previous year | B18: N/A | C18: =SUM(C17-B17)/B17 -> -0.07109493062 | D18: =SUM(D17-C17)/C17 -> -0.3578348 | E18: =SUM(E17-D17)/D17 -> -0.309304468 | F18: =SUM(F17-E17)/E17 -> -0.2385795265 | G18: =SUM(G17-F17)/F17 -> -0.1002846508 | H18: =SUM(H17-G17)/G17 -> -0.1246045266 | I18: =SUM(I17-H17)/H17 -> -0.05560189046 | J18: =SUM(J17-I17)/I17 -> 0.3276420371 | K18: =SUM(K17-J17)/J17 -> -0.3707317073
B20: Permits issued period ending 31 March
A21: Licensing Authority | B21: Year | C21: Alcohol licensed premises | D21: Alcohol Machine Automatic | E21: Club gaming permit | F21: Club machine permit | G21: FEC Gaming | H21: Unlicensed FEC | I21: Totals
A22: Aberdeen City Council | B22: 2009/10 | C22: 8 | D22: 35 | E22: 0 | F22: 3 | G22: 0 | H22: 0 | I22: =SUM(C22:H22) -> 46
A23: Aberdeen City Council | B23: 2010/11 | C23: 8 | D23: 20 | E23: 1 | F23: 13 | G23: 0 | H23: 0 | I23: =SUM(C23:H23) -> 42
A24: Aberdeen City Council | B24: 2011/12 | C24: 5 | D24: 21 | E24: 0 | F24: 0 | G24: 1 | H24: 0 | I24: =SUM(C24:H24) -> 27
A25: Aberdeen City Council | B25: 2012/13 | C25: 0 | D25: 6 | E25: 1 | F25: 2 | G25: N/A | H25: 1 | I25: =SUM(C25:H25) -> 10
A26: Aberdeen City Council | B26: 2013/14 | C26: 3 | D26: 2 | E26: 0 | F26: 1 | G26: N/A | H26: 0 | I26: =SUM(C26:H26) -> 6
A27: Aberdeen City Council | B27: 2014/15 | C27: 1 | D27: 7 | E27: 0 | F27: 0 | G27: N/A | H27: 0 | I27: =SUM(C27:H27) -> 8
A28: Aberdeen City Council | B28: 2015/16 | C28: 2 | D28: 1 | E28: 0 | F28: 0 | G28: N/A | H28: 1 | I28: =SUM(C28:H28) -> 4
A29: Aberdeen City Council | B29: 2016/17 | C29: 0 | D29: 0 | E29: 0 | F29: 0 | G29: N/A | H29: 0 | I29: =SUM(C29:H29) -> 0
A30: Aberdeen City Council | B30: 2017/18 | C30: 3 | D30: 2 | E30: 0 | F30: 0 | G30: N/A | H30: 0 | I30: =SUM(C30:H30) -> 5
A31: Aberdeen City Council | B31: 2018/19 | C31: 1 | D31: 6 | E31: 0 | F31: 0 | G31: N/A | H31: 1 | I31: =SUM(C31:H31) -> 8
A32: Aberdeenshire Council | B32: 2009/10 | C32: 0 | D32: 0 | E32: 0 | F32: 0 | G32: 0 | H32: 0 | I32: =SUM(C32:H32) -> 0
A33: Aberdeenshire Council | B33: 2010/11 | C33: 20 | D33: 38 | E33: 0 | F33: 0 | G33: 0 | H33: 0 | I33: =SUM(C33:H33) -> 58
A34: Aberdeenshire Council | B34: 2011/12 | C34: 0 | D34: 0 | E34: 0 | F34: 0 | G34: 0 | H34: 0 | I34: =SUM(C34:H34) -> 0
A35: Aberdeenshire Council | B35: 2012/13 | C35: 0 | D35: 0 | E35: 0 | F35: 0 | G35: N/A | H35: 0 | I35: =SUM(C35:H35) -> 0
A36: Aberdeenshire Council | B36: 2013/14 | C36: 0 | D36: 0 | E36: 0 | F36: 0 | G36: N/A | H36: 1 | I36: =SUM(C36:H36) -> 1
A37: Aberdeenshire Council | B37: 2014/15 | C37: 1 | D37: 12 | E37: 0 | F37: 0 | G37: N/A | H37: 0 | I37: =SUM(C37:H37) -> 13
A38: Aberdeenshire Council | B38: 2015/16 | C38: 1 | D38: 3 | E38: 0 | F38: 1 | G38: N/A | H38: 0 | I38: =SUM(C38:H38) -> 5
A39: Aberdeenshire Council | B39: 2016/17 | C39: 1 | D39: 3 | E39: 0 | F39: 1 | G39: N/A | H39: 0 | I39: =SUM(C39:H39) -> 5
A40: Aberdeenshire Council | B40: 2017/18 | C40: 0 | D40: 12 | E40: 1 | F40: 1 | G40: N/A | H40: 0 | I40: =SUM(C40:H40) -> 14
A41: Aberdeenshire Council | B41: 2018/19 | C41: 0 | D41: 1 | E41: 0 | F41: 0 | G41: N/A | H41: 1 | I41: =SUM(C41:H41) -> 2
A42: Adur District Council | B42: 2009/10 | C42: 2 | D42: 14 | E42: 0 | F42: 3 | G42: 0 | H42: 0 | I42: =SUM(C42:H42) -> 19
A43: Adur District Council | B43: 2010/11 | C43: 2 | D43: 2 | E43: 0 | F43: 0 | G43: 0 | H43: 0 | I43: =SUM(C43:H43) -> 4
A44: Adur District Council | B44: 2011/12 | C44: 5 | D44: 0 | E44: 0 | F44: 0 | G44: 0 | H44: 0 | I44: =SUM(C44:H44) -> 5
A45: Adur District Council | B45: 2012/13 | C45: 0 | D45: 2 | E45: 0 | F45: 0 | G45: N/A | H45: 0 | I45: =SUM(C45:H45) -> 2
A46: Adur District Council | B46: 2013/14 | C46: 0 | D46: 0 | E46: 0 | F46: 1 | G46: N/A | H46: 0 | I46: =SUM(C46:H46) -> 1
A47: Adur District Council | B47: 2014/15 | C47: 1 | D47: 1 | E47: 0 | F47: 0 | G47: N/A | H47: 0 | I47: =SUM(C47:H47) -> 2
A48: Adur District Council | B48: 2015/16 | C48: 1 | D48: 2 | E48: 0 | F48: 2 | G48: N/A | H48: 0 | I48: =SUM(C48:H48) -> 5
A49: Adur District Council | B49: 2016/17 | C49: 0 | D49: 0 | E49: 0 | F49: 0 | G49: N/A | H49: 0 | I49: =SUM(C49:H49) -> 0
A50: Adur District Council | B50: 2017/18 | C50: 0 | D50: 0 | E50: 0 | F50: 0 | G50: N/A | H50: 0 | I50: =SUM(C50:H50) -> 0
A51: Adur District Council | B51: 2018/19 | C51: 0 | D51: 1 | E51: 0 | F51: 0 | G51: N/A | H51: 0 | I51: =SUM(C51:H51) -> 1
A52: Allerdale Borough Council | B52: 2009/10 | C52: 0 | D52: 10 | E52: 0 | F52: 0 | G52: 0 | H52: 0 | I52: =SUM(C52:H52) -> 10
A53: Allerdale Borough Council | B53: 2010/11 | C53: 0 | D53: 24 | E53: 3 | F53: 2 | G53: 0 | H53: 0 | I53: =SUM(C53:H53) -> 29
A54: Allerdale Borough Council | B54: 2011/12 | C54: 0 | D54: 21 | E54: 1 | F54: 6 | G54: 0 | H54: 0 | I54: =SUM(C54:H54) -> 28
A55: Allerdale Borough Council | B55: 2012/13 | C55: 0 | D55: 7 | E55: 1 | F55: 2 | G55: N/A | H55: 0 | I55: =SUM(C55:H55) -> 10
A56: Allerdale Borough Council | B56: 2013/14 | C56: 0 | D56: 19 | E56: 0 | F56: 0 | G56: N/A | H56: 0 | I56: =SUM(C56:H56) -> 19
A57: Allerdale Borough Council | B57: 2014/15 | C57: 5 | D57: 17 | E57: 0 | F57: 0 | G57: N/A | H57: 1 | I57: =SUM(C57:H57) -> 23
A58: Allerdale Borough Council | B58: 2015/16 | C58: 1 | D58: 8 | E58: 0 | F58: 0 | G58: N/A | H58: 0 | I58: =SUM(C58:H58) -> 9
A59: Allerdale Borough Council | B59: 2016/17 | C59: 0 | D59: 2 | E59: 0 | F59: 0 | G59: N/A | H59: 1 | I59: =SUM(C59:H59) -> 3
A60: Allerdale Borough Council | B60: 2017/18 | C60: 3 | D60: 31 | E60: 0 | F60: 0 | G60: N/A | H60: 0 | I60: =SUM(C60:H60) -> 34
A61: Allerdale Borough Council | B61: 2018/19 | C61: 0 | D61: 5 | E61: 0 | F61: 0 | G61: N/A | H61: 0 | I61: =SUM(C61:H61) -> 5
A62: Amber Valley Borough Council | B62: 2009/10 | C62: 2 | D62: 58 | E62: 1 | F62: 2 | G62: 0 | H62: 0 | I62: =SUM(C62:H62) -> 63
A63: Amber Valley Borough Council | B63: 2010/11 | C63: 3 | D63: 37 | E63: 2 | F63: 3 | G63: 0 | H63: 0 | I63: =SUM(C63:H63) -> 45
A64: Amber Valley Borough Council | B64: 2011/12 | C64: 1 | D64: 26 | E64: 0 | F64: 2 | G64: 0 | H64: 0 | I64: =SUM(C64:H64) -> 29
A65: Amber Valley Borough Council | B65: 2012/13 | C65: 1 | D65: 16 | E65: 0 | F65: 4 | G65: N/A | H65: 0 | I65: =SUM(C65:H65) -> 21
A66: Amber Valley Borough Council | B66: 2013/14 | C66: 1 | D66: 5 | E66: 0 | F66: 0 | G66: N/A | H66: 0 | I66: =SUM(C66:H66) -> 6
A67: Amber Valley Borough Council | B67: 2014/15 | C67: 1 | D67: 12 | E67: 0 | F67: 1 | G67: N/A | H67: 0 | I67: =SUM(C67:H67) -> 14
A68: Amber Valley Borough Council | B68: 2015/16 | C68: 0 | D68: 9 | E68: 0 | F68: 0 | G68: N/A | H68: 0 | I68: =SUM(C68:H68) -> 9
A69: Amber Valley Borough Council | B69: 2016/17 | C69: 2 | D69: 6 | E69: 0 | F69: 0 | G69: N/A | H69: 0 | I69: =SUM(C69:H69) -> 8
A70: Amber Valley Borough Council | B70: 2017/18 | C70: 2 | D70: 16 | E70: 1 | F70: 1 | G70: N/A | H70: 0 | I70: =SUM(C70:H70) -> 20
A71: Amber Valley Borough Council | B71: 2018/19 | C71: 0 | D71: 4 | E71: 0 | F71: 0 | G71: N/A | H71: 0 | I71: =SUM(C71:H71) -> 4
A72: Angus Council | B72: 2009/10 | C72: 0 | D72: 0 | E72: 0 | F72: 0 | G72: 0 | H72: 0 | I72: =SUM(C72:H72) -> 0
A73: Angus Council | B73: 2010/11 | C73: 0 | D73: 36 | E73: 0 | F73: 5 | G73: 0 | H73: 0 | I73: =SUM(C73:H73) -> 41
A74: Angus Council | B74: 2011/12 | C74: 0 | D74: 8 | E74: 3 | F74: 7 | G74: 0 | H74: 0 | I74: =SUM(C74:H74) -> 18
A75: Angus Council | B75: 2012/13 | C75: 1 | D75: 4 | E75: 1 | F75: 0 | G75: N/A | H75: 0 | I75: =SUM(C75:H75) -> 6
A76: Angus Council | B76: 2013/14 | C76: 0 | D76: 1 | E76: 0 | F76: 0 | G76: N/A | H76: 0 | I76: =SUM(C76:H76) -> 1
A77: Angus Council | B77: 2014/15 | C77: 0 | D77: 2 | E77: 0 | F77: 0 | G77: N/A | H77: 0 | I77: =SUM(C77:H77) -> 2
A78: Angus Council | B78: 2015/16 | C78: 0 | D78: 1 | E78: 1 | F78: 0 | G78: N/A | H78: 0 | I78: =SUM(C78:H78) -> 2
A79: Angus Council | B79: 2016/17 | C79: 0 | D79: 0 | E79: 0 | F79: 0 | G79: N/A | H79: 0 | I79: =SUM(C79:H79) -> 0
A80: Angus Council | B80: 2017/18 | C80: 0 | D80: 1 | E80: 0 | F80: 0 | G80: N/A | H80: 0 | I80: =SUM(C80:H80) -> 1
A81: Angus Council | B81: 2018/19 | C81: 0 | D81: 1 | E81: 0 | F81: 0 | G81: N/A | H81: 0 | I81: =SUM(C81:H81) -> 1
A82: Argyll & Bute Council | B82: 2009/10 | C82: 2 | D82: 43 | E82: 0 | F82: 2 | G82: 1 | H82: 0 | I82: =SUM(C82:H82) -> 48
A83: Argyll & Bute Council | B83: 2010/11 | C83: 0 | D83: 20 | E83: 0 | F83: 0 | G83: 0 | H83: 1 | I83: =SUM(C83:H83) -> 21
A84: Argyll & Bute Council | B84: 2011/12 | C84: 0 | D84: 5 | E84: 0 | F84: 0 | G84: 0 | H84: 0 | I84: =SUM(C84:H84) -> 5
A85: Argyll & Bute Council | B85: 2012/13 | C85: 3 | D85: 2 | E85: 0 | F85: 0 | G85: N/A | H85: 0 | I85: =SUM(C85:H85) -> 5
A86: Argyll & Bute Council | B86: 2013/14 | C86: 2 | D86: 5 | E86: 0 | F86: 2 | G86: N/A | H86: 0 | I86: =SUM(C86:H86) -> 9
A87: Argyll & Bute Council | B87: 2014/15 | C87: 0 | D87: 1 | E87: 0 | F87: 0 | G87: N/A | H87: 0 | I87: =SUM(C87:H87) -> 1
A88: Argyll & Bute Council | B88: 2015/16 | C88: 0 | D88: 6 | E88: 0 | F88: 1 | G88: N/A | H88: 1 | I88: =SUM(C88:H88) -> 8
A89: Argyll & Bute Council | B89: 2016/17 | C89: 0 | D89: 1 | E89: 0 | F89: 0 | G89: N/A | H89: 0 | I89: =SUM(C89:H89) -> 1
A90: Argyll & Bute Council | B90: 2017/18 | C90: 1 | D90: 2 | E90: 0 | F90: 0 | G90: N/A | H90: 0 | I90: =SUM(C90:H90) -> 3
A91: Argyll & Bute Council | B91: 2018/19 | C91: 0 | D91: 1 | E91: 0 | F91: 0 | G91: N/A | H91: 0 | I91: =SUM(C91:H91) -> 1
A92: Arun District Council | B92: 2009/10 | C92: 2 | D92: 43 | E92: 0 | F92: 4 | G92: 1 | H92: 0 | I92: =SUM(C92:H92) -> 50
A93: Arun District Council | B93: 2010/11 | C93: 2 | D93: 12 | E93: 0 | F93: 5 | G93: 0 | H93: 1 | I93: =SUM(C93:H93) -> 20
A94: Arun District Council | B94: 2011/12 | C94: 0 | D94: 5 | E94: 0 | F94: 2 | G94: 0 | H94: 0 | I94: =SUM(C94:H94) -> 7
A95: Arun District Council | B95: 2012/13 | C95: 1 | D95: 3 | E95: 0 | F95: 0 | G95: N/A | H95: 0 | I95: =SUM(C95:H95) -> 4
A96: Arun District Council | B96: 2013/14 | C96: 1 | D96: 11 | E96: 0 | F96: 0 | G96: N/A | H96: 0 | I96: =SUM(C96:H96) -> 12
A97: Arun District Council | B97: 2014/15 | C97: 1 | D97: 6 | E97: 0 | F97: 1 | G97: N/A | H97: 0 | I97: =SUM(C97:H97) -> 8
A98: Arun District Council | B98: 2015/16 | C98: 2 | D98: 6 | E98: 0 | F98: 1 | G98: N/A | H98: 0 | I98: =SUM(C98:H98) -> 9
A99: Arun District Council | B99: 2016/17 | C99: 1 | D99: 8 | E99: 0 | F99: 1 | G99: N/A | H99: 0 | I99: =SUM(C99:H99) -> 10
A100: Arun District Council | B100: 2017/18 | C100: 1 | D100: 11 | E100: 0 | F100: 0 | G100: N/A | H100: 1 | I100: =SUM(C100:H100) -> 13
A101: Arun District Council | B101: 2018/19 | C101: 2 | D101: 2 | E101: 0 | F101: 0 | G101: N/A | H101: 0 | I101: =SUM(C101:H101) -> 4
A102: Ashfield District Council | B102: 2009/10 | C102: 1 | D102: 0 | E102: 0 | F102: 0 | G102: 0 | H102: 0 | I102: =SUM(C102:H102) -> 1
A103: Ashfield District Council | B103: 2010/11 | C103: 2 | D103: 5 | E103: 0 | F103: 7 | G103: 1 | H103: 0 | I103: =SUM(C103:H103) -> 15
A104: Ashfield District Council | B104: 2011/12 | C104: 1 | D104: 4 | E104: 0 | F104: 4 | G104: 0 | H104: 0 | I104: =SUM(C104:H104) -> 9
A105: Ashfield District Council | B105: 2012/13 | C105: 2 | D105: 4 | E105: 0 | F105: 1 | G105: N/A | H105: 0 | I105: =SUM(C105:H105) -> 7
A106: Ashfield District Council | B106: 2013/14 | C106: 2 | D106: 3 | E106: 0 | F106: 2 | G106: N/A | H106: 0 | I106: =SUM(C106:H106) -> 7
A107: Ashfield District Council | B107: 2014/15 | C107: 2 | D107: 0 | E107: 0 | F107: 1 | G107: N/A | H107: 0 | I107: =SUM(C107:H107) -> 3
A108: Ashfield District Council | B108: 2015/16 | C108: 1 | D108: 4 | E108: 0 | F108: 0 | G108: N/A | H108: 0 | I108: =SUM(C108:H108) -> 5
A109: Ashfield District Council | B109: 2016/17 | C109: 0 | D109: 2 | E109: 0 | F109: 0 | G109: N/A | H109: 0 | I109: =SUM(C109:H109) -> 2
A110: Ashfield District Council | B110: 2017/18 | C110: 1 | D110: 5 | E110: 0 | F110: 0 | G110: N/A | H110: 0 | I110: =SUM(C110:H110) -> 6
A111: Ashfield District Council | B111: 2018/19 | C111: 3 | D111: 2 | E111: 0 | F111: 0 | G111: N/A | H111: 0 | I111: =SUM(C111:H111) -> 5
A112: Ashford Borough Council | B112: 2009/10 | C112: 4 | D112: 13 | E112: 0 | F112: 2 | G112: 0 | H112: 0 | I112: =SUM(C112:H112) -> 19
A113: Ashford Borough Council | B113: 2010/11 | C113: 3 | D113: 6 | E113: 0 | F113: 2 | G113: 0 | H113: 0 | I113: =SUM(C113:H113) -> 11
A114: Ashford Borough Council | B114: 2011/12 | C114: 3 | D114: 7 | E114: 0 | F114: 3 | G114: 0 | H114: 0 | I114: =SUM(C114:H114) -> 13
A115: Ashford Borough Council | B115: 2012/13 | C115: 0 | D115: 7 | E115: 0 | F115: 0 | G115: N/A | H115: 0 | I115: =SUM(C115:H115) -> 7
A116: Ashford Borough Council | B116: 2013/14 | C116: 0 | D116: 6 | E116: 0 | F116: 0 | G116: N/A | H116: 0 | I116: =SUM(C116:H116) -> 6
A117: Ashford Borough Council | B117: 2014/15 | C117: 0 | D117: 5 | E117: 0 | F117: 0 | G117: N/A | H117: 0 | I117: =SUM(C117:H117) -> 5
A118: Ashford Borough Council | B118: 2015/16 | C118: 1 | D118: 4 | E118: 0 | F118: 0 | G118: N/A | H118: 0 | I118: =SUM(C118:H118) -> 5
A119: Ashford Borough Council | B119: 2016/17 | C119: 0 | D119: 3 | E119: 0 | F119: 0 | G119: N/A | H119: 0 | I119: =SUM(C119:H119) -> 3
A120: Ashford Borough Council | B120: 2017/18 | C120: 2 | D120: 9 | E120: 0 | F120: 0 | G120: N/A | H120: 0 | I120: =SUM(C120:H120) -> 11
A121: Ashford Borough Council | B121: 2018/19 | C121: 0 | D121: 8 | E121: 0 | F121: 0 | G121: N/A | H121: 0 | I121: =SUM(C121:H121) -> 8
A122: Aylesbury Vale District Council | B122: 2009/10 | C122: 7 | D122: 31 | E122: 0 | F122: 1 | G122: 0 | H122: 0 | I122: =SUM(C122:H122) -> 39
A123: Aylesbury Vale District Council | B123: 2010/11 | C123: 5 | D123: 21 | E123: 0 | F123: 7 | G123: 0 | H123: 2 | I123: =SUM(C123:H123) -> 35
A124: Aylesbury Vale District Council | B124: 2011/12 | C124: 2 | D124: 14 | E124: 0 | F124: 3 | G124: 0 | H124: 0 | I124: =SUM(C124:H124) -> 19
A125: Aylesbury Vale District Council | B125: 2012/13 | C125: 3 | D125: 10 | E125: 0 | F125: 0 | G125: N/A | H125: 0 | I125: =SUM(C125:H125) -> 13
A126: Aylesbury Vale District Council | B126: 2013/14 | C126: 1 | D126: 5 | E126: 0 | F126: 0 | G126: N/A | H126: 0 | I126: =SUM(C126:H126) -> 6
A127: Aylesbury Vale District Council | B127: 2014/15 | C127: 4 | D127: 10 | E127: 0 | F127: 0 | G127: N/A | H127: 0 | I127: =SUM(C127:H127) -> 14
A128: Aylesbury Vale District Council | B128: 2015/16 | C128: 5 | D128: 1 | E128: 0 | F128: 0 | G128: N/A | H128: 0 | I128: =SUM(C128:H128) -> 6
A129: Aylesbury Vale District Council | B129: 2016/17 | C129: 3 | D129: 5 | E129: 0 | F129: 0 | G129: N/A | H129: 0 | I129: =SUM(C129:H129) -> 8
A130: Aylesbury Vale District Council | B130: 2017/18 | C130: 0 | D130: 1 | E130: 0 | F130: 1 | G130: N/A | H130: 0 | I130: =SUM(C130:H130) -> 2
A131: Aylesbury Vale District Council | B131: 2018/19 | C131: 0 | D131: 4 | E131: 0 | F131: 2 | G131: N/A | H131: 0 | I131: =SUM(C131:H131) -> 6
A132: Babergh District Council | B132: 2009/10 | C132: 0 | D132: 9 | E132: 0 | F132: 0 | G132: 0 | H132: 0 | I132: =SUM(C132:H132) -> 9
A133: Babergh District Council | B133: 2010/11 | C133: 1 | D133: 13 | E133: 0 | F133: 7 | G133: 0 | H133: 7 | I133: =SUM(C133:H133) -> 28
A134: Babergh District Council | B134: 2011/12 | C134: 0 | D134: 7 | E134: 0 | F134: 2 | G134: 0 | H134: 0 | I134: =SUM(C134:H134) -> 9
A135: Babergh District Council | B135: 2012/13 | C135: 1 | D135: 2 | E135: 0 | F135: 2 | G135: N/A | H135: 0 | I135: =SUM(C135:H135) -> 5
A136: Babergh District Council | B136: 2013/14 | C136: 0 | D136: 3 | E136: 0 | F136: 0 | G136: N/A | H136: 0 | I136: =SUM(C136:H136) -> 3
A137: Babergh District Council | B137: 2014/15 | C137: 1 | D137: 6 | E137: 1 | F137: 0 | G137: N/A | H137: 0 | I137: =SUM(C137:H137) -> 8
A138: Babergh District Council | B138: 2015/16 | C138: 0 | D138: 4 | E138: 0 | F138: 0 | G138: N/A | H138: 0 | I138: =SUM(C138:H138) -> 4
A139: Babergh District Council | B139: 2016/17 | C139: 0 | D139: 1 | E139: 0 | F139: 0 | G139: N/A | H139: 0 | I139: =SUM(C139:H139) -> 1
A140: Babergh District Council | B140: 2017/18 | C140: 0 | D140: 1 | E140: 0 | F140: 0 | G140: N/A | H140: 0 | I140: =SUM(C140:H140) -> 1
A141: Babergh District Council | B141: 2018/19 | C141: 1 | D141: 0 | E141: 0 | F141: 0 | G141: N/A | H141: 0 | I141: =SUM(C141:H141) -> 1
A142: Barnsley Metropolitan Borough Council | B142: 2009/10 | C142: 5 | D142: 27 | E142: 5 | F142: 24 | G142: 0 | H142: 1 | I142: =SUM(C142:H142) -> 62
A143: Barnsley Metropolitan Borough Council | B143: 2010/11 | C143: 6 | D143: 51 | E143: 3 | F143: 11 | G143: 1 | H143: 0 | I143: =SUM(C143:H143) -> 72
A144: Barnsley Metropolitan Borough Council | B144: 2011/12 | C144: 3 | D144: 48 | E144: 0 | F144: 3 | G144: 1 | H144: 0 | I144: =SUM(C144:H144) -> 55
A145: Barnsley Metropolitan Borough Council | B145: 2012/13 | C145: 1 | D145: 25 | E145: 0 | F145: 0 | G145: N/A | H145: 0 | I145: =SUM(C145:H145) -> 26
A146: Barnsley Metropolitan Borough Council | B146: 2013/14 | C146: 0 | D146: 21 | E146: 0 | F146: 0 | G146: N/A | H146: 0 | I146: =SUM(C146:H146) -> 21
A147: Barnsley Metropolitan Borough Council | B147: 2014/15 | C147: 2 | D147: 12 | E147: 0 | F147: 1 | G147: N/A | H147: 0 | I147: =SUM(C147:H147) -> 15
A148: Barnsley Metropolitan Borough Council | B148: 2015/16 | C148: 1 | D148: 13 | E148: 0 | F148: 0 | G148: N/A | H148: 0 | I148: =SUM(C148:H148) -> 14
A149: Barnsley Metropolitan Borough Council | B149: 2016/17 | C149: 3 | D149: 10 | E149: 0 | F149: 1 | G149: N/A | H149: 0 | I149: =SUM(C149:H149) -> 14
A150: Barnsley Metropolitan Borough Council | B150: 2017/18 | C150: 1 | D150: 16 | E150: 0 | F150: 2 | G150: N/A | H150: 0 | I150: =SUM(C150:H150) -> 19
A151: Barnsley Metropolitan Borough Council | B151: 2018/19 | C151: 3 | D151: 11 | E151: 1 | F151: 1 | G151: N/A | H151: 0 | I151: =SUM(C151:H151) -> 16
A152: Barrow in Furness Borough Council | B152: 2009/10 | C152: 0 | D152: 38 | E152: 3 | F152: 4 | G152: 0 | H152: 5 | I152: =SUM(C152:H152) -> 50
A153: Barrow in Furness Borough Council | B153: 2010/11 | C153: 0 | D153: 20 | E153: 0 | F153: 11 | G153: 0 | H153: 0 | I153: =SUM(C153:H153) -> 31
A154: Barrow in Furness Borough Council | B154: 2011/12 | C154: 0 | D154: 9 | E154: 0 | F154: 1 | G154: 0 | H154: 0 | I154: =SUM(C154:H154) -> 10
A155: Barrow in Furness Borough Council | B155: 2012/13 | C155: 1 | D155: 8 | E155: 0 | F155: 2 | G155: N/A | H155: 0 | I155: =SUM(C155:H155) -> 11
A156: Barrow in Furness Borough Council | B156: 2013/14 | C156: 10 | D156: 7 | E156: 0 | F156: 1 | G156: N/A | H156: 0 | I156: =SUM(C156:H156) -> 18
A157: Barrow in Furness Borough Council | B157: 2014/15 | C157: 2 | D157: 2 | E157: 0 | F157: 0 | G157: N/A | H157: 0 | I157: =SUM(C157:H157) -> 4
A158: Barrow in Furness Borough Council | B158: 2015/16 | C158: 2 | D158: 2 | E158: 1 | F158: 0 | G158: N/A | H158: 0 | I158: =SUM(C158:H158) -> 5
A159: Barrow in Furness Borough Council | B159: 2016/17 | C159: 0 | D159: 0 | E159: 0 | F159: 0 | G159: N/A | H159: 0 | I159: =SUM(C159:H159) -> 0
A160: Barrow in Furness Borough Council | B160: 2017/18 | C160: 0 | D160: 1 | E160: 0 | F160: 1 | G160: N/A | H160: 0 | I160: =SUM(C160:H160) -> 2
A161: Barrow in Furness Borough Council | B161: 2018/19 | C161: 0 | D161: 2 | E161: 0 | F161: 0 | G161: N/A | H161: 0 | I161: =SUM(C161:H161) -> 2
A162: Basildon District Council | B162: 2009/10 | C162: 11 | D162: 17 | E162: 1 | F162: 5 | G162: 0 | H162: 0 | I162: =SUM(C162:H162) -> 34
A163: Basildon District Council | B163: 2010/11 | C163: 6 | D163: 8 | E163: 0 | F163: 1 | G163: 0 | H163: 0 | I163: =SUM(C163:H163) -> 15
A164: Basildon District Council | B164: 2011/12 | C164: 2 | D164: 11 | E164: 0 | F164: 10 | G164: 0 | H164: 0 | I164: =SUM(C164:H164) -> 23
A165: Basildon District Council | B165: 2012/13 | C165: 1 | D165: 6 | E165: 0 | F165: 3 | G165: N/A | H165: 0 | I165: =SUM(C165:H165) -> 10
A166: Basildon District Council | B166: 2013/14 | C166: 1 | D166: 7 | E166: 1 | F166: 1 | G166: N/A | H166: 0 | I166: =SUM(C166:H166) -> 10
A167: Basildon District Council | B167: 2014/15 | C167: 2 | D167: 4 | E167: 0 | F167: 1 | G167: N/A | H167: 0 | I167: =SUM(C167:H167) -> 7
A168: Basildon District Council | B168: 2015/16 | C168: 2 | D168: 0 | E168: 0 | F168: 0 | G168: N/A | H168: 0 | I168: =SUM(C168:H168) -> 2
A169: Basildon District Council | B169: 2016/17 | C169: 2 | D169: 2 | E169: 0 | F169: 0 | G169: N/A | H169: 0 | I169: =SUM(C169:H169) -> 4
A170: Basildon District Council | B170: 2017/18 | C170: 1 | D170: 5 | E170: 0 | F170: 0 | G170: N/A | H170: 0 | I170: =SUM(C170:H170) -> 6
A171: Basildon District Council | B171: 2018/19 | C171: 1 | D171: 1 | E171: 0 | F171: 0 | G171: N/A | H171: 0 | I171: =SUM(C171:H171) -> 2
A172: Basingstoke and Deane Borough Council | B172: 2009/10 | C172: 4 | D172: 25 | E172: 0 | F172: 7 | G172: 0 | H172: 0 | I172: =SUM(C172:H172) -> 36
A173: Basingstoke and Deane Borough Council | B173: 2010/11 | C173: 3 | D173: 24 | E173: 0 | F173: 4 | G173: 0 | H173: 0 | I173: =SUM(C173:H173) -> 31
A174: Basingstoke and Deane Borough Council | B174: 2011/12 | C174: 2 | D174: 20 | E174: 0 | F174: 4 | G174: 0 | H174: 0 | I174: =SUM(C174:H174) -> 26
A175: Basingstoke and Deane Borough Council | B175: 2012/13 | C175: 0 | D175: 15 | E175: 0 | F175: 1 | G175: N/A | H175: 3 | I175: =SUM(C175:H175) -> 19
A176: Basingstoke and Deane Borough Council | B176: 2013/14 | C176: 0 | D176: 10 | E176: 0 | F176: 0 | G176: N/A | H176: 0 | I176: =SUM(C176:H176) -> 10
A177: Basingstoke and Deane Borough Council | B177: 2014/15 | C177: 4 | D177: 0 | E177: 0 | F177: 0 | G177: N/A | H177: 0 | I177: =SUM(C177:H177) -> 4
A178: Basingstoke and Deane Borough Council | B178: 2015/16 | C178: 0 | D178: 2 | E178: 0 | F178: 2 | G178: N/A | H178: 0 | I178: =SUM(C178:H178) -> 4
A179: Basingstoke and Deane Borough Council | B179: 2016/17 | C179: 1 | D179: 9 | E179: 0 | F179: 1 | G179: N/A | H179: 0 | I179: =SUM(C179:H179) -> 11
A180: Basingstoke and Deane Borough Council | B180: 2017/18 | C180: 1 | D180: 9 | E180: 0 | F180: 0 | G180: N/A | H180: 0 | I180: =SUM(C180:H180) -> 10
A181: Basingstoke and Deane Borough Council | B181: 2018/19 | C181: 1 | D181: 13 | E181: 0 | F181: 0 | G181: N/A | H181: 0 | I181: =SUM(C181:H181) -> 14
A182: Bassetlaw District Council | B182: 2009/10 | C182: 0 | D182: 31 | E182: 0 | F182: 0 | G182: 0 | H182: 0 | I182: =SUM(C182:H182) -> 31
A183: Bassetlaw District Council | B183: 2010/11 | C183: 0 | D183: 16 | E183: 0 | F183: 4 | G183: 0 | H183: 1 | I183: =SUM(C183:H183) -> 21
A184: Bassetlaw District Council | B184: 2011/12 | C184: 0 | D184: 2 | E184: 2 | F184: 0 | G184: 0 | H184: 0 | I184: =SUM(C184:H184) -> 4
A185: Bassetlaw District Council | B185: 2012/13 | C185: 2 | D185: 2 | E185: 0 | F185: 1 | G185: N/A | H185: 0 | I185: =SUM(C185:H185) -> 5
A186: Bassetlaw District Council | B186: 2013/14 | C186: 1 | D186: 9 | E186: 0 | F186: 0 | G186: N/A | H186: 0 | I186: =SUM(C186:H186) -> 10
A187: Bassetlaw District Council | B187: 2014/15 | C187: 0 | D187: 2 | E187: 0 | F187: 0 | G187: N/A | H187: 0 | I187: =SUM(C187:H187) -> 2
A188: Bassetlaw District Council | B188: 2015/16 | C188: 0 | D188: 1 | E188: 0 | F188: 0 | G188: N/A | H188: 0 | I188: =SUM(C188:H188) -> 1
A189: Bassetlaw District Council | B189: 2016/17 | C189: 2 | D189: 4 | E189: 0 | F189: 0 | G189: N/A | H189: 0 | I189: =SUM(C189:H189) -> 6
A190: Bassetlaw District Council | B190: 2017/18 | C190: 1 | D190: 6 | E190: 0 | F190: 1 | G190: N/A | H190: 0 | I190: =SUM(C190:H190) -> 8
A191: Bassetlaw District Council | B191: 2018/19 | C191: 0 | D191: 1 | E191: 0 | F191: 0 | G191: N/A | H191: 0 | I191: =SUM(C191:H191) -> 1
A192: Bath and North East Somerset Council | B192: 2009/10 | C192: 2 | D192: 40 | E192: 0 | F192: 5 | G192: 0 | H192: 0 | I192: =SUM(C192:H192) -> 47
A193: Bath and North East Somerset Council | B193: 2010/11 | C193: 1 | D193: 33 | E193: 0 | F193: 4 | G193: 0 | H193: 2 | I193: =SUM(C193:H193) -> 40
A194: Bath and North East Somerset Council | B194: 2011/12 | C194: 3 | D194: 28 | E194: 0 | F194: 3 | G194: 0 | H194: 0 | I194: =SUM(C194:H194) -> 34
A195: Bath and North East Somerset Council | B195: 2012/13 | C195: 2 | D195: 8 | E195: 0 | F195: 3 | G195: N/A | H195: 0 | I195: =SUM(C195:H195) -> 13
A196: Bath and North East Somerset Council | B196: 2013/14 | C196: 3 | D196: 8 | E196: 0 | F196: 1 | G196: N/A | H196: 0 | I196: =SUM(C196:H196) -> 12
A197: Bath and North East Somerset Council | B197: 2014/15 | C197: 1 | D197: 10 | E197: 1 | F197: 0 | G197: N/A | H197: 0 | I197: =SUM(C197:H197) -> 12
A198: Bath and North East Somerset Council | B198: 2015/16 | C198: 3 | D198: 6 | E198: 0 | F198: 0 | G198: N/A | H198: 0 | I198: =SUM(C198:H198) -> 9
A199: Bath and North East Somerset Council | B199: 2016/17 | C199: 4 | D199: 7 | E199: 0 | F199: 0 | G199: N/A | H199: 0 | I199: =SUM(C199:H199) -> 11
A200: Bath and North East Somerset Council | B200: 2017/18 | C200: 5 | D200: 18 | E200: 0 | F200: 3 | G200: N/A | H200: 0 | I200: =SUM(C200:H200) -> 26
A201: Bath and North East Somerset Council | B201: 2018/19 | C201: 2 | D201: 8 | E201: 0 | F201: 0 | G201: N/A | H201: 0 | I201: =SUM(C201:H201) -> 10
A202: Bedford Borough Council | B202: 2009/10 | C202: 5 | D202: 21 | E202: 0 | F202: 8 | G202: 0 | H202: 0 | I202: =SUM(C202:H202) -> 34
A203: Bedford Borough Council | B203: 2010/11 | C203: 0 | D203: 33 | E203: 0 | F203: 0 | G203: 0 | H203: 1 | I203: =SUM(C203:H203) -> 34
A204: Bedford Borough Council | B204: 2011/12 | C204: 1 | D204: 12 | E204: 0 | F204: 0 | G204: 0 | H204: 0 | I204: =SUM(C204:H204) -> 13
A205: Bedford Borough Council | B205: 2012/13 | C205: 0 | D205: 0 | E205: 0 | F205: 2 | G205: N/A | H205: 0 | I205: =SUM(C205:H205) -> 2
A206: Bedford Borough Council | B206: 2013/14 | C206: 3 | D206: 4 | E206: 0 | F206: 0 | G206: N/A | H206: 3 | I206: =SUM(C206:H206) -> 10
... 3606 more rows

Sheet 2. PERMITS CUMULATIVE
B1: Gambling Commission
B2: Local authority statistics - 01 April 2009 - 31 March 2019
A4: 2 Permits Cumulative
A7: From 2012/13 where a permit is issued for premises providing only category D machines, the data has been detailed under Unlicensed Family Entertainment Centres (UFECs).
A10: Permit Type | B10: 2009/10 | C10: 2010/11 | D10: 2011/12 | E10: 2012/13 | F10: 2013/14 | G10: 2014/15 | H10: 2015/16 | I10: 2016/17 | J10: 2017/18 | K10: 2018/19
A11: Alcohol Licensed Premises - Automatic Entitlement | B11: 29141 | C11: 36253 | D11: 40311 | E11: 40032 | F11: 40358 | G11: 39786 | H11: 38238 | I11: 38116 | J11: 37758 | K11: 37501
A12: Alcohol Licensed Premises - Gaming Machine Permit | B12: 5845 | C12: 6494 | D12: 6802 | E12: 5922 | F12: 6084 | G12: 6129 | H12: 6419 | I12: 6493 | J12: 6453 | K12: 6311
A13: Club Machine Permit | B13: 3271 | C13: 5942 | D13: 6627 | E13: 6872 | F13: 6793 | G13: 6642 | H13: 6417 | I13: 6079 | J13: 5876 | K13: 5619
A14: Unlicensed FEC | B14: 586 | C14: 465 | D14: 560 | E14: 1223 | F14: 1310 | G14: 1357 | H14: 1420 | I14: 1459 | J14: 1349 | K14: 1300
A15: Club Gaming Permit | B15: 492 | C15: 808 | D15: 962 | E15: 1003 | F15: 957 | G15: 926 | H15: 912 | I15: 901 | J15: 831 | K15: 810
A16: FEC Gaming Machine Permit | B16: 830 | C16: 825 | D16: 956
A17: Totals | B17: 40165 | C17: 50787 | D17: 56218 | E17: 55052 | F17: 55502 | G17: 54840 | H17: 53406 | I17: =SUM(I11:I16) -> 53048 | J17: =SUM(J11:J16) -> 52267 | K17: =SUM(K11:K16) -> 51541
A18: % Difference of Total from previous year | B18: N/A | C18: =SUM(C17-B17)/B17 -> 0.2644591062 | D18: =SUM(D17-C17)/C17 -> 0.1069368145 | E18: =SUM(E17-D17)/D17 -> -0.02074068804 | F18: =SUM(F17-E17)/E17 -> 0.008174089951 | G18: =SUM(G17-F17)/F17 -> -0.01192749811 | H18: =SUM(H17-G17)/G17 -> -0.0261487965 | I18: =SUM(I17-H17)/H17 -> -0.006703366663 | J18: =SUM(J17-I17)/I17 -> -0.01472251546 | K18: =SUM(K17-J17)/J17 -> -0.01389021754
B20: Permits active period ending 31 March
A21: Licensing Authority | B21: Year | C21: Alcohol licensed premises | D21: Alcohol Machine Automatic | E21: Club gaming permit | F21: Club machine permit | G21: FEC Gaming | H21: Unlicensed FEC | I21: Totals
A22: Aberdeen City Council | B22: 2009/10 | C22: 13 | D22: 109 | E22: 1 | F22: 4 | G22: 3 | H22: 0 | I22: =SUM(C22:H22) -> 130
A23: Aberdeen City Council | B23: 2010/11 | C23: 22 | D23: 129 | E23: 2 | F23: 19 | G23: 3 | H23: 0 | I23: =SUM(C23:H23) -> 175
A24: Aberdeen City Council | B24: 2011/12 | C24: 26 | D24: 135 | E24: 2 | F24: 19 | G24: 4 | H24: 0 | I24: =SUM(C24:H24) -> 186
A25: Aberdeen City Council | B25: 2012/13 | C25: 25 | D25: 112 | E25: 3 | F25: 19 | G25: N/A | H25: 5 | I25: =SUM(C25:H25) -> 164
A26: Aberdeen City Council | B26: 2013/14 | C26: 28 | D26: 114 | E26: 3 | F26: 20 | G26: N/A | H26: 5 | I26: =SUM(C26:H26) -> 170
A27: Aberdeen City Council | B27: 2014/15 | C27: 27 | D27: 118 | E27: 2 | F27: 19 | G27: N/A | H27: 5 | I27: =SUM(C27:H27) -> 171
A28: Aberdeen City Council | B28: 2015/16 | C28: 29 | D28: 112 | E28: 2 | F28: 19 | G28: N/A | H28: 6 | I28: =SUM(C28:H28) -> 168
A29: Aberdeen City Council | B29: 2016/17 | C29: 24 | D29: 97 | E29: 2 | F29: 19 | G29: N/A | H29: 6 | I29: =SUM(C29:H29) -> 148
A30: Aberdeen City Council | B30: 2017/18 | C30: 34 | D30: 88 | E30: 1 | F30: 17 | G30: N/A | H30: 6 | I30: =SUM(C30:H30) -> 146
A31: Aberdeen City Council | B31: 2018/19 | C31: 34 | D31: 93 | E31: 1 | F31: 17 | G31: N/A | H31: 5 | I31: =SUM(C31:H31) -> 150
A32: Aberdeenshire Council | B32: 2009/10 | C32: 33 | D32: 0 | E32: 0 | F32: 0 | G32: 0 | H32: 0 | I32: =SUM(C32:H32) -> 33
A33: Aberdeenshire Council | B33: 2010/11 | C33: 77 | D33: 124 | E33: 0 | F33: 0 | G33: 0 | H33: 0 | I33: =SUM(C33:H33) -> 201
A34: Aberdeenshire Council | B34: 2011/12 | C34: 0 | D34: 0 | E34: 0 | F34: 0 | G34: 0 | H34: 0 | I34: =SUM(C34:H34) -> 0
A35: Aberdeenshire Council | B35: 2012/13 | C35: 0 | D35: 0 | E35: 0 | F35: 0 | G35: N/A | H35: 0 | I35: =SUM(C35:H35) -> 0
A36: Aberdeenshire Council | B36: 2013/14 | C36: 6 | D36: 82 | E36: 3 | F36: 20 | G36: N/A | H36: 1 | I36: =SUM(C36:H36) -> 112
A37: Aberdeenshire Council | B37: 2014/15 | C37: 7 | D37: 115 | E37: 4 | F37: 31 | G37: N/A | H37: 1 | I37: =SUM(C37:H37) -> 158
A38: Aberdeenshire Council | B38: 2015/16 | C38: 7 | D38: 158 | E38: 2 | F38: 29 | G38: N/A | H38: 1 | I38: =SUM(C38:H38) -> 197
A39: Aberdeenshire Council | B39: 2016/17 | C39: 7 | D39: 144 | E39: 1 | F39: 32 | G39: N/A | H39: 2 | I39: =SUM(C39:H39) -> 186
A40: Aberdeenshire Council | B40: 2017/18 | C40: 7 | D40: 152 | E40: 2 | F40: 28 | G40: N/A | H40: 2 | I40: =SUM(C40:H40) -> 191
A41: Aberdeenshire Council | B41: 2018/19 | C41: 7 | D41: 153 | E41: 2 | F41: 25 | G41: N/A | H41: 3 | I41: =SUM(C41:H41) -> 190
A42: Adur District Council | B42: 2009/10 | C42: 6 | D42: 20 | E42: 0 | F42: 3 | G42: 0 | H42: 0 | I42: =SUM(C42:H42) -> 29
A43: Adur District Council | B43: 2010/11 | C43: 21 | D43: 5 | E43: 0 | F43: 4 | G43: 0 | H43: 0 | I43: =SUM(C43:H43) -> 30
A44: Adur District Council | B44: 2011/12 | C44: 28 | D44: 5 | E44: 0 | F44: 4 | G44: 0 | H44: 0 | I44: =SUM(C44:H44) -> 37
A45: Adur District Council | B45: 2012/13 | C45: 4 | D45: 22 | E45: 0 | F45: 3 | G45: N/A | H45: 0 | I45: =SUM(C45:H45) -> 29
A46: Adur District Council | B46: 2013/14 | C46: 4 | D46: 22 | E46: 0 | F46: 4 | G46: N/A | H46: 0 | I46: =SUM(C46:H46) -> 30
A47: Adur District Council | B47: 2014/15 | C47: 6 | D47: 21 | E47: 0 | F47: 5 | G47: N/A | H47: 0 | I47: =SUM(C47:H47) -> 32
A48: Adur District Council | B48: 2015/16 | C48: 5 | D48: 19 | E48: 0 | F48: 7 | G48: N/A | H48: 0 | I48: =SUM(C48:H48) -> 31
A49: Adur District Council | B49: 2016/17 | C49: 5 | D49: 19 | E49: 0 | F49: 7 | G49: N/A | H49: 0 | I49: =SUM(C49:H49) -> 31
A50: Adur District Council | B50: 2017/18 | C50: 5 | D50: 19 | E50: 0 | F50: 7 | G50: N/A | H50: 0 | I50: =SUM(C50:H50) -> 31
A51: Adur District Council | B51: 2018/19 | C51: 5 | D51: 19 | E51: 0 | F51: 7 | G51: N/A | H51: 0 | I51: =SUM(C51:H51) -> 31
A52: Allerdale Borough Council | B52: 2009/10 | C52: 4 | D52: 68 | E52: 6 | F52: 6 | G52: 6 | H52: 2 | I52: =SUM(C52:H52) -> 92
A53: Allerdale Borough Council | B53: 2010/11 | C53: 3 | D53: 89 | E53: 10 | F53: 10 | G53: 0 | H53: 7 | I53: =SUM(C53:H53) -> 119
A54: Allerdale Borough Council | B54: 2011/12 | C54: 6 | D54: 116 | E54: 14 | F54: 14 | G54: 0 | H54: 7 | I54: =SUM(C54:H54) -> 157
A55: Allerdale Borough Council | B55: 2012/13 | C55: 4 | D55: 145 | E55: 14 | F55: 12 | G55: N/A | H55: 7 | I55: =SUM(C55:H55) -> 182
A56: Allerdale Borough Council | B56: 2013/14 | C56: 7 | D56: 246 | E56: 28 | F56: 22 | G56: N/A | H56: 13 | I56: =SUM(C56:H56) -> 316
A57: Allerdale Borough Council | B57: 2014/15 | C57: 8 | D57: 118 | E57: 14 | F57: 10 | G57: N/A | H57: 7 | I57: =SUM(C57:H57) -> 157
A58: Allerdale Borough Council | B58: 2015/16 | C58: 9 | D58: 126 | E58: 15 | F58: 11 | G58: N/A | H58: 8 | I58: =SUM(C58:H58) -> 169
A59: Allerdale Borough Council | B59: 2016/17 | C59: 8 | D59: 128 | E59: 15 | F59: 11 | G59: N/A | H59: 9 | I59: =SUM(C59:H59) -> 171
A60: Allerdale Borough Council | B60: 2017/18 | C60: 11 | D60: 159 | E60: 13 | F60: 6 | G60: N/A | H60: 3 | I60: =SUM(C60:H60) -> 192
A61: Allerdale Borough Council | B61: 2018/19 | C61: 8 | D61: 51 | E61: 11 | F61: 6 | G61: N/A | H61: 2 | I61: =SUM(C61:H61) -> 78
A62: Amber Valley Borough Council | B62: 2009/10 | C62: 5 | D62: 100 | E62: 2 | F62: 3 | G62: 0 | H62: 0 | I62: =SUM(C62:H62) -> 110
A63: Amber Valley Borough Council | B63: 2010/11 | C63: 8 | D63: 137 | E63: 4 | F63: 6 | G63: 0 | H63: 0 | I63: =SUM(C63:H63) -> 155
A64: Amber Valley Borough Council | B64: 2011/12 | C64: 9 | D64: 163 | E64: 4 | F64: 8 | G64: 0 | H64: 0 | I64: =SUM(C64:H64) -> 184
A65: Amber Valley Borough Council | B65: 2012/13 | C65: 10 | D65: 152 | E65: 4 | F65: 10 | G65: N/A | H65: 0 | I65: =SUM(C65:H65) -> 176
A66: Amber Valley Borough Council | B66: 2013/14 | C66: 11 | D66: 154 | E66: 4 | F66: 10 | G66: N/A | H66: 0 | I66: =SUM(C66:H66) -> 179
A67: Amber Valley Borough Council | B67: 2014/15 | C67: 12 | D67: 166 | E67: 4 | F67: 11 | G67: N/A | H67: 0 | I67: =SUM(C67:H67) -> 193
A68: Amber Valley Borough Council | B68: 2015/16 | C68: 10 | D68: 157 | E68: 4 | F68: 11 | G68: N/A | H68: 0 | I68: =SUM(C68:H68) -> 182
A69: Amber Valley Borough Council | B69: 2016/17 | C69: 11 | D69: 163 | E69: 4 | F69: 10 | G69: N/A | H69: 0 | I69: =SUM(C69:H69) -> 188
A70: Amber Valley Borough Council | B70: 2017/18 | C70: 13 | D70: 173 | E70: 5 | F70: 11 | G70: N/A | H70: 0 | I70: =SUM(C70:H70) -> 202
A71: Amber Valley Borough Council | B71: 2018/19 | C71: 13 | D71: 177 | E71: 5 | F71: 11 | G71: N/A | H71: 0 | I71: =SUM(C71:H71) -> 206
A72: Angus Council | B72: 2009/10 | C72: 0 | D72: 85 | E72: 0 | F72: 0 | G72: 4 | H72: 0 | I72: =SUM(C72:H72) -> 89
A73: Angus Council | B73: 2010/11 | C73: 0 | D73: 102 | E73: 0 | F73: 14 | G73: 4 | H73: 0 | I73: =SUM(C73:H73) -> 120
A74: Angus Council | B74: 2011/12 | C74: 0 | D74: 110 | E74: 3 | F74: 18 | G74: 4 | H74: 0 | I74: =SUM(C74:H74) -> 135
A75: Angus Council | B75: 2012/13 | C75: 1 | D75: 101 | E75: 3 | F75: 16 | G75: N/A | H75: 4 | I75: =SUM(C75:H75) -> 125
A76: Angus Council | B76: 2013/14 | C76: 1 | D76: 98 | E76: 2 | F76: 16 | G76: N/A | H76: 4 | I76: =SUM(C76:H76) -> 121
A77: Angus Council | B77: 2014/15 | C77: 1 | D77: 100 | E77: 2 | F77: 15 | G77: N/A | H77: 4 | I77: =SUM(C77:H77) -> 122
A78: Angus Council | B78: 2015/16 | C78: 1 | D78: 99 | E78: 3 | F78: 15 | G78: N/A | H78: 4 | I78: =SUM(C78:H78) -> 122
A79: Angus Council | B79: 2016/17 | C79: 1 | D79: 98 | E79: 3 | F79: 15 | G79: N/A | H79: 4 | I79: =SUM(C79:H79) -> 121
A80: Angus Council | B80: 2017/18 | C80: 1 | D80: 99 | E80: 3 | F80: 15 | G80: N/A | H80: 4 | I80: =SUM(C80:H80) -> 122
A81: Angus Council | B81: 2018/19 | C81: 1 | D81: 100 | E81: 3 | F81: 15 | G81: N/A | H81: 4 | I81: =SUM(C81:H81) -> 123
A82: Argyll & Bute Council | B82: 2009/10 | C82: 2 | D82: 64 | E82: 0 | F82: 2 | G82: 1 | H82: 0 | I82: =SUM(C82:H82) -> 69
A83: Argyll & Bute Council | B83: 2010/11 | C83: 1 | D83: 72 | E83: 0 | F83: 2 | G83: 1 | H83: 0 | I83: =SUM(C83:H83) -> 76
A84: Argyll & Bute Council | B84: 2011/12 | C84: 1 | D84: 76 | E84: 0 | F84: 3 | G84: 1 | H84: 2 | I84: =SUM(C84:H84) -> 83
A85: Argyll & Bute Council | B85: 2012/13 | C85: 5 | D85: 76 | E85: 0 | F85: 2 | G85: N/A | H85: 2 | I85: =SUM(C85:H85) -> 85
A86: Argyll & Bute Council | B86: 2013/14 | C86: 5 | D86: 80 | E86: 0 | F86: 4 | G86: N/A | H86: 2 | I86: =SUM(C86:H86) -> 91
A87: Argyll & Bute Council | B87: 2014/15 | C87: 5 | D87: 80 | E87: 0 | F87: 4 | G87: N/A | H87: 2 | I87: =SUM(C87:H87) -> 91
A88: Argyll & Bute Council | B88: 2015/16 | C88: 5 | D88: 82 | E88: 0 | F88: 5 | G88: N/A | H88: 3 | I88: =SUM(C88:H88) -> 95
A89: Argyll & Bute Council | B89: 2016/17 | C89: 5 | D89: 82 | E89: 0 | F89: 5 | G89: N/A | H89: 3 | I89: =SUM(C89:H89) -> 95
A90: Argyll & Bute Council | B90: 2017/18 | C90: 6 | D90: 86 | E90: 0 | F90: 5 | G90: N/A | H90: 3 | I90: =SUM(C90:H90) -> 100
A91: Argyll & Bute Council | B91: 2018/19 | C91: 6 | D91: 87 | E91: 0 | F91: 5 | G91: N/A | H91: 3 | I91: =SUM(C91:H91) -> 101
A92: Arun District Council | B92: 2009/10 | C92: 6 | D92: 65 | E92: 0 | F92: 8 | G92: 6 | H92: 0 | I92: =SUM(C92:H92) -> 85
A93: Arun District Council | B93: 2010/11 | C93: 12 | D93: 82 | E93: 0 | F93: 18 | G93: 8 | H93: 0 | I93: =SUM(C93:H93) -> 120
A94: Arun District Council | B94: 2011/12 | C94: 11 | D94: 87 | E94: 0 | F94: 20 | G94: 8 | H94: 0 | I94: =SUM(C94:H94) -> 126
A95: Arun District Council | B95: 2012/13 | C95: 12 | D95: 90 | E95: 0 | F95: 20 | G95: N/A | H95: 16 | I95: =SUM(C95:H95) -> 138
A96: Arun District Council | B96: 2013/14 | C96: 8 | D96: 95 | E96: 0 | F96: 18 | G96: N/A | H96: 8 | I96: =SUM(C96:H96) -> 129
A97: Arun District Council | B97: 2014/15 | C97: 9 | D97: 92 | E97: 0 | F97: 17 | G97: N/A | H97: 8 | I97: =SUM(C97:H97) -> 126
A98: Arun District Council | B98: 2015/16 | C98: 11 | D98: 98 | E98: 0 | F98: 18 | G98: N/A | H98: 8 | I98: =SUM(C98:H98) -> 135
A99: Arun District Council | B99: 2016/17 | C99: 12 | D99: 70 | E99: 0 | F99: 19 | G99: N/A | H99: 16 | I99: =SUM(C99:H99) -> 117
A100: Arun District Council | B100: 2017/18 | C100: 11 | D100: 61 | E100: 0 | F100: 7 | G100: N/A | H100: 14 | I100: =SUM(C100:H100) -> 93
A101: Arun District Council | B101: 2018/19 | C101: 13 | D101: 63 | E101: 0 | F101: 7 | G101: N/A | H101: 14 | I101: =SUM(C101:H101) -> 97
A102: Ashfield District Council | B102: 2009/10 | C102: 6 | D102: 40 | E102: 0 | F102: 0 | G102: 2 | H102: 0 | I102: =SUM(C102:H102) -> 48
A103: Ashfield District Council | B103: 2010/11 | C103: 8 | D103: 66 | E103: 0 | F103: 17 | G103: 2 | H103: 0 | I103: =SUM(C103:H103) -> 93
A104: Ashfield District Council | B104: 2011/12 | C104: 9 | D104: 70 | E104: 0 | F104: 21 | G104: 2 | H104: 0 | I104: =SUM(C104:H104) -> 102
A105: Ashfield District Council | B105: 2012/13 | C105: 11 | D105: 74 | E105: 0 | F105: 19 | G105: N/A | H105: 2 | I105: =SUM(C105:H105) -> 106
A106: Ashfield District Council | B106: 2013/14 | C106: 11 | D106: 61 | E106: 0 | F106: 19 | G106: N/A | H106: 2 | I106: =SUM(C106:H106) -> 93
A107: Ashfield District Council | B107: 2014/15 | C107: 13 | D107: 59 | E107: 0 | F107: 20 | G107: N/A | H107: 2 | I107: =SUM(C107:H107) -> 94
A108: Ashfield District Council | B108: 2015/16 | C108: 14 | D108: 59 | E108: 0 | F108: 19 | G108: N/A | H108: 2 | I108: =SUM(C108:H108) -> 94
A109: Ashfield District Council | B109: 2016/17 | C109: 13 | D109: 58 | E109: 0 | F109: 18 | G109: N/A | H109: 2 | I109: =SUM(C109:H109) -> 91
A110: Ashfield District Council | B110: 2017/18 | C110: 14 | D110: 63 | E110: 0 | F110: 18 | G110: N/A | H110: 2 | I110: =SUM(C110:H110) -> 97
A111: Ashfield District Council | B111: 2018/19 | C111: 17 | D111: 65 | E111: 0 | F111: 18 | G111: N/A | H111: 2 | I111: =SUM(C111:H111) -> 102
A112: Ashford Borough Council | B112: 2009/10 | C112: 8 | D112: 45 | E112: 0 | F112: 4 | G112: 0 | H112: 0 | I112: =SUM(C112:H112) -> 57
A113: Ashford Borough Council | B113: 2010/11 | C113: 11 | D113: 61 | E113: 0 | F113: 7 | G113: 0 | H113: 0 | I113: =SUM(C113:H113) -> 79
A114: Ashford Borough Council | B114: 2011/12 | C114: 13 | D114: 68 | E114: 0 | F114: 10 | G114: 0 | H114: 0 | I114: =SUM(C114:H114) -> 91
A115: Ashford Borough Council | B115: 2012/13 | C115: 10 | D115: 68 | E115: 0 | F115: 9 | G115: N/A | H115: 0 | I115: =SUM(C115:H115) -> 87
A116: Ashford Borough Council | B116: 2013/14 | C116: 10 | D116: 68 | E116: 0 | F116: 7 | G116: N/A | H116: 0 | I116: =SUM(C116:H116) -> 85
A117: Ashford Borough Council | B117: 2014/15 | C117: 7 | D117: 67 | E117: 0 | F117: 6 | G117: N/A | H117: 0 | I117: =SUM(C117:H117) -> 80
A118: Ashford Borough Council | B118: 2015/16 | C118: 8 | D118: 64 | E118: 0 | F118: 5 | G118: N/A | H118: 0 | I118: =SUM(C118:H118) -> 77
A119: Ashford Borough Council | B119: 2016/17 | C119: 8 | D119: 70 | E119: 0 | F119: 6 | G119: N/A | H119: 0 | I119: =SUM(C119:H119) -> 84
A120: Ashford Borough Council | B120: 2017/18 | C120: 9 | D120: 73 | E120: 0 | F120: 5 | G120: N/A | H120: 0 | I120: =SUM(C120:H120) -> 87
A121: Ashford Borough Council | B121: 2018/19 | C121: 9 | D121: 60 | E121: 0 | F121: 5 | G121: N/A | H121: 0 | I121: =SUM(C121:H121) -> 74
A122: Aylesbury Vale District Council | B122: 2009/10 | C122: 15 | D122: 82 | E122: 0 | F122: 7 | G122: 0 | H122: 0 | I122: =SUM(C122:H122) -> 104
A123: Aylesbury Vale District Council | B123: 2010/11 | C123: 13 | D123: 96 | E123: 0 | F123: 14 | G123: 0 | H123: 0 | I123: =SUM(C123:H123) -> 123
A124: Aylesbury Vale District Council | B124: 2011/12 | C124: 13 | D124: 94 | E124: 0 | F124: 15 | G124: 0 | H124: 0 | I124: =SUM(C124:H124) -> 122
A125: Aylesbury Vale District Council | B125: 2012/13 | C125: 13 | D125: 92 | E125: 0 | F125: 14 | G125: N/A | H125: 0 | I125: =SUM(C125:H125) -> 119
A126: Aylesbury Vale District Council | B126: 2013/14 | C126: 13 | D126: 93 | E126: 0 | F126: 14 | G126: N/A | H126: 0 | I126: =SUM(C126:H126) -> 120
A127: Aylesbury Vale District Council | B127: 2014/15 | C127: 12 | D127: 90 | E127: 0 | F127: 12 | G127: N/A | H127: 0 | I127: =SUM(C127:H127) -> 114
A128: Aylesbury Vale District Council | B128: 2015/16 | C128: 13 | D128: 78 | E128: 0 | F128: 12 | G128: N/A | H128: 0 | I128: =SUM(C128:H128) -> 103
A129: Aylesbury Vale District Council | B129: 2016/17 | C129: 19 | D129: 81 | E129: 0 | F129: 12 | G129: N/A | H129: 0 | I129: =SUM(C129:H129) -> 112
A130: Aylesbury Vale District Council | B130: 2017/18 | C130: 14 | D130: 80 | E130: 0 | F130: 12 | G130: N/A | H130: 0 | I130: =SUM(C130:H130) -> 106
A131: Aylesbury Vale District Council | B131: 2018/19 | C131: 14 | D131: 83 | E131: 0 | F131: 12 | G131: N/A | H131: 0 | I131: =SUM(C131:H131) -> 109
A132: Babergh District Council | B132: 2009/10 | C132: 0 | D132: 9 | E132: 0 | F132: 0 | G132: 0 | H132: 0 | I132: =SUM(C132:H132) -> 9
A133: Babergh District Council | B133: 2010/11 | C133: 3 | D133: 55 | E133: 1 | F133: 10 | G133: 0 | H133: 0 | I133: =SUM(C133:H133) -> 69
A134: Babergh District Council | B134: 2011/12 | C134: 3 | D134: 61 | E134: 1 | F134: 12 | G134: 0 | H134: 0 | I134: =SUM(C134:H134) -> 77
A135: Babergh District Council | B135: 2012/13 | C135: 3 | D135: 63 | E135: 1 | F135: 12 | G135: N/A | H135: 0 | I135: =SUM(C135:H135) -> 79
A136: Babergh District Council | B136: 2013/14 | C136: 3 | D136: 65 | E136: 1 | F136: 12 | G136: N/A | H136: 0 | I136: =SUM(C136:H136) -> 81
A137: Babergh District Council | B137: 2014/15 | C137: 4 | D137: 72 | E137: 2 | F137: 11 | G137: N/A | H137: 0 | I137: =SUM(C137:H137) -> 89
A138: Babergh District Council | B138: 2015/16 | C138: 4 | D138: 75 | E138: 2 | F138: 12 | G138: N/A | H138: 0 | I138: =SUM(C138:H138) -> 93
A139: Babergh District Council | B139: 2016/17 | C139: 4 | D139: 76 | E139: 2 | F139: 12 | G139: N/A | H139: 0 | I139: =SUM(C139:H139) -> 94
A140: Babergh District Council | B140: 2017/18 | C140: 3 | D140: 76 | E140: 1 | F140: 11 | G140: N/A | H140: 0 | I140: =SUM(C140:H140) -> 91
A141: Babergh District Council | B141: 2018/19 | C141: 4 | D141: 63 | E141: 1 | F141: 7 | G141: N/A | H141: 0 | I141: =SUM(C141:H141) -> 75
A142: Barnsley Metropolitan Borough Council | B142: 2009/10 | C142: 17 | D142: 152 | E142: 5 | F142: 37 | G142: 0 | H142: 3 | I142: =SUM(C142:H142) -> 214
A143: Barnsley Metropolitan Borough Council | B143: 2010/11 | C143: 22 | D143: 208 | E143: 3 | F143: 62 | G143: 1 | H143: 1 | I143: =SUM(C143:H143) -> 297
A144: Barnsley Metropolitan Borough Council | B144: 2011/12 | C144: 14 | D144: 203 | E144: 3 | F144: 63 | G144: 1 | H144: 1 | I144: =SUM(C144:H144) -> 285
A145: Barnsley Metropolitan Borough Council | B145: 2012/13 | C145: 13 | D145: 190 | E145: 66 | F145: 2 | G145: N/A | H145: 1 | I145: =SUM(C145:H145) -> 272
A146: Barnsley Metropolitan Borough Council | B146: 2013/14 | C146: 13 | D146: 199 | E146: 3 | F146: 66 | G146: N/A | H146: 1 | I146: =SUM(C146:H146) -> 282
A147: Barnsley Metropolitan Borough Council | B147: 2014/15 | C147: 14 | D147: 207 | E147: 2 | F147: 54 | G147: N/A | H147: 1 | I147: =SUM(C147:H147) -> 278
A148: Barnsley Metropolitan Borough Council | B148: 2015/16 | C148: 15 | D148: 213 | E148: 2 | F148: 54 | G148: N/A | H148: 1 | I148: =SUM(C148:H148) -> 285
A149: Barnsley Metropolitan Borough Council | B149: 2016/17 | C149: 17 | D149: 205 | E149: 2 | F149: 51 | G149: N/A | H149: 1 | I149: =SUM(C149:H149) -> 276
A150: Barnsley Metropolitan Borough Council | B150: 2017/18 | C150: 16 | D150: 221 | E150: 1 | F150: 52 | G150: N/A | H150: 1 | I150: =SUM(C150:H150) -> 291
A151: Barnsley Metropolitan Borough Council | B151: 2018/19 | C151: 19 | D151: 232 | E151: 2 | F151: 52 | G151: N/A | H151: 1 | I151: =SUM(C151:H151) -> 306
A152: Barrow in Furness Borough Council | B152: 2009/10 | C152: 3 | D152: 65 | E152: 5 | F152: 5 | G152: 1 | H152: 0 | I152: =SUM(C152:H152) -> 79
A153: Barrow in Furness Borough Council | B153: 2010/11 | C153: 4 | D153: 79 | E153: 5 | F153: 16 | G153: 1 | H153: 0 | I153: =SUM(C153:H153) -> 105
A154: Barrow in Furness Borough Council | B154: 2011/12 | C154: 5 | D154: 77 | E154: 5 | F154: 15 | G154: 0 | H154: 0 | I154: =SUM(C154:H154) -> 102
A155: Barrow in Furness Borough Council | B155: 2012/13 | C155: 7 | D155: 93 | E155: 5 | F155: 16 | G155: N/A | H155: 0 | I155: =SUM(C155:H155) -> 121
A156: Barrow in Furness Borough Council | B156: 2013/14 | C156: 16 | D156: 93 | E156: 5 | F156: 16 | G156: N/A | H156: 0 | I156: =SUM(C156:H156) -> 130
A157: Barrow in Furness Borough Council | B157: 2014/15 | C157: 18 | D157: 93 | E157: 5 | F157: 14 | G157: N/A | H157: 0 | I157: =SUM(C157:H157) -> 130
A158: Barrow in Furness Borough Council | B158: 2015/16 | C158: 18 | D158: 93 | E158: 6 | F158: 13 | G158: N/A | H158: 0 | I158: =SUM(C158:H158) -> 130
A159: Barrow in Furness Borough Council | B159: 2016/17 | C159: 18 | D159: 93 | E159: 6 | F159: 13 | G159: N/A | H159: 0 | I159: =SUM(C159:H159) -> 130
A160: Barrow in Furness Borough Council | B160: 2017/18 | C160: 18 | D160: 92 | E160: 5 | F160: 14 | G160: N/A | H160: 0 | I160: =SUM(C160:H160) -> 129
A161: Barrow in Furness Borough Council | B161: 2018/19 | C161: 17 | D161: 73 | E161: 5 | F161: 14 | G161: N/A | H161: 0 | I161: =SUM(C161:H161) -> 109
A162: Basildon District Council | B162: 2009/10 | C162: 19 | D162: 31 | E162: 3 | F162: 13 | G162: 0 | H162: 0 | I162: =SUM(C162:H162) -> 66
A163: Basildon District Council | B163: 2010/11 | C163: 24 | D163: 39 | E163: 3 | F163: 15 | G163: 0 | H163: 0 | I163: =SUM(C163:H163) -> 81
A164: Basildon District Council | B164: 2011/12 | C164: 26 | D164: 50 | E164: 3 | F164: 25 | G164: 0 | H164: 0 | I164: =SUM(C164:H164) -> 104
A165: Basildon District Council | B165: 2012/13 | C165: 24 | D165: 42 | E165: 3 | F165: 27 | G165: N/A | H165: 0 | I165: =SUM(C165:H165) -> 96
A166: Basildon District Council | B166: 2013/14 | C166: 21 | D166: 46 | E166: 4 | F166: 28 | G166: N/A | H166: 0 | I166: =SUM(C166:H166) -> 99
A167: Basildon District Council | B167: 2014/15 | C167: 22 | D167: 50 | E167: 3 | F167: 25 | G167: N/A | H167: 0 | I167: =SUM(C167:H167) -> 100
A168: Basildon District Council | B168: 2015/16 | C168: 20 | D168: 50 | E168: 3 | F168: 25 | G168: N/A | H168: 0 | I168: =SUM(C168:H168) -> 98
A169: Basildon District Council | B169: 2016/17 | C169: 20 | D169: 51 | E169: 0 | F169: 0 | G169: N/A | H169: 0 | I169: =SUM(C169:H169) -> 71
A170: Basildon District Council | B170: 2017/18 | C170: 19 | D170: 36 | E170: 3 | F170: 23 | G170: N/A | H170: 0 | I170: =SUM(C170:H170) -> 81
A171: Basildon District Council | B171: 2018/19 | C171: 18 | D171: 35 | E171: 3 | F171: 22 | G171: N/A | H171: 0 | I171: =SUM(C171:H171) -> 78
A172: Basingstoke and Deane Borough Council | B172: 2009/10 | C172: 11 | D172: 44 | E172: 0 | F172: 13 | G172: 0 | H172: 0 | I172: =SUM(C172:H172) -> 68
A173: Basingstoke and Deane Borough Council | B173: 2010/11 | C173: 10 | D173: 65 | E173: 0 | F173: 17 | G173: 0 | H173: 0 | I173: =SUM(C173:H173) -> 92
A174: Basingstoke and Deane Borough Council | B174: 2011/12 | C174: 10 | D174: 71 | E174: 0 | F174: 21 | G174: 0 | H174: 0 | I174: =SUM(C174:H174) -> 102
A175: Basingstoke and Deane Borough Council | B175: 2012/13 | C175: 0 | D175: 73 | E175: 0 | F175: 21 | G175: N/A | H175: 0 | I175: =SUM(C175:H175) -> 94
A176: Basingstoke and Deane Borough Council | B176: 2013/14 | C176: 12 | D176: 77 | E176: 0 | F176: 21 | G176: N/A | H176: 0 | I176: =SUM(C176:H176) -> 110
A177: Basingstoke and Deane Borough Council | B177: 2014/15 | C177: 11 | D177: 1 | E177: 0 | F177: 21 | G177: N/A | H177: 0 | I177: =SUM(C177:H177) -> 33
A178: Basingstoke and Deane Borough Council | B178: 2015/16 | C178: 0 | D178: 79 | E178: 0 | F178: 21 | G178: N/A | H178: 0 | I178: =SUM(C178:H178) -> 100
A179: Basingstoke and Deane Borough Council | B179: 2016/17 | C179: 13 | D179: 73 | E179: 0 | F179: 18 | G179: N/A | H179: 0 | I179: =SUM(C179:H179) -> 104
A180: Basingstoke and Deane Borough Council | B180: 2017/18 | C180: 14 | D180: 70 | E180: 0 | F180: 17 | G180: N/A | H180: 0 | I180: =SUM(C180:H180) -> 101
A181: Basingstoke and Deane Borough Council | B181: 2018/19 | C181: 13 | D181: 68 | E181: 0 | F181: 18 | G181: N/A | H181: 0 | I181: =SUM(C181:H181) -> 99
A182: Bassetlaw District Council | B182: 2009/10 | C182: 10 | D182: 71 | E182: 1 | F182: 1 | G182: 2 | H182: 1 | I182: =SUM(C182:H182) -> 86
A183: Bassetlaw District Council | B183: 2010/11 | C183: 10 | D183: 84 | E183: 1 | F183: 5 | G183: 2 | H183: 1 | I183: =SUM(C183:H183) -> 103
A184: Bassetlaw District Council | B184: 2011/12 | C184: 10 | D184: 84 | E184: 3 | F184: 5 | G184: 2 | H184: 1 | I184: =SUM(C184:H184) -> 105
A185: Bassetlaw District Council | B185: 2012/13 | C185: 12 | D185: 74 | E185: 3 | F185: 6 | G185: N/A | H185: 1 | I185: =SUM(C185:H185) -> 96
A186: Bassetlaw District Council | B186: 2013/14 | C186: 12 | D186: 80 | E186: 3 | F186: 6 | G186: N/A | H186: 2 | I186: =SUM(C186:H186) -> 103
A187: Bassetlaw District Council | B187: 2014/15 | C187: 12 | D187: 80 | E187: 3 | F187: 6 | G187: N/A | H187: 1 | I187: =SUM(C187:H187) -> 102
A188: Bassetlaw District Council | B188: 2015/16 | C188: 12 | D188: 72 | E188: 3 | F188: 5 | G188: N/A | H188: 1 | I188: =SUM(C188:H188) -> 93
A189: Bassetlaw District Council | B189: 2016/17 | C189: 14 | D189: 73 | E189: 3 | F189: 5 | G189: N/A | H189: 1 | I189: =SUM(C189:H189) -> 96
A190: Bassetlaw District Council | B190: 2017/18 | C190: 13 | D190: 73 | E190: 3 | F190: 6 | G190: N/A | H190: 1 | I190: =SUM(C190:H190) -> 96
A191: Bassetlaw District Council | B191: 2018/19 | C191: 13 | D191: 69 | E191: 3 | F191: 6 | G191: N/A | H191: 1 | I191: =SUM(C191:H191) -> 92
A192: Bath and North East Somerset Council | B192: 2009/10 | C192: 8 | D192: 93 | E192: 0 | F192: 12 | G192: 0 | H192: 0 | I192: =SUM(C192:H192) -> 113
A193: Bath and North East Somerset Council | B193: 2010/11 | C193: 8 | D193: 100 | E193: 0 | F193: 16 | G193: 0 | H193: 0 | I193: =SUM(C193:H193) -> 124
A194: Bath and North East Somerset Council | B194: 2011/12 | C194: 9 | D194: 110 | E194: 0 | F194: 19 | G194: 0 | H194: 0 | I194: =SUM(C194:H194) -> 138
A195: Bath and North East Somerset Council | B195: 2012/13 | C195: 10 | D195: 113 | E195: 0 | F195: 20 | G195: N/A | H195: 0 | I195: =SUM(C195:H195) -> 143
A196: Bath and North East Somerset Council | B196: 2013/14 | C196: 10 | D196: 114 | E196: 0 | F196: 21 | G196: N/A | H196: 0 | I196: =SUM(C196:H196) -> 145
A197: Bath and North East Somerset Council | B197: 2014/15 | C197: 10 | D197: 98 | E197: 1 | F197: 17 | G197: N/A | H197: 0 | I197: =SUM(C197:H197) -> 126
A198: Bath and North East Somerset Council | B198: 2015/16 | C198: 11 | D198: 90 | E198: 1 | F198: 14 | G198: N/A | H198: 0 | I198: =SUM(C198:H198) -> 116
A199: Bath and North East Somerset Council | B199: 2016/17 | C199: 10 | D199: 91 | E199: 1 | F199: 12 | G199: N/A | H199: 0 | I199: =SUM(C199:H199) -> 114
A200: Bath and North East Somerset Council | B200: 2017/18 | C200: 10 | D200: 82 | E200: 1 | F200: 13 | G200: N/A | H200: 0 | I200: =SUM(C200:H200) -> 106
A201: Bath and North East Somerset Council | B201: 2018/19 | C201: 12 | D201: 90 | E201: 1 | F201: 12 | G201: N/A | H201: 0 | I201: =SUM(C201:H201) -> 115
A202: Bedford Borough Council | B202: 2009/10 | C202: 13 | D202: 98 | E202: 0 | F202: 12 | G202: 0 | H202: 111 | I202: =SUM(C202:H202) -> 234
A203: Bedford Borough Council | B203: 2010/11 | C203: 20 | D203: 148 | E203: 17 | F203: 0 | G203: 0 | H203: 0 | I203: =SUM(C203:H203) -> 185
A204: Bedford Borough Council | B204: 2011/12 | C204: 21 | D204: 133 | E204: 15 | F204: 0 | G204: 0 | H204: 0 | I204: =SUM(C204:H204) -> 169
A205: Bedford Borough Council | B205: 2012/13 | C205: 12 | D205: 89 | E205: 0 | F205: 17 | G205: N/A | H205: 0 | I205: =SUM(C205:H205) -> 118
A206: Bedford Borough Council | B206: 2013/14 | C206: 15 | D206: 89 | E206: 0 | F206: 17 | G206: N/A | H206: 0 | I206: =SUM(C206:H206) -> 121
... 3606 more rows

Sheet 3. NOTICES
B1: Gambling Commission
B2: Local authority statistics - 01 April 2009 - 31 March 2019
A4: 3 Notices
A7: OUN - Occasional Use Notices TUN - Temporary Use Notices See Appendix A for the defnition of these terms
A8: Occasional Use Notices | B8: 2009/10 | C8: 2010/11 | D8: 2011/12 | E8: 2012/13 | F8: 2013/14 | G8: 2014/15 | H8: 2015/16 | I8: 2016/17 | J8: 2017/18 | K8: 2018/19
A9: Received | B9: 375 | C9: 450 | D9: 507 | E9: 465 | F9: 481 | G9: 343 | H9: 400 | I9: 327 | J9: 394 | K9: 465
A10: Number of Days | B10: 444 | C10: 539 | D10: 581 | E10: 585 | F10: 558 | G10: 421 | H10: 519 | I10: 363 | J10: 458 | K10: 465
A12: Temporary Use Notices | B12: 2009/10 | C12: 2010/11 | D12: 2011/12 | E12: 2012/13 | F12: 2013/14 | G12: 2014/15 | H12: 2015/16 | I12: 2016/17 | J12: 2017/18 | K12: 2018/19
A13: Received | B13: 18 | C13: 9 | D13: 10 | E13: 10 | F13: 7 | G13: 6 | H13: 14 | I13: 3 | J13: 9 | K13: 9
A14: Number of Days | B14: 48 | C14: 51 | D14: 46 | E14: 49 | F14: 42 | G14: 27 | H14: 50 | I14: 20 | J14: 21 | K14: 33
C16: Period Ending 31 March
A17: Licensing Authority | B17: Year | C17: OUNs Submitted | D17: Number of OUN Days | E17: TUNs Submitted | F17: Number of TUN Days
A18: Aberdeen City Council | B18: 2009/10 | C18: 0 | D18: 0 | E18: 0 | F18: 0
A19: Aberdeen City Council | B19: 2010/11 | C19: 0 | D19: 0 | E19: 0 | F19: 0
A20: Aberdeen City Council | B20: 2011/12 | C20: 0 | D20: 0 | E20: 0 | F20: 0
A21: Aberdeen City Council | B21: 2012/13 | C21: 1 | D21: 1 | E21: 0 | F21: 0
A22: Aberdeen City Council | B22: 2013/14 | C22: 1 | D22: 1 | E22: 0 | F22: 0
A23: Aberdeen City Council | B23: 2014/15 | C23: 1 | D23: 1 | E23: 0 | F23: 0
A24: Aberdeen City Council | B24: 2015/16 | C24: 0 | D24: 0 | E24: 0 | F24: 0
A25: Aberdeen City Council | B25: 2016/17 | C25: 0 | D25: 0 | E25: 0 | F25: 0
A26: Aberdeen City Council | B26: 2017/18 | C26: 0 | D26: 0 | E26: 1 | F26: 1
A27: Aberdeen City Council | B27: 2018/19 | C27: 0 | D27: 0 | E27: 1 | F27: 1
A28: Aberdeenshire Council | B28: 2009/10 | C28: 0 | D28: 0 | E28: 0 | F28: 0
A29: Aberdeenshire Council | B29: 2010/11 | C29: 0 | D29: 0 | E29: 0 | F29: 0
A30: Aberdeenshire Council | B30: 2011/12 | C30: 0 | D30: 0 | E30: 0 | F30: 0
A31: Aberdeenshire Council | B31: 2012/13 | C31: 0 | D31: 0 | E31: 0 | F31: 0
A32: Aberdeenshire Council | B32: 2013/14 | C32: 0 | D32: 0 | E32: 0 | F32: 0
A33: Aberdeenshire Council | B33: 2014/15 | C33: 0 | D33: 0 | E33: 0 | F33: 0
A34: Aberdeenshire Council | B34: 2015/16 | C34: 0 | D34: 0 | E34: 0 | F34: 0
A35: Aberdeenshire Council | B35: 2016/17 | C35: 0 | D35: 0 | E35: 0 | F35: 0
A36: Aberdeenshire Council | B36: 2017/18 | C36: 0 | D36: 0 | E36: 0 | F36: 0
A37: Aberdeenshire Council | B37: 2018/19 | C37: 0 | D37: 0 | E37: 0 | F37: 0
A38: Adur District Council | B38: 2009/10 | C38: 0 | D38: 0 | E38: 0 | F38: 0
A39: Adur District Council | B39: 2010/11 | C39: 0 | D39: 0 | E39: 0 | F39: 0
A40: Adur District Council | B40: 2011/12 | C40: 0 | D40: 0 | E40: 0 | F40: 0
A41: Adur District Council | B41: 2012/13 | C41: 0 | D41: 0 | E41: 0 | F41: 0
A42: Adur District Council | B42: 2013/14 | C42: 0 | D42: 0 | E42: 0 | F42: 0
A43: Adur District Council | B43: 2014/15 | C43: 0 | D43: 0 | E43: 0 | F43: 0
A44: Adur District Council | B44: 2015/16 | C44: 0 | D44: 0 | E44: 0 | F44: 0
A45: Adur District Council | B45: 2016/17 | C45: 0 | D45: 0 | E45: 0 | F45: 0
A46: Adur District Council | B46: 2017/18 | C46: 0 | D46: 0 | E46: 0 | F46: 0
A47: Adur District Council | B47: 2018/19 | C47: 0 | D47: 0 | E47: 0 | F47: 0
A48: Allerdale Borough Council | B48: 2009/10 | C48: 23 | D48: 23 | E48: 0 | F48: 0
A49: Allerdale Borough Council | B49: 2010/11 | C49: 46 | D49: 46 | E49: 0 | F49: 0
A50: Allerdale Borough Council | B50: 2011/12 | C50: 51 | D50: 51 | E50: 0 | F50: 0
A51: Allerdale Borough Council | B51: 2012/13 | C51: 48 | D51: 48 | E51: 0 | F51: 0
A52: Allerdale Borough Council | B52: 2013/14 | C52: 82 | D52: 82 | E52: 0 | F52: 0
A53: Allerdale Borough Council | B53: 2014/15 | C53: 15 | D53: 15 | E53: 0 | F53: 0
A54: Allerdale Borough Council | B54: 2015/16 | C54: 3 | D54: 54 | E54: 0 | F54: 0
A55: Allerdale Borough Council | B55: 2016/17 | C55: 3 | D55: 3 | E55: 0 | F55: 0
A56: Allerdale Borough Council | B56: 2017/18 | C56: 47 | D56: 47 | E56: 0 | F56: 0
A57: Allerdale Borough Council | B57: 2018/19 | C57: 60 | D57: 60 | E57: 0 | F57: 0
A58: Amber Valley Borough Council | B58: 2009/10 | C58: 0 | D58: 0 | E58: 0 | F58: 0
A59: Amber Valley Borough Council | B59: 2010/11 | C59: 0 | D59: 0 | E59: 0 | F59: 0
A60: Amber Valley Borough Council | B60: 2011/12 | C60: 0 | D60: 0 | E60: 0 | F60: 0
A61: Amber Valley Borough Council | B61: 2012/13 | C61: 0 | D61: 0 | E61: 0 | F61: 0
A62: Amber Valley Borough Council | B62: 2013/14 | C62: 0 | D62: 0 | E62: 0 | F62: 0
A63: Amber Valley Borough Council | B63: 2014/15 | C63: 0 | D63: 0 | E63: 0 | F63: 0
A64: Amber Valley Borough Council | B64: 2015/16 | C64: 0 | D64: 0 | E64: 0 | F64: 0
A65: Amber Valley Borough Council | B65: 2016/17 | C65: 0 | D65: 0 | E65: 0 | F65: 0
A66: Amber Valley Borough Council | B66: 2017/18 | C66: 0 | D66: 0 | E66: 0 | F66: 0
A67: Amber Valley Borough Council | B67: 2018/19 | C67: 0 | D67: 0 | E67: 0 | F67: 0
A68: Angus Council | B68: 2009/10 | C68: 0 | D68: 0 | E68: 0 | F68: 0
A69: Angus Council | B69: 2010/11 | C69: 0 | D69: 0 | E69: 0 | F69: 0
A70: Angus Council | B70: 2011/12 | C70: 0 | D70: 0 | E70: 0 | F70: 0
A71: Angus Council | B71: 2012/13 | C71: 0 | D71: 0 | E71: 0 | F71: 0
A72: Angus Council | B72: 2013/14 | C72: 0 | D72: 0 | E72: 0 | F72: 0
A73: Angus Council | B73: 2014/15 | C73: 0 | D73: 0 | E73: 0 | F73: 0
A74: Angus Council | B74: 2015/16 | C74: 0 | D74: 0 | E74: 0 | F74: 0
A75: Angus Council | B75: 2016/17 | C75: 0 | D75: 0 | E75: 0 | F75: 0
A76: Angus Council | B76: 2017/18 | C76: 0 | D76: 0 | E76: 0 | F76: 0
A77: Angus Council | B77: 2018/19 | C77: 0 | D77: 0 | E77: 0 | F77: 0
A78: Argyll & Bute Council | B78: 2009/10 | C78: 0 | D78: 0 | E78: 0 | F78: 0
A79: Argyll & Bute Council | B79: 2010/11 | C79: 0 | D79: 0 | E79: 0 | F79: 0
A80: Argyll & Bute Council | B80: 2011/12 | C80: 0 | D80: 0 | E80: 0 | F80: 0
A81: Argyll & Bute Council | B81: 2012/13 | C81: 0 | D81: 0 | E81: 0 | F81: 0
A82: Argyll & Bute Council | B82: 2013/14 | C82: 0 | D82: 0 | E82: 0 | F82: 0
A83: Argyll & Bute Council | B83: 2014/15 | C83: 0 | D83: 0 | E83: 0 | F83: 0
A84: Argyll & Bute Council | B84: 2015/16 | C84: 0 | D84: 0 | E84: 0 | F84: 0
A85: Argyll & Bute Council | B85: 2016/17 | C85: 0 | D85: 0 | E85: 0 | F85: 0
A86: Argyll & Bute Council | B86: 2017/18 | C86: 0 | D86: 0 | E86: 0 | F86: 0
A87: Argyll & Bute Council | B87: 2018/19 | C87: 0 | D87: 0 | E87: 0 | F87: 0
A88: Arun District Council | B88: 2009/10 | C88: 1 | D88: 1 | E88: 0 | F88: 0
A89: Arun District Council | B89: 2010/11 | C89: 0 | D89: 0 | E89: 0 | F89: 0
A90: Arun District Council | B90: 2011/12 | C90: 0 | D90: 0 | E90: 0 | F90: 0
A91: Arun District Council | B91: 2012/13 | C91: 0 | D91: 0 | E91: 0 | F91: 0
A92: Arun District Council | B92: 2013/14 | C92: 0 | D92: 0 | E92: 0 | F92: 0
A93: Arun District Council | B93: 2014/15 | C93: 0 | D93: 0 | E93: 0 | F93: 0
A94: Arun District Council | B94: 2015/16 | C94: 0 | D94: 0 | E94: 0 | F94: 0
A95: Arun District Council | B95: 2016/17 | C95: 0 | D95: 0 | E95: 0 | F95: 0
A96: Arun District Council | B96: 2017/18 | C96: 0 | D96: 0 | E96: 0 | F96: 0
A97: Arun District Council | B97: 2018/19 | C97: 0 | D97: 0 | E97: 0 | F97: 0
A98: Ashfield District Council | B98: 2009/10 | C98: 0 | D98: 0 | E98: 0 | F98: 0
A99: Ashfield District Council | B99: 2010/11 | C99: 0 | D99: 0 | E99: 0 | F99: 0
A100: Ashfield District Council | B100: 2011/12 | C100: 0 | D100: 0 | E100: 0 | F100: 0
A101: Ashfield District Council | B101: 2012/13 | C101: 0 | D101: 0 | E101: 0 | F101: 0
A102: Ashfield District Council | B102: 2013/14 | C102: 0 | D102: 0 | E102: 0 | F102: 0
A103: Ashfield District Council | B103: 2014/15 | C103: 0 | D103: 0 | E103: 0 | F103: 0
A104: Ashfield District Council | B104: 2015/16 | C104: 0 | D104: 0 | E104: 0 | F104: 0
A105: Ashfield District Council | B105: 2016/17 | C105: 0 | D105: 0 | E105: 0 | F105: 0
A106: Ashfield District Council | B106: 2017/18 | C106: 0 | D106: 0 | E106: 0 | F106: 0
A107: Ashfield District Council | B107: 2018/19 | C107: 0 | D107: 0 | E107: 0 | F107: 0
A108: Ashford Borough Council | B108: 2009/10 | C108: 3 | D108: 3 | E108: 0 | F108: 0
A109: Ashford Borough Council | B109: 2010/11 | C109: 3 | D109: 3 | E109: 0 | F109: 0
A110: Ashford Borough Council | B110: 2011/12 | C110: 2 | D110: 2 | E110: 0 | F110: 0
A111: Ashford Borough Council | B111: 2012/13 | C111: 3 | D111: 3 | E111: 0 | F111: 0
A112: Ashford Borough Council | B112: 2013/14 | C112: 1 | D112: 1 | E112: 0 | F112: 0
A113: Ashford Borough Council | B113: 2014/15 | C113: 1 | D113: 2 | E113: 0 | F113: 0
A114: Ashford Borough Council | B114: 2015/16 | C114: 0 | D114: 0 | E114: 0 | F114: 0
A115: Ashford Borough Council | B115: 2016/17 | C115: 0 | D115: 0 | E115: 0 | F115: 0
A116: Ashford Borough Council | B116: 2017/18 | C116: 1 | D116: 1 | E116: 0 | F116: 0
A117: Ashford Borough Council | B117: 2018/19 | C117: 2 | D117: 2 | E117: 0 | F117: 0
A118: Aylesbury Vale District Council | B118: 2009/10 | C118: 0 | D118: 0 | E118: 0 | F118: 0
A119: Aylesbury Vale District Council | B119: 2010/11 | C119: 0 | D119: 0 | E119: 0 | F119: 0
A120: Aylesbury Vale District Council | B120: 2011/12 | C120: 0 | D120: 0 | E120: 0 | F120: 0
A121: Aylesbury Vale District Council | B121: 2012/13 | C121: 0 | D121: 0 | E121: 0 | F121: 0
A122: Aylesbury Vale District Council | B122: 2013/14 | C122: 1 | D122: 1 | E122: 0 | F122: 0
A123: Aylesbury Vale District Council | B123: 2014/15 | C123: 1 | D123: 1 | E123: 0 | F123: 0
A124: Aylesbury Vale District Council | B124: 2015/16 | C124: 1 | D124: 1 | E124: 0 | F124: 0
A125: Aylesbury Vale District Council | B125: 2016/17 | C125: 0 | D125: 0 | E125: 0 | F125: 0
A126: Aylesbury Vale District Council | B126: 2017/18 | C126: 0 | D126: 0 | E126: 0 | F126: 0
A127: Aylesbury Vale District Council | B127: 2018/19 | C127: 0 | D127: 0 | E127: 0 | F127: 0
A128: Babergh District Council | B128: 2009/10 | C128: 0 | D128: 0 | E128: 0 | F128: 0
A129: Babergh District Council | B129: 2010/11 | C129: 1 | D129: 4 | E129: 0 | F129: 0
A130: Babergh District Council | B130: 2011/12 | C130: 1 | D130: 4 | E130: 0 | F130: 0
A131: Babergh District Council | B131: 2012/13 | C131: 1 | D131: 5 | E131: 0 | F131: 0
A132: Babergh District Council | B132: 2013/14 | C132: 1 | D132: 3 | E132: 0 | F132: 0
A133: Babergh District Council | B133: 2014/15 | C133: 1 | D133: 4 | E133: 0 | F133: 0
A134: Babergh District Council | B134: 2015/16 | C134: 1 | D134: 4 | E134: 0 | F134: 0
A135: Babergh District Council | B135: 2016/17 | C135: 1 | D135: 4 | E135: 0 | F135: 0
A136: Babergh District Council | B136: 2017/18 | C136: 1 | D136: 3 | E136: 0 | F136: 0
A137: Babergh District Council | B137: 2018/19 | C137: 3 | D137: 3 | E137: 0 | F137: 0
A138: Barnsley Metropolitan Borough Council | B138: 2009/10 | C138: 0 | D138: 0 | E138: 0 | F138: 0
A139: Barnsley Metropolitan Borough Council | B139: 2010/11 | C139: 0 | D139: 0 | E139: 0 | F139: 0
A140: Barnsley Metropolitan Borough Council | B140: 2011/12 | C140: 0 | D140: 0 | E140: 0 | F140: 0
A141: Barnsley Metropolitan Borough Council | B141: 2012/13 | C141: 0 | D141: 0 | E141: 0 | F141: 0
A142: Barnsley Metropolitan Borough Council | B142: 2013/14 | C142: 0 | D142: 0 | E142: 0 | F142: 0
A143: Barnsley Metropolitan Borough Council | B143: 2014/15 | C143: 0 | D143: 0 | E143: 0 | F143: 0
A144: Barnsley Metropolitan Borough Council | B144: 2015/16 | C144: 0 | D144: 0 | E144: 0 | F144: 0
A145: Barnsley Metropolitan Borough Council | B145: 2016/17 | C145: 0 | D145: 0 | E145: 0 | F145: 0
A146: Barnsley Metropolitan Borough Council | B146: 2017/18 | C146: 0 | D146: 0 | E146: 0 | F146: 0
A147: Barnsley Metropolitan Borough Council | B147: 2018/19 | C147: 0 | D147: 0 | E147: 0 | F147: 0
A148: Barrow in Furness Borough Council | B148: 2009/10 | C148: 4 | D148: 4 | E148: 0 | F148: 0
A149: Barrow in Furness Borough Council | B149: 2010/11 | C149: 8 | D149: 8 | E149: 0 | F149: 0
A150: Barrow in Furness Borough Council | B150: 2011/12 | C150: 7 | D150: 7 | E150: 0 | F150: 0
A151: Barrow in Furness Borough Council | B151: 2012/13 | C151: 1 | D151: 7 | E151: 0 | F151: 0
A152: Barrow in Furness Borough Council | B152: 2013/14 | C152: 0 | D152: 0 | E152: 0 | F152: 0
A153: Barrow in Furness Borough Council | B153: 2014/15 | C153: 0 | D153: 0 | E153: 0 | F153: 0
A154: Barrow in Furness Borough Council | B154: 2015/16 | C154: 0 | D154: 0 | E154: 0 | F154: 0
A155: Barrow in Furness Borough Council | B155: 2016/17 | C155: 0 | D155: 0 | E155: 0 | F155: 0
A156: Barrow in Furness Borough Council | B156: 2017/18 | C156: 0 | D156: 0 | E156: 0 | F156: 0
A157: Barrow in Furness Borough Council | B157: 2018/19 | C157: 0 | D157: 0 | E157: 0 | F157: 0
A158: Basildon District Council | B158: 2009/10 | C158: 0 | D158: 0 | E158: 0 | F158: 0
A159: Basildon District Council | B159: 2010/11 | C159: 0 | D159: 0 | E159: 0 | F159: 0
A160: Basildon District Council | B160: 2011/12 | C160: 0 | D160: 0 | E160: 0 | F160: 0
A161: Basildon District Council | B161: 2012/13 | C161: 0 | D161: 0 | E161: 0 | F161: 0
A162: Basildon District Council | B162: 2013/14 | C162: 0 | D162: 0 | E162: 0 | F162: 0
A163: Basildon District Council | B163: 2014/15 | C163: 0 | D163: 0 | E163: 0 | F163: 0
A164: Basildon District Council | B164: 2015/16 | C164: 0 | D164: 0 | E164: 0 | F164: 0
A165: Basildon District Council | B165: 2016/17 | C165: 0 | D165: 0 | E165: 0 | F165: 0
A166: Basildon District Council | B166: 2017/18 | C166: 0 | D166: 0 | E166: 0 | F166: 0
A167: Basildon District Council | B167: 2018/19 | C167: 0 | D167: 0 | E167: 0 | F167: 0
A168: Basingstoke and Deane Borough Council | B168: 2009/10 | C168: 2 | D168: 5 | E168: 0 | F168: 0
A169: Basingstoke and Deane Borough Council | B169: 2010/11 | C169: 3 | D169: 3 | E169: 0 | F169: 0
A170: Basingstoke and Deane Borough Council | B170: 2011/12 | C170: 2 | D170: 2 | E170: 0 | F170: 0
A171: Basingstoke and Deane Borough Council | B171: 2012/13 | C171: 1 | D171: 1 | E171: 0 | F171: 0
A172: Basingstoke and Deane Borough Council | B172: 2013/14 | C172: 3 | D172: 3 | E172: 0 | F172: 0
A173: Basingstoke and Deane Borough Council | B173: 2014/15 | C173: 2 | D173: 2 | E173: 0 | F173: 0
A174: Basingstoke and Deane Borough Council | B174: 2015/16 | C174: 1 | D174: 1 | E174: 0 | F174: 0
A175: Basingstoke and Deane Borough Council | B175: 2016/17 | C175: 1 | D175: 1 | E175: 0 | F175: 0
A176: Basingstoke and Deane Borough Council | B176: 2017/18 | C176: 1 | D176: 1 | E176: 0 | F176: 0
A177: Basingstoke and Deane Borough Council | B177: 2018/19 | C177: 0 | D177: 0 | E177: 0 | F177: 0
A178: Bassetlaw District Council | B178: 2009/10 | C178: 1 | D178: 1 | E178: 0 | F178: 0
A179: Bassetlaw District Council | B179: 2010/11 | C179: 1 | D179: 1 | E179: 0 | F179: 0
A180: Bassetlaw District Council | B180: 2011/12 | C180: 1 | D180: 1 | E180: 0 | F180: 0
A181: Bassetlaw District Council | B181: 2012/13 | C181: 0 | D181: 0 | E181: 0 | F181: 0
A182: Bassetlaw District Council | B182: 2013/14 | C182: 0 | D182: 0 | E182: 0 | F182: 0
A183: Bassetlaw District Council | B183: 2014/15 | C183: 0 | D183: 0 | E183: 0 | F183: 0
A184: Bassetlaw District Council | B184: 2015/16 | C184: 0 | D184: 0 | E184: 0 | F184: 0
A185: Bassetlaw District Council | B185: 2016/17 | C185: 0 | D185: 0 | E185: 0 | F185: 0
A186: Bassetlaw District Council | B186: 2017/18 | C186: 0 | D186: 0 | E186: 0 | F186: 0
A187: Bassetlaw District Council | B187: 2018/19 | C187: 0 | D187: 0 | E187: 0 | F187: 0
A188: Bath and North East Somerset Council | B188: 2009/10 | C188: 0 | D188: 0 | E188: 0 | F188: 0
A189: Bath and North East Somerset Council | B189: 2010/11 | C189: 0 | D189: 0 | E189: 0 | F189: 0
A190: Bath and North East Somerset Council | B190: 2011/12 | C190: 0 | D190: 0 | E190: 0 | F190: 0
A191: Bath and North East Somerset Council | B191: 2012/13 | C191: 0 | D191: 0 | E191: 0 | F191: 0
A192: Bath and North East Somerset Council | B192: 2013/14 | C192: 0 | D192: 0 | E192: 0 | F192: 0
A193: Bath and North East Somerset Council | B193: 2014/15 | C193: 0 | D193: 0 | E193: 0 | F193: 0
A194: Bath and North East Somerset Council | B194: 2015/16 | C194: 0 | D194: 0 | E194: 0 | F194: 0
A195: Bath and North East Somerset Council | B195: 2016/17 | C195: 2 | D195: 2 | E195: 0 | F195: 0
A196: Bath and North East Somerset Council | B196: 2017/18 | C196: 2 | D196: 2 | E196: 0 | F196: 0
A197: Bath and North East Somerset Council | B197: 2018/19 | C197: 0 | D197: 0 | E197: 0 | F197: 0
A198: Bedford Borough Council | B198: 2009/10 | C198: 0 | D198: 0 | E198: 0 | F198: 0
A199: Bedford Borough Council | B199: 2010/11 | C199: 0 | D199: 0 | E199: 0 | F199: 0
A200: Bedford Borough Council | B200: 2011/12 | C200: 0 | D200: 0 | E200: 0 | F200: 0
A201: Bedford Borough Council | B201: 2012/13 | C201: 0 | D201: 0 | E201: 0 | F201: 0
A202: Bedford Borough Council | B202: 2013/14 | C202: 0 | D202: 0 | E202: 0 | F202: 0
A203: Bedford Borough Council | B203: 2014/15 | C203: 0 | D203: 0 | E203: 0 | F203: 0
A204: Bedford Borough Council | B204: 2015/16 | C204: 0 | D204: 0 | E204: 0 | F204: 0
A205: Bedford Borough Council | B205: 2016/17 | C205: 0 | D205: 0 | E205: 0 | F205: 0
... 3605 more rows

Sheet 4. INSPECTIONS & TEST PURCHASES
B1: Gambling Commission
B2: Local authority statistics - 01 April 2009 - 31 March 2019
A4: 4 Inspections (including test purchase visits)
A7: Sector | B7: Apr 2009 Mar 2010 | C7: Apr 2010 Mar 2011 | D7: Apr 2011 Mar 2012 | E7: Apr 2012 Mar 2013 | F7: Apr 2013 Mar 2014 | G7: Apr 2014 Mar 2015 | H7: Apr 2015 Mar 2016 | I7: Apr 2016 Mar 2017 | J7: Apr 2017 Mar 2018 | K7: Apr 2018 Mar 2019
A8: Betting | B8: 1946 | C8: 2013 | D8: 1875 | E8: 2249 | F8: 2937 | G8: 2228 | H8: 2239 | I8: 2304 | J8: 2430 | K8: 2373
A9: Other | B9: 3709 | C9: 3207 | D9: 4587 | E9: 3437 | F9: 2236 | G9: 2442 | H9: 2353 | I9: 1934 | J9: 1431 | K9: 1808
A10: AGC | B10: 748 | C10: 995 | D10: 638 | E10: 597 | F10: 619 | G10: 512 | H10: 535 | I10: 591 | J10: 598 | K10: 483
A11: FEC | B11: 235 | C11: 278 | D11: 187 | E11: 255 | F11: 340 | G11: 271 | H11: 282 | I11: 244 | J11: 317 | K11: 210
A12: Bingo | B12: 175 | C12: 203 | D12: 203 | E12: 133 | F12: 132 | G12: 156 | H12: 132 | I12: 171 | J12: 171 | K12: 147
A13: Casino | B13: 32 | C13: 39 | D13: 50 | E13: 46 | F13: 58 | G13: 40 | H13: 43 | I13: 54 | J13: 49 | K13: 39
A14: Tracks | B14: 57 | C14: 40 | D14: 56 | E14: 42 | F14: 45 | G14: 45 | H14: 43 | I14: 36 | J14: 38 | K14: 38
A15: Totals | B15: =SUM(B8:B14) -> 6902 | C15: =SUM(C8:C14) -> 6775 | D15: =SUM(D8:D14) -> 7596 | E15: =SUM(E8:E14) -> 6759 | F15: =SUM(F8:F14) -> 6367 | G15: =SUM(G8:G14) -> 5694 | H15: =SUM(H8:H14) -> 5627 | I15: =SUM(I8:I14) -> 5334 | J15: =SUM(J8:J14) -> 5034 | K15: =SUM(K8:K14) -> 5098
A16: Total % Change | C16: =SUM(C15-B15)/B15 -> -0.01840046363 | D16: =SUM(D15-C15)/C15 -> 0.1211808118 | E16: =SUM(E15-D15)/D15 -> -0.1101895735 | F16: =SUM(F15-E15)/E15 -> -0.05799674508 | G16: =SUM(G15-F15)/F15 -> -0.1057012722 | H16: =SUM(H15-G15)/G15 -> -0.01176677204 | I16: =SUM(I15-H15)/H15 -> -0.05207037498 | J16: =SUM(J15-I15)/I15 -> -0.05624296963 | K16: =SUM(K15-J15)/J15 -> 0.01271354787
A18: Type | B18: Apr 2009 Mar 2010 | C18: Apr 2010 Mar 2011 | D18: Apr 2011 Mar 2012 | E18: Apr 2012 Mar 2013 | F18: Apr 2013 Mar 2014 | G18: Apr 2014 Mar 2015 | H18: Apr 2015 Mar 2016 | I18: Apr 2016 Mar 2017 | J18: Apr 2017 Mar 2018 | K18: Apr 2018 Mar 2019
A19: Pre-Planned Inspections | B19: 5905 | C19: 5691 | D19: 6500 | E19: 5961 | F19: 5707 | G19: 5144 | H19: 5057 | I19: 4881 | J19: 4576 | K19: 4642
A20: Follow up Inspections | B20: 523 | C20: 559 | D20: 491 | E20: 303 | F20: 174 | G20: 134 | H20: 245 | I20: 209 | J20: 201 | K20: 159
A21: Inspections Following Complaints | B21: 269 | C21: 321 | D21: 399 | E21: 397 | F21: 291 | G21: 300 | H21: 209 | I21: 173 | J21: 178 | K21: 157
A22: Test Purchasing Inspections | B22: 205 | C22: 204 | D22: 206 | E22: 98 | F22: 195 | G22: 116 | H22: 116 | I22: 71 | J22: 79 | K22: 140
A23: Totals | B23: =SUM(B19:B22) -> 6902 | C23: =SUM(C19:C22) -> 6775 | D23: =SUM(D19:D22) -> 7596 | E23: =SUM(E19:E22) -> 6759 | F23: =SUM(F19:F22) -> 6367 | G23: =SUM(G19:G22) -> 5694 | H23: =SUM(H19:H22) -> 5627 | I23: =SUM(I19:I22) -> 5334 | J23: =SUM(J19:J22) -> 5034 | K23: =SUM(K19:K22) -> 5098
C25: Adult gaming centres | G25: Betting premises | K25: Bingo | O25: Casino | S25: Family entertainment centres | W25: Other | AA25: Tracks
A26: Licensing Authority | B26: Year | C26: Pre Planned | D26: Following Complaint | E26: Follow Up | F26: Test Purchasing | G26: Pre Planned | H26: Following Complaint | I26: Follow Up | J26: Test Purchasing | K26: Pre Planned | L26: Following Complaint | M26: Follow Up | N26: Test Purchasing | O26: Pre Planned | P26: Following Complaint | Q26: Follow Up | R26: Test Purchasing | S26: Pre Planned | T26: Following Complaint | U26: Follow Up | V26: Test Purchasing | W26: Pre Planned | X26: Following Complaint | Y26: Follow Up | Z26: Test Purchasing | AA26: Pre Planned | AB26: Following Complaint | AC26: Follow Up | AD26: Test Purchasing | AE26: Total Visits
A27: Aberdeen City Council | B27: 2009/10 | C27: 0 | D27: 0 | E27: 0 | F27: 0 | G27: 0 | H27: 0 | I27: 0 | J27: 0 | K27: 0 | L27: 0 | M27: 0 | N27: 0 | O27: 0 | P27: 0 | Q27: 0 | R27: 0 | S27: 0 | T27: 0 | U27: 0 | V27: 0 | W27: 0 | X27: 0 | Y27: 0 | Z27: 0 | AA27: 0 | AB27: 0 | AC27: 0 | AD27: 0 | AE27: 0
A28: Aberdeen City Council | B28: 2010/11 | C28: 0 | D28: 0 | E28: 0 | F28: 0 | G28: 0 | H28: 0 | I28: 0 | J28: 0 | K28: 0 | L28: 0 | M28: 0 | N28: 0 | O28: 0 | P28: 0 | Q28: 0 | R28: 0 | S28: 0 | T28: 0 | U28: 0 | V28: 0 | W28: 0 | X28: 0 | Y28: 0 | Z28: 0 | AA28: 0 | AB28: 0 | AC28: 0 | AD28: 0 | AE28: 0
A29: Aberdeen City Council | B29: 2011/12 | C29: 0 | D29: 0 | E29: 0 | F29: 0 | G29: 0 | H29: 0 | I29: 0 | J29: 0 | K29: 0 | L29: 0 | M29: 0 | N29: 0 | O29: 0 | P29: 0 | Q29: 0 | R29: 0 | S29: 0 | T29: 0 | U29: 0 | V29: 0 | W29: 0 | X29: 0 | Y29: 0 | Z29: 0 | AA29: 0 | AB29: 0 | AC29: 0 | AD29: 0 | AE29: 0
A30: Aberdeen City Council | B30: 2012/13 | C30: 0 | D30: 0 | E30: 0 | F30: 0 | G30: 0 | H30: 0 | I30: 0 | J30: 0 | K30: 0 | L30: 0 | M30: 0 | N30: 0 | O30: 0 | P30: 0 | Q30: 0 | R30: 0 | S30: 0 | T30: 0 | U30: 0 | V30: 0 | W30: 0 | X30: 0 | Y30: 0 | Z30: 0 | AA30: 0 | AB30: 0 | AC30: 0 | AD30: 0 | AE30: 0
A31: Aberdeen City Council | B31: 2013/14 | C31: 0 | D31: 0 | E31: 0 | F31: 0 | G31: 0 | H31: 0 | I31: 0 | J31: 0 | K31: 0 | L31: 0 | M31: 0 | N31: 0 | O31: 0 | P31: 0 | Q31: 0 | R31: 0 | S31: 0 | T31: 0 | U31: 0 | V31: 0 | W31: 0 | X31: 0 | Y31: 0 | Z31: 0 | AA31: 0 | AB31: 0 | AC31: 0 | AD31: 0 | AE31: 0
A32: Aberdeen City Council | B32: 2014/15 | C32: 0 | D32: 1 | E32: 1 | F32: 0 | G32: 0 | H32: 0 | I32: 0 | J32: 0 | K32: 0 | L32: 0 | M32: 0 | N32: 0 | O32: 0 | P32: 0 | Q32: 0 | R32: 0 | S32: 0 | T32: 0 | U32: 0 | V32: 0 | W32: 0 | X32: 1 | Y32: 1 | Z32: 0 | AA32: 0 | AB32: 0 | AC32: 0 | AD32: 0 | AE32: 4
A33: Aberdeen City Council | B33: 2015/16 | C33: 0 | D33: 0 | E33: 0 | F33: 0 | G33: 0 | H33: 0 | I33: 0 | J33: 0 | K33: 0 | L33: 0 | M33: 0 | N33: 0 | O33: 0 | P33: 0 | Q33: 0 | R33: 0 | S33: 0 | T33: 0 | U33: 0 | V33: 0 | W33: 0 | X33: 0 | Y33: 0 | Z33: 0 | AA33: 0 | AB33: 0 | AC33: 0 | AD33: 0 | AE33: 0
A34: Aberdeen City Council | B34: 2016/17 | C34: 0 | D34: 0 | E34: 0 | F34: 0 | G34: 0 | H34: 0 | I34: 0 | J34: 0 | K34: 0 | L34: 0 | M34: 0 | N34: 0 | O34: 0 | P34: 0 | Q34: 0 | R34: 0 | S34: 0 | T34: 1 | U34: 0 | V34: 0 | W34: 0 | X34: 0 | Y34: 0 | Z34: 0 | AA34: 0 | AB34: 0 | AC34: 0 | AD34: 0 | AE34: 1
A35: Aberdeen City Council | B35: 2017/18 | C35: 0 | D35: 0 | E35: 0 | F35: 0 | G35: 0 | H35: 0 | I35: 0 | J35: 0 | K35: 0 | L35: 0 | M35: 0 | N35: 0 | O35: 0 | P35: 0 | Q35: 0 | R35: 0 | S35: 0 | T35: 1 | U35: 1 | V35: 0 | W35: 0 | X35: 0 | Y35: 0 | Z35: 0 | AA35: 0 | AB35: 0 | AC35: 0 | AD35: 0 | AE35: 2
A36: Aberdeen City Council | B36: 2018/19 | C36: 0 | D36: 0 | E36: 0 | F36: 0 | G36: 0 | H36: 0 | I36: 0 | J36: 0 | K36: 0 | L36: 0 | M36: 0 | N36: 0 | O36: 0 | P36: 0 | Q36: 0 | R36: 0 | S36: 1 | T36: 0 | U36: 0 | V36: 0 | W36: 0 | X36: 0 | Y36: 0 | Z36: 0 | AA36: 0 | AB36: 0 | AC36: 0 | AD36: 0 | AE36: 1
A37: Aberdeenshire Council | B37: 2009/10 | C37: 0 | D37: 0 | E37: 0 | F37: 0 | G37: 0 | H37: 0 | I37: 0 | J37: 0 | K37: 0 | L37: 0 | M37: 0 | N37: 0 | O37: 0 | P37: 0 | Q37: 0 | R37: 0 | S37: 0 | T37: 0 | U37: 0 | V37: 0 | W37: 0 | X37: 0 | Y37: 0 | Z37: 0 | AA37: 0 | AB37: 0 | AC37: 0 | AD37: 0 | AE37: 0
A38: Aberdeenshire Council | B38: 2010/11 | C38: 0 | D38: 0 | E38: 0 | F38: 0 | G38: 0 | H38: 0 | I38: 0 | J38: 0 | K38: 0 | L38: 0 | M38: 0 | N38: 0 | O38: 0 | P38: 0 | Q38: 0 | R38: 0 | S38: 0 | T38: 0 | U38: 0 | V38: 0 | W38: 0 | X38: 0 | Y38: 0 | Z38: 0 | AA38: 0 | AB38: 0 | AC38: 0 | AD38: 0 | AE38: 0
A39: Aberdeenshire Council | B39: 2011/12 | C39: 0 | D39: 0 | E39: 0 | F39: 0 | G39: 0 | H39: 0 | I39: 0 | J39: 0 | K39: 0 | L39: 0 | M39: 0 | N39: 0 | O39: 0 | P39: 0 | Q39: 0 | R39: 0 | S39: 0 | T39: 0 | U39: 0 | V39: 0 | W39: 0 | X39: 0 | Y39: 0 | Z39: 0 | AA39: 0 | AB39: 0 | AC39: 0 | AD39: 0 | AE39: 0
A40: Aberdeenshire Council | B40: 2012/13 | C40: 0 | D40: 0 | E40: 0 | F40: 0 | G40: 0 | H40: 0 | I40: 0 | J40: 0 | K40: 0 | L40: 0 | M40: 0 | N40: 0 | O40: 0 | P40: 0 | Q40: 0 | R40: 0 | S40: 0 | T40: 0 | U40: 0 | V40: 0 | W40: 0 | X40: 0 | Y40: 0 | Z40: 0 | AA40: 0 | AB40: 0 | AC40: 0 | AD40: 0 | AE40: 0
A41: Aberdeenshire Council | B41: 2013/14 | C41: 0 | D41: 0 | E41: 0 | F41: 0 | G41: 0 | H41: 0 | I41: 0 | J41: 0 | K41: 0 | L41: 0 | M41: 0 | N41: 0 | O41: 0 | P41: 0 | Q41: 0 | R41: 0 | S41: 0 | T41: 0 | U41: 0 | V41: 0 | W41: 0 | X41: 0 | Y41: 0 | Z41: 0 | AA41: 0 | AB41: 0 | AC41: 0 | AD41: 0 | AE41: 0
A42: Aberdeenshire Council | B42: 2014/15 | C42: 0 | D42: 0 | E42: 0 | F42: 0 | G42: 0 | H42: 0 | I42: 0 | J42: 0 | K42: 0 | L42: 0 | M42: 0 | N42: 0 | O42: 0 | P42: 0 | Q42: 0 | R42: 0 | S42: 0 | T42: 0 | U42: 0 | V42: 0 | W42: 0 | X42: 0 | Y42: 0 | Z42: 0 | AA42: 0 | AB42: 0 | AC42: 0 | AD42: 0 | AE42: 0
A43: Aberdeenshire Council | B43: 2015/16 | C43: 0 | D43: 0 | E43: 0 | F43: 0 | G43: 0 | H43: 0 | I43: 0 | J43: 0 | K43: 0 | L43: 0 | M43: 0 | N43: 0 | O43: 0 | P43: 0 | Q43: 0 | R43: 0 | S43: 0 | T43: 0 | U43: 0 | V43: 0 | W43: 0 | X43: 0 | Y43: 0 | Z43: 0 | AA43: 0 | AB43: 0 | AC43: 0 | AD43: 0 | AE43: 0
A44: Aberdeenshire Council | B44: 2016/17 | C44: 0 | D44: 0 | E44: 0 | F44: 0 | G44: 0 | H44: 0 | I44: 0 | J44: 0 | K44: 0 | L44: 0 | M44: 0 | N44: 0 | O44: 0 | P44: 0 | Q44: 0 | R44: 0 | S44: 0 | T44: 0 | U44: 0 | V44: 0 | W44: 0 | X44: 0 | Y44: 0 | Z44: 0 | AA44: 0 | AB44: 0 | AC44: 0 | AD44: 0 | AE44: 0
A45: Aberdeenshire Council | B45: 2017/18 | C45: 0 | D45: 0 | E45: 0 | F45: 0 | G45: 0 | H45: 0 | I45: 0 | J45: 0 | K45: 0 | L45: 0 | M45: 0 | N45: 0 | O45: 0 | P45: 0 | Q45: 0 | R45: 0 | S45: 0 | T45: 0 | U45: 0 | V45: 0 | W45: 0 | X45: 0 | Y45: 0 | Z45: 0 | AA45: 0 | AB45: 0 | AC45: 0 | AD45: 0 | AE45: 0
A46: Aberdeenshire Council | B46: 2018/19 | C46: 0 | D46: 0 | E46: 0 | F46: 0 | G46: 0 | H46: 0 | I46: 0 | J46: 0 | K46: 0 | L46: 0 | M46: 0 | N46: 0 | O46: 0 | P46: 0 | Q46: 0 | R46: 0 | S46: 0 | T46: 0 | U46: 0 | V46: 0 | W46: 0 | X46: 0 | Y46: 0 | Z46: 0 | AA46: 0 | AB46: 0 | AC46: 0 | AD46: 0 | AE46: 0
A47: Adur District Council | B47: 2009/10 | C47: 0 | D47: 0 | E47: 0 | F47: 0 | G47: 0 | H47: 0 | I47: 0 | J47: 0 | K47: 0 | L47: 0 | M47: 0 | N47: 0 | O47: 0 | P47: 0 | Q47: 0 | R47: 0 | S47: 0 | T47: 0 | U47: 0 | V47: 0 | W47: 0 | X47: 0 | Y47: 0 | Z47: 0 | AA47: 0 | AB47: 0 | AC47: 0 | AD47: 0 | AE47: 0
A48: Adur District Council | B48: 2010/11 | C48: 0 | D48: 0 | E48: 0 | F48: 0 | G48: 0 | H48: 0 | I48: 0 | J48: 0 | K48: 0 | L48: 0 | M48: 0 | N48: 0 | O48: 0 | P48: 0 | Q48: 0 | R48: 0 | S48: 0 | T48: 0 | U48: 0 | V48: 0 | W48: 0 | X48: 0 | Y48: 0 | Z48: 0 | AA48: 0 | AB48: 0 | AC48: 0 | AD48: 0 | AE48: 0
A49: Adur District Council | B49: 2011/12 | C49: 0 | D49: 0 | E49: 0 | F49: 0 | G49: 0 | H49: 0 | I49: 0 | J49: 0 | K49: 0 | L49: 0 | M49: 0 | N49: 0 | O49: 0 | P49: 0 | Q49: 0 | R49: 0 | S49: 0 | T49: 0 | U49: 0 | V49: 0 | W49: 0 | X49: 0 | Y49: 0 | Z49: 0 | AA49: 0 | AB49: 0 | AC49: 0 | AD49: 0 | AE49: 0
A50: Adur District Council | B50: 2012/13 | C50: 0 | D50: 0 | E50: 0 | F50: 0 | G50: 0 | H50: 0 | I50: 0 | J50: 0 | K50: 0 | L50: 0 | M50: 0 | N50: 0 | O50: 0 | P50: 0 | Q50: 0 | R50: 0 | S50: 0 | T50: 0 | U50: 0 | V50: 0 | W50: 0 | X50: 0 | Y50: 0 | Z50: 0 | AA50: 0 | AB50: 0 | AC50: 0 | AD50: 0 | AE50: 0
A51: Adur District Council | B51: 2013/14 | C51: 0 | D51: 0 | E51: 0 | F51: 0 | G51: 0 | H51: 0 | I51: 0 | J51: 0 | K51: 0 | L51: 0 | M51: 0 | N51: 0 | O51: 0 | P51: 0 | Q51: 0 | R51: 0 | S51: 0 | T51: 0 | U51: 0 | V51: 0 | W51: 0 | X51: 0 | Y51: 0 | Z51: 0 | AA51: 0 | AB51: 0 | AC51: 0 | AD51: 0 | AE51: 0
A52: Adur District Council | B52: 2014/15 | C52: 0 | D52: 0 | E52: 0 | F52: 0 | G52: 0 | H52: 0 | I52: 0 | J52: 0 | K52: 0 | L52: 0 | M52: 0 | N52: 0 | O52: 0 | P52: 0 | Q52: 0 | R52: 0 | S52: 0 | T52: 0 | U52: 0 | V52: 0 | W52: 0 | X52: 0 | Y52: 0 | Z52: 0 | AA52: 0 | AB52: 0 | AC52: 0 | AD52: 0 | AE52: 0
A53: Adur District Council | B53: 2015/16 | C53: 0 | D53: 0 | E53: 0 | F53: 0 | G53: 1 | H53: 0 | I53: 0 | J53: 0 | K53: 0 | L53: 0 | M53: 0 | N53: 0 | O53: 0 | P53: 0 | Q53: 0 | R53: 0 | S53: 0 | T53: 0 | U53: 0 | V53: 0 | W53: 0 | X53: 0 | Y53: 0 | Z53: 0 | AA53: 0 | AB53: 0 | AC53: 0 | AD53: 0 | AE53: 1
A54: Adur District Council | B54: 2016/17 | C54: 0 | D54: 0 | E54: 0 | F54: 0 | G54: 0 | H54: 0 | I54: 0 | J54: 0 | K54: 0 | L54: 0 | M54: 0 | N54: 0 | O54: 0 | P54: 0 | Q54: 0 | R54: 0 | S54: 0 | T54: 0 | U54: 0 | V54: 0 | W54: 0 | X54: 0 | Y54: 0 | Z54: 0 | AA54: 0 | AB54: 0 | AC54: 0 | AD54: 0 | AE54: 0
A55: Adur District Council | B55: 2017/18 | C55: 0 | D55: 0 | E55: 0 | F55: 0 | G55: 0 | H55: 0 | I55: 0 | J55: 0 | K55: 0 | L55: 0 | M55: 0 | N55: 0 | O55: 0 | P55: 0 | Q55: 0 | R55: 0 | S55: 0 | T55: 0 | U55: 0 | V55: 0 | W55: 0 | X55: 0 | Y55: 0 | Z55: 0 | AA55: 0 | AB55: 0 | AC55: 0 | AD55: 0 | AE55: 0
A56: Adur District Council | B56: 2018/19 | C56: 0 | D56: 0 | E56: 0 | F56: 0 | G56: 0 | H56: 0 | I56: 0 | J56: 0 | K56: 0 | L56: 0 | M56: 0 | N56: 0 | O56: 0 | P56: 0 | Q56: 0 | R56: 0 | S56: 0 | T56: 0 | U56: 0 | V56: 0 | W56: 0 | X56: 0 | Y56: 0 | Z56: 0 | AA56: 0 | AB56: 0 | AC56: 0 | AD56: 0 | AE56: 0
A57: Allerdale Borough Council | B57: 2009/10 | C57: 0 | D57: 0 | E57: 0 | F57: 0 | G57: 0 | H57: 0 | I57: 0 | J57: 0 | K57: 0 | L57: 0 | M57: 0 | N57: 0 | O57: 0 | P57: 0 | Q57: 0 | R57: 0 | S57: 0 | T57: 0 | U57: 0 | V57: 0 | W57: 0 | X57: 0 | Y57: 0 | Z57: 0 | AA57: 0 | AB57: 0 | AC57: 0 | AD57: 0 | AE57: 0
A58: Allerdale Borough Council | B58: 2010/11 | C58: 0 | D58: 0 | E58: 0 | F58: 0 | G58: 0 | H58: 0 | I58: 0 | J58: 0 | K58: 0 | L58: 0 | M58: 0 | N58: 0 | O58: 0 | P58: 0 | Q58: 0 | R58: 0 | S58: 0 | T58: 0 | U58: 0 | V58: 0 | W58: 0 | X58: 0 | Y58: 0 | Z58: 0 | AA58: 0 | AB58: 0 | AC58: 0 | AD58: 0 | AE58: 0
A59: Allerdale Borough Council | B59: 2011/12 | C59: 0 | D59: 0 | E59: 0 | F59: 0 | G59: 0 | H59: 0 | I59: 0 | J59: 0 | K59: 0 | L59: 0 | M59: 0 | N59: 0 | O59: 0 | P59: 0 | Q59: 0 | R59: 0 | S59: 0 | T59: 0 | U59: 0 | V59: 0 | W59: 0 | X59: 0 | Y59: 0 | Z59: 0 | AA59: 0 | AB59: 0 | AC59: 0 | AD59: 0 | AE59: 0
A60: Allerdale Borough Council | B60: 2012/13 | C60: 0 | D60: 0 | E60: 0 | F60: 0 | G60: 0 | H60: 0 | I60: 0 | J60: 0 | K60: 0 | L60: 0 | M60: 0 | N60: 0 | O60: 0 | P60: 0 | Q60: 0 | R60: 0 | S60: 0 | T60: 0 | U60: 0 | V60: 0 | W60: 0 | X60: 0 | Y60: 0 | Z60: 0 | AA60: 0 | AB60: 0 | AC60: 0 | AD60: 0 | AE60: 0
A61: Allerdale Borough Council | B61: 2013/14 | C61: 0 | D61: 0 | E61: 0 | F61: 0 | G61: 0 | H61: 0 | I61: 0 | J61: 0 | K61: 0 | L61: 0 | M61: 0 | N61: 0 | O61: 0 | P61: 0 | Q61: 0 | R61: 0 | S61: 0 | T61: 0 | U61: 0 | V61: 0 | W61: 0 | X61: 0 | Y61: 0 | Z61: 0 | AA61: 0 | AB61: 0 | AC61: 0 | AD61: 0 | AE61: 0
A62: Allerdale Borough Council | B62: 2014/15 | C62: 0 | D62: 0 | E62: 0 | F62: 0 | G62: 0 | H62: 0 | I62: 0 | J62: 0 | K62: 0 | L62: 0 | M62: 0 | N62: 0 | O62: 0 | P62: 0 | Q62: 0 | R62: 0 | S62: 0 | T62: 0 | U62: 0 | V62: 0 | W62: 0 | X62: 0 | Y62: 0 | Z62: 0 | AA62: 0 | AB62: 0 | AC62: 0 | AD62: 0 | AE62: 0
A63: Allerdale Borough Council | B63: 2015/16 | C63: 0 | D63: 0 | E63: 0 | F63: 0 | G63: 0 | H63: 0 | I63: 0 | J63: 0 | K63: 0 | L63: 0 | M63: 0 | N63: 0 | O63: 0 | P63: 0 | Q63: 0 | R63: 0 | S63: 0 | T63: 0 | U63: 0 | V63: 0 | W63: 0 | X63: 0 | Y63: 0 | Z63: 0 | AA63: 0 | AB63: 0 | AC63: 0 | AD63: 0 | AE63: 0
A64: Allerdale Borough Council | B64: 2016/17 | C64: 0 | D64: 0 | E64: 0 | F64: 0 | G64: 0 | H64: 0 | I64: 0 | J64: 0 | K64: 0 | L64: 0 | M64: 0 | N64: 0 | O64: 0 | P64: 0 | Q64: 0 | R64: 0 | S64: 0 | T64: 0 | U64: 0 | V64: 0 | W64: 0 | X64: 0 | Y64: 0 | Z64: 0 | AA64: 0 | AB64: 0 | AC64: 0 | AD64: 0 | AE64: 0
A65: Allerdale Borough Council | B65: 2017/18 | C65: 0 | D65: 0 | E65: 0 | F65: 0 | G65: 0 | H65: 0 | I65: 0 | J65: 0 | K65: 0 | L65: 0 | M65: 0 | N65: 0 | O65: 0 | P65: 0 | Q65: 0 | R65: 0 | S65: 0 | T65: 0 | U65: 0 | V65: 0 | W65: 0 | X65: 0 | Y65: 0 | Z65: 0 | AA65: 0 | AB65: 0 | AC65: 0 | AD65: 0 | AE65: 0
A66: Allerdale Borough Council | B66: 2018/19 | C66: 0 | D66: 0 | E66: 0 | F66: 0 | G66: 0 | H66: 0 | I66: 0 | J66: 0 | K66: 0 | L66: 0 | M66: 0 | N66: 0 | O66: 0 | P66: 0 | Q66: 0 | R66: 0 | S66: 0 | T66: 0 | U66: 0 | V66: 0 | W66: 23 | X66: 0 | Y66: 0 | Z66: 0 | AA66: 0 | AB66: 0 | AC66: 0 | AD66: 0 | AE66: 23
A67: Amber Valley Borough Council | B67: 2009/10 | C67: 0 | D67: 0 | E67: 0 | F67: 0 | G67: 0 | H67: 0 | I67: 0 | J67: 0 | K67: 0 | L67: 0 | M67: 0 | N67: 0 | O67: 0 | P67: 0 | Q67: 0 | R67: 0 | S67: 0 | T67: 0 | U67: 0 | V67: 0 | W67: 0 | X67: 0 | Y67: 0 | Z67: 0 | AA67: 0 | AB67: 0 | AC67: 0 | AD67: 0 | AE67: 0
A68: Amber Valley Borough Council | B68: 2010/11 | C68: 0 | D68: 0 | E68: 0 | F68: 0 | G68: 0 | H68: 0 | I68: 0 | J68: 0 | K68: 0 | L68: 0 | M68: 0 | N68: 0 | O68: 0 | P68: 0 | Q68: 0 | R68: 0 | S68: 0 | T68: 0 | U68: 0 | V68: 0 | W68: 0 | X68: 0 | Y68: 0 | Z68: 0 | AA68: 0 | AB68: 0 | AC68: 0 | AD68: 0 | AE68: 0
A69: Amber Valley Borough Council | B69: 2011/12 | C69: 0 | D69: 0 | E69: 0 | F69: 0 | G69: 0 | H69: 0 | I69: 0 | J69: 0 | K69: 0 | L69: 0 | M69: 0 | N69: 0 | O69: 0 | P69: 0 | Q69: 0 | R69: 0 | S69: 0 | T69: 0 | U69: 0 | V69: 0 | W69: 0 | X69: 0 | Y69: 0 | Z69: 0 | AA69: 0 | AB69: 0 | AC69: 0 | AD69: 0 | AE69: 0
A70: Amber Valley Borough Council | B70: 2012/13 | C70: 0 | D70: 0 | E70: 0 | F70: 0 | G70: 5 | H70: 0 | I70: 0 | J70: 0 | K70: 0 | L70: 0 | M70: 0 | N70: 0 | O70: 0 | P70: 0 | Q70: 0 | R70: 0 | S70: 0 | T70: 0 | U70: 0 | V70: 0 | W70: 0 | X70: 0 | Y70: 0 | Z70: 0 | AA70: 0 | AB70: 0 | AC70: 0 | AD70: 0 | AE70: 5
A71: Amber Valley Borough Council | B71: 2013/14 | C71: 1 | D71: 0 | E71: 0 | F71: 0 | G71: 5 | H71: 0 | I71: 0 | J71: 0 | K71: 0 | L71: 0 | M71: 0 | N71: 0 | O71: 0 | P71: 0 | Q71: 0 | R71: 0 | S71: 0 | T71: 0 | U71: 0 | V71: 0 | W71: 0 | X71: 0 | Y71: 0 | Z71: 0 | AA71: 0 | AB71: 0 | AC71: 0 | AD71: 0 | AE71: 6
A72: Amber Valley Borough Council | B72: 2014/15 | C72: 2 | D72: 0 | E72: 0 | F72: 0 | G72: 0 | H72: 0 | I72: 0 | J72: 0 | K72: 0 | L72: 0 | M72: 0 | N72: 0 | O72: 0 | P72: 0 | Q72: 0 | R72: 0 | S72: 0 | T72: 0 | U72: 0 | V72: 0 | W72: 0 | X72: 0 | Y72: 0 | Z72: 0 | AA72: 0 | AB72: 0 | AC72: 0 | AD72: 0 | AE72: 2
A73: Amber Valley Borough Council | B73: 2015/16 | C73: 1 | D73: 0 | E73: 0 | F73: 0 | G73: 4 | H73: 0 | I73: 0 | J73: 0 | K73: 0 | L73: 0 | M73: 0 | N73: 0 | O73: 0 | P73: 0 | Q73: 0 | R73: 0 | S73: 0 | T73: 0 | U73: 0 | V73: 0 | W73: 0 | X73: 0 | Y73: 0 | Z73: 0 | AA73: 0 | AB73: 0 | AC73: 0 | AD73: 0 | AE73: 5
A74: Amber Valley Borough Council | B74: 2016/17 | C74: 1 | D74: 0 | E74: 1 | F74: 0 | G74: 2 | H74: 0 | I74: 0 | J74: 0 | K74: 0 | L74: 0 | M74: 0 | N74: 0 | O74: 0 | P74: 0 | Q74: 0 | R74: 0 | S74: 0 | T74: 0 | U74: 0 | V74: 0 | W74: 0 | X74: 0 | Y74: 0 | Z74: 0 | AA74: 0 | AB74: 0 | AC74: 0 | AD74: 0 | AE74: 4
A75: Amber Valley Borough Council | B75: 2017/18 | C75: 1 | D75: 0 | E75: 0 | F75: 0 | G75: 2 | H75: 0 | I75: 0 | J75: 0 | K75: 0 | L75: 0 | M75: 0 | N75: 0 | O75: 0 | P75: 0 | Q75: 0 | R75: 0 | S75: 0 | T75: 0 | U75: 0 | V75: 0 | W75: 0 | X75: 0 | Y75: 0 | Z75: 0 | AA75: 0 | AB75: 0 | AC75: 0 | AD75: 0 | AE75: 3
A76: Amber Valley Borough Council | B76: 2018/19 | C76: 0 | D76: 0 | E76: 0 | F76: 0 | G76: 6 | H76: 0 | I76: 0 | J76: 0 | K76: 0 | L76: 0 | M76: 0 | N76: 0 | O76: 0 | P76: 0 | Q76: 0 | R76: 0 | S76: 0 | T76: 0 | U76: 0 | V76: 0 | W76: 0 | X76: 0 | Y76: 0 | Z76: 0 | AA76: 0 | AB76: 0 | AC76: 0 | AD76: 0 | AE76: 6
A77: Angus Council | B77: 2009/10 | C77: 0 | D77: 0 | E77: 0 | F77: 0 | G77: 0 | H77: 0 | I77: 0 | J77: 0 | K77: 0 | L77: 0 | M77: 0 | N77: 0 | O77: 0 | P77: 0 | Q77: 0 | R77: 0 | S77: 0 | T77: 0 | U77: 0 | V77: 0 | W77: 0 | X77: 0 | Y77: 0 | Z77: 0 | AA77: 0 | AB77: 0 | AC77: 0 | AD77: 0 | AE77: 0
A78: Angus Council | B78: 2010/11 | C78: 0 | D78: 0 | E78: 0 | F78: 0 | G78: 0 | H78: 0 | I78: 0 | J78: 0 | K78: 1 | L78: 0 | M78: 0 | N78: 0 | O78: 0 | P78: 0 | Q78: 0 | R78: 0 | S78: 0 | T78: 0 | U78: 0 | V78: 0 | W78: 5 | X78: 2 | Y78: 1 | Z78: 0 | AA78: 0 | AB78: 0 | AC78: 0 | AD78: 0 | AE78: 9
A79: Angus Council | B79: 2011/12 | C79: 0 | D79: 0 | E79: 0 | F79: 0 | G79: 2 | H79: 0 | I79: 0 | J79: 0 | K79: 0 | L79: 0 | M79: 0 | N79: 0 | O79: 0 | P79: 0 | Q79: 0 | R79: 0 | S79: 0 | T79: 0 | U79: 0 | V79: 0 | W79: 0 | X79: 0 | Y79: 0 | Z79: 0 | AA79: 0 | AB79: 0 | AC79: 0 | AD79: 0 | AE79: 2
A80: Angus Council | B80: 2012/13 | C80: 0 | D80: 0 | E80: 0 | F80: 0 | G80: 0 | H80: 0 | I80: 0 | J80: 0 | K80: 0 | L80: 0 | M80: 0 | N80: 0 | O80: 0 | P80: 0 | Q80: 0 | R80: 0 | S80: 0 | T80: 0 | U80: 0 | V80: 0 | W80: 0 | X80: 0 | Y80: 0 | Z80: 0 | AA80: 0 | AB80: 0 | AC80: 0 | AD80: 0 | AE80: 0
A81: Angus Council | B81: 2013/14 | C81: 0 | D81: 0 | E81: 0 | F81: 0 | G81: 0 | H81: 0 | I81: 0 | J81: 0 | K81: 0 | L81: 0 | M81: 0 | N81: 0 | O81: 0 | P81: 0 | Q81: 0 | R81: 0 | S81: 0 | T81: 0 | U81: 0 | V81: 0 | W81: 0 | X81: 0 | Y81: 0 | Z81: 0 | AA81: 0 | AB81: 0 | AC81: 0 | AD81: 0 | AE81: 0
A82: Angus Council | B82: 2014/15 | C82: 0 | D82: 0 | E82: 0 | F82: 0 | G82: 0 | H82: 0 | I82: 0 | J82: 0 | K82: 0 | L82: 0 | M82: 0 | N82: 0 | O82: 0 | P82: 0 | Q82: 0 | R82: 0 | S82: 0 | T82: 0 | U82: 0 | V82: 0 | W82: 0 | X82: 0 | Y82: 0 | Z82: 0 | AA82: 0 | AB82: 0 | AC82: 0 | AD82: 0 | AE82: 0
A83: Angus Council | B83: 2015/16 | C83: 0 | D83: 0 | E83: 0 | F83: 0 | G83: 0 | H83: 0 | I83: 0 | J83: 0 | K83: 0 | L83: 0 | M83: 0 | N83: 0 | O83: 0 | P83: 0 | Q83: 0 | R83: 0 | S83: 0 | T83: 0 | U83: 0 | V83: 0 | W83: 0 | X83: 0 | Y83: 0 | Z83: 0 | AA83: 0 | AB83: 0 | AC83: 0 | AD83: 0 | AE83: 0
A84: Angus Council | B84: 2016/17 | C84: 0 | D84: 0 | E84: 0 | F84: 0 | G84: 0 | H84: 0 | I84: 0 | J84: 0 | K84: 0 | L84: 0 | M84: 0 | N84: 0 | O84: 0 | P84: 0 | Q84: 0 | R84: 0 | S84: 0 | T84: 0 | U84: 0 | V84: 0 | W84: 0 | X84: 0 | Y84: 0 | Z84: 0 | AA84: 0 | AB84: 0 | AC84: 0 | AD84: 0 | AE84: 0
A85: Angus Council | B85: 2017/18 | C85: 0 | D85: 0 | E85: 0 | F85: 0 | G85: 0 | H85: 0 | I85: 0 | J85: 0 | K85: 0 | L85: 0 | M85: 0 | N85: 0 | O85: 0 | P85: 0 | Q85: 0 | R85: 0 | S85: 0 | T85: 0 | U85: 0 | V85: 0 | W85: 0 | X85: 0 | Y85: 0 | Z85: 0 | AA85: 0 | AB85: 0 | AC85: 0 | AD85: 0 | AE85: 0
A86: Angus Council | B86: 2018/19 | C86: 0 | D86: 0 | E86: 0 | F86: 0 | G86: 0 | H86: 0 | I86: 0 | J86: 0 | K86: 0 | L86: 0 | M86: 0 | N86: 0 | O86: 0 | P86: 0 | Q86: 0 | R86: 0 | S86: 0 | T86: 0 | U86: 0 | V86: 0 | W86: 0 | X86: 0 | Y86: 0 | Z86: 0 | AA86: 0 | AB86: 0 | AC86: 0 | AD86: 0 | AE86: 0
A87: Argyll & Bute Council | B87: 2009/10 | C87: 0 | D87: 0 | E87: 0 | F87: 0 | G87: 0 | H87: 0 | I87: 0 | J87: 0 | K87: 0 | L87: 0 | M87: 0 | N87: 0 | O87: 0 | P87: 0 | Q87: 0 | R87: 0 | S87: 0 | T87: 0 | U87: 0 | V87: 0 | W87: 0 | X87: 0 | Y87: 0 | Z87: 0 | AA87: 0 | AB87: 0 | AC87: 0 | AD87: 0 | AE87: 0
A88: Argyll & Bute Council | B88: 2010/11 | C88: 0 | D88: 0 | E88: 0 | F88: 0 | G88: 0 | H88: 0 | I88: 0 | J88: 0 | K88: 0 | L88: 0 | M88: 0 | N88: 0 | O88: 0 | P88: 0 | Q88: 0 | R88: 0 | S88: 0 | T88: 0 | U88: 0 | V88: 0 | W88: 0 | X88: 0 | Y88: 0 | Z88: 0 | AA88: 0 | AB88: 0 | AC88: 0 | AD88: 0 | AE88: 0
A89: Argyll & Bute Council | B89: 2011/12 | C89: 0 | D89: 0 | E89: 0 | F89: 0 | G89: 0 | H89: 0 | I89: 0 | J89: 0 | K89: 0 | L89: 0 | M89: 0 | N89: 0 | O89: 0 | P89: 0 | Q89: 0 | R89: 0 | S89: 0 | T89: 0 | U89: 0 | V89: 0 | W89: 0 | X89: 0 | Y89: 0 | Z89: 0 | AA89: 0 | AB89: 0 | AC89: 0 | AD89: 0 | AE89: 0
A90: Argyll & Bute Council | B90: 2012/13 | C90: 0 | D90: 0 | E90: 0 | F90: 0 | G90: 0 | H90: 0 | I90: 0 | J90: 0 | K90: 0 | L90: 0 | M90: 0 | N90: 0 | O90: 0 | P90: 0 | Q90: 0 | R90: 0 | S90: 0 | T90: 0 | U90: 0 | V90: 0 | W90: 0 | X90: 0 | Y90: 0 | Z90: 0 | AA90: 0 | AB90: 0 | AC90: 0 | AD90: 0 | AE90: 0
A91: Argyll & Bute Council | B91: 2013/14 | C91: 0 | D91: 0 | E91: 0 | F91: 0 | G91: 0 | H91: 0 | I91: 0 | J91: 0 | K91: 0 | L91: 0 | M91: 0 | N91: 0 | O91: 0 | P91: 0 | Q91: 0 | R91: 0 | S91: 0 | T91: 0 | U91: 0 | V91: 0 | W91: 0 | X91: 0 | Y91: 0 | Z91: 0 | AA91: 0 | AB91: 0 | AC91: 0 | AD91: 0 | AE91: 0
A92: Argyll & Bute Council | B92: 2014/15 | C92: 0 | D92: 0 | E92: 0 | F92: 0 | G92: 0 | H92: 1 | I92: 0 | J92: 0 | K92: 0 | L92: 0 | M92: 0 | N92: 0 | O92: 0 | P92: 0 | Q92: 0 | R92: 0 | S92: 0 | T92: 0 | U92: 0 | V92: 0 | W92: 0 | X92: 0 | Y92: 0 | Z92: 0 | AA92: 0 | AB92: 0 | AC92: 0 | AD92: 0 | AE92: 1
A93: Argyll & Bute Council | B93: 2015/16 | C93: 0 | D93: 0 | E93: 0 | F93: 0 | G93: 0 | H93: 0 | I93: 0 | J93: 0 | K93: 0 | L93: 0 | M93: 0 | N93: 0 | O93: 0 | P93: 0 | Q93: 0 | R93: 0 | S93: 0 | T93: 0 | U93: 0 | V93: 0 | W93: 0 | X93: 0 | Y93: 0 | Z93: 0 | AA93: 0 | AB93: 0 | AC93: 0 | AD93: 0 | AE93: 0
A94: Argyll & Bute Council | B94: 2016/17 | C94: 0 | D94: 0 | E94: 0 | F94: 0 | G94: 0 | H94: 0 | I94: 0 | J94: 0 | K94: 0 | L94: 0 | M94: 0 | N94: 0 | O94: 0 | P94: 0 | Q94: 0 | R94: 0 | S94: 0 | T94: 0 | U94: 0 | V94: 0 | W94: 0 | X94: 0 | Y94: 0 | Z94: 0 | AA94: 0 | AB94: 0 | AC94: 0 | AD94: 0 | AE94: 0
A95: Argyll & Bute Council | B95: 2017/18 | C95: 0 | D95: 0 | E95: 0 | F95: 0 | G95: 0 | H95: 0 | I95: 0 | J95: 0 | K95: 0 | L95: 0 | M95: 0 | N95: 0 | O95: 0 | P95: 0 | Q95: 0 | R95: 0 | S95: 0 | T95: 0 | U95: 0 | V95: 0 | W95: 0 | X95: 0 | Y95: 0 | Z95: 0 | AA95: 0 | AB95: 0 | AC95: 0 | AD95: 0 | AE95: 0
A96: Argyll & Bute Council | B96: 2018/19 | C96: 0 | D96: 0 | E96: 0 | F96: 0 | G96: 0 | H96: 0 | I96: 0 | J96: 0 | K96: 0 | L96: 0 | M96: 0 | N96: 0 | O96: 0 | P96: 0 | Q96: 0 | R96: 0 | S96: 0 | T96: 0 | U96: 0 | V96: 0 | W96: 0 | X96: 0 | Y96: 0 | Z96: 0 | AA96: 0 | AB96: 0 | AC96: 0 | AD96: 0 | AE96: 0
A97: Arun District Council | B97: 2009/10 | C97: 0 | D97: 0 | E97: 0 | F97: 0 | G97: 16 | H97: 0 | I97: 0 | J97: 0 | K97: 0 | L97: 0 | M97: 0 | N97: 0 | O97: 0 | P97: 0 | Q97: 0 | R97: 0 | S97: 0 | T97: 0 | U97: 0 | V97: 0 | W97: 0 | X97: 0 | Y97: 0 | Z97: 0 | AA97: 0 | AB97: 0 | AC97: 0 | AD97: 0 | AE97: 16
A98: Arun District Council | B98: 2010/11 | C98: 0 | D98: 0 | E98: 0 | F98: 0 | G98: 0 | H98: 0 | I98: 0 | J98: 0 | K98: 0 | L98: 0 | M98: 0 | N98: 0 | O98: 0 | P98: 0 | Q98: 0 | R98: 0 | S98: 0 | T98: 0 | U98: 0 | V98: 0 | W98: 0 | X98: 0 | Y98: 0 | Z98: 0 | AA98: 0 | AB98: 0 | AC98: 0 | AD98: 0 | AE98: 0
A99: Arun District Council | B99: 2011/12 | C99: 0 | D99: 0 | E99: 0 | F99: 0 | G99: 0 | H99: 0 | I99: 0 | J99: 0 | K99: 0 | L99: 0 | M99: 0 | N99: 0 | O99: 0 | P99: 0 | Q99: 0 | R99: 0 | S99: 0 | T99: 0 | U99: 0 | V99: 0 | W99: 0 | X99: 0 | Y99: 0 | Z99: 0 | AA99: 0 | AB99: 0 | AC99: 0 | AD99: 0 | AE99: 0
A100: Arun District Council | B100: 2012/13 | C100: 0 | D100: 0 | E100: 0 | F100: 0 | G100: 0 | H100: 0 | I100: 0 | J100: 0 | K100: 0 | L100: 0 | M100: 0 | N100: 0 | O100: 0 | P100: 0 | Q100: 0 | R100: 0 | S100: 0 | T100: 0 | U100: 0 | V100: 0 | W100: 0 | X100: 0 | Y100: 0 | Z100: 0 | AA100: 0 | AB100: 0 | AC100: 0 | AD100: 0 | AE100: 0
A101: Arun District Council | B101: 2013/14 | C101: 0 | D101: 0 | E101: 0 | F101: 0 | G101: 0 | H101: 0 | I101: 0 | J101: 0 | K101: 0 | L101: 0 | M101: 0 | N101: 0 | O101: 0 | P101: 0 | Q101: 0 | R101: 0 | S101: 0 | T101: 0 | U101: 0 | V101: 0 | W101: 0 | X101: 0 | Y101: 0 | Z101: 0 | AA101: 0 | AB101: 0 | AC101: 0 | AD101: 0 | AE101: 0
A102: Arun District Council | B102: 2014/15 | C102: 0 | D102: 0 | E102: 0 | F102: 0 | G102: 0 | H102: 0 | I102: 0 | J102: 0 | K102: 0 | L102: 0 | M102: 0 | N102: 0 | O102: 0 | P102: 0 | Q102: 0 | R102: 0 | S102: 0 | T102: 0 | U102: 0 | V102: 0 | W102: 0 | X102: 0 | Y102: 0 | Z102: 0 | AA102: 0 | AB102: 0 | AC102: 0 | AD102: 0 | AE102: 0
A103: Arun District Council | B103: 2015/16 | C103: 7 | D103: 0 | E103: 0 | F103: 0 | G103: 0 | H103: 0 | I103: 0 | J103: 0 | K103: 1 | L103: 0 | M103: 0 | N103: 0 | O103: 0 | P103: 0 | Q103: 0 | R103: 0 | S103: 4 | T103: 0 | U103: 0 | V103: 0 | W103: 0 | X103: 0 | Y103: 0 | Z103: 0 | AA103: 0 | AB103: 0 | AC103: 0 | AD103: 0 | AE103: 12
A104: Arun District Council | B104: 2016/17 | C104: 6 | D104: 0 | E104: 0 | F104: 0 | G104: 0 | H104: 0 | I104: 0 | J104: 0 | K104: 1 | L104: 0 | M104: 0 | N104: 0 | O104: 0 | P104: 0 | Q104: 0 | R104: 0 | S104: 8 | T104: 0 | U104: 0 | V104: 0 | W104: 0 | X104: 0 | Y104: 0 | Z104: 0 | AA104: 0 | AB104: 0 | AC104: 0 | AD104: 0 | AE104: 15
A105: Arun District Council | B105: 2017/18 | C105: 10 | D105: 0 | E105: 1 | F105: 0 | G105: 3 | H105: 0 | I105: 0 | J105: 0 | K105: 0 | L105: 0 | M105: 0 | N105: 0 | O105: 0 | P105: 0 | Q105: 0 | R105: 0 | S105: 7 | T105: 0 | U105: 0 | V105: 0 | W105: 0 | X105: 0 | Y105: 0 | Z105: 0 | AA105: 1 | AB105: 1 | AC105: 0 | AD105: 0 | AE105: 23
A106: Arun District Council | B106: 2018/19 | C106: 4 | D106: 0 | E106: 0 | F106: 0 | G106: 2 | H106: 0 | I106: 0 | J106: 0 | K106: 0 | L106: 0 | M106: 0 | N106: 0 | O106: 0 | P106: 0 | Q106: 0 | R106: 0 | S106: 4 | T106: 0 | U106: 0 | V106: 0 | W106: 3 | X106: 3 | Y106: 0 | Z106: 0 | AA106: 0 | AB106: 0 | AC106: 0 | AD106: 0 | AE106: 16
A107: Ashfield District Council | B107: 2009/10 | C107: 0 | D107: 0 | E107: 0 | F107: 0 | G107: 0 | H107: 0 | I107: 0 | J107: 0 | K107: 0 | L107: 0 | M107: 0 | N107: 0 | O107: 0 | P107: 0 | Q107: 0 | R107: 0 | S107: 0 | T107: 0 | U107: 0 | V107: 0 | W107: 0 | X107: 0 | Y107: 0 | Z107: 0 | AA107: 0 | AB107: 0 | AC107: 0 | AD107: 0 | AE107: 0
A108: Ashfield District Council | B108: 2010/11 | C108: 0 | D108: 0 | E108: 0 | F108: 0 | G108: 0 | H108: 0 | I108: 0 | J108: 0 | K108: 0 | L108: 0 | M108: 0 | N108: 0 | O108: 0 | P108: 0 | Q108: 0 | R108: 0 | S108: 0 | T108: 0 | U108: 0 | V108: 0 | W108: 0 | X108: 0 | Y108: 0 | Z108: 0 | AA108: 0 | AB108: 0 | AC108: 0 | AD108: 0 | AE108: 0
A109: Ashfield District Council | B109: 2011/12 | C109: 0 | D109: 0 | E109: 0 | F109: 0 | G109: 0 | H109: 0 | I109: 0 | J109: 0 | K109: 0 | L109: 0 | M109: 0 | N109: 0 | O109: 0 | P109: 0 | Q109: 0 | R109: 0 | S109: 0 | T109: 0 | U109: 0 | V109: 0 | W109: 0 | X109: 0 | Y109: 0 | Z109: 0 | AA109: 0 | AB109: 0 | AC109: 0 | AD109: 0 | AE109: 0
A110: Ashfield District Council | B110: 2012/13 | C110: 1 | D110: 0 | E110: 1 | F110: 0 | G110: 4 | H110: 0 | I110: 2 | J110: 0 | K110: 1 | L110: 0 | M110: 0 | N110: 0 | O110: 0 | P110: 0 | Q110: 0 | R110: 0 | S110: 0 | T110: 0 | U110: 0 | V110: 0 | W110: 0 | X110: 0 | Y110: 0 | Z110: 0 | AA110: 0 | AB110: 0 | AC110: 0 | AD110: 0 | AE110: 9
A111: Ashfield District Council | B111: 2013/14 | C111: 1 | D111: 0 | E111: 0 | F111: 0 | G111: 4 | H111: 0 | I111: 0 | J111: 0 | K111: 1 | L111: 0 | M111: 0 | N111: 0 | O111: 0 | P111: 0 | Q111: 0 | R111: 0 | S111: 0 | T111: 0 | U111: 0 | V111: 0 | W111: 0 | X111: 0 | Y111: 0 | Z111: 0 | AA111: 0 | AB111: 0 | AC111: 0 | AD111: 0 | AE111: 6
A112: Ashfield District Council | B112: 2014/15 | C112: 0 | D112: 0 | E112: 0 | F112: 0 | G112: 0 | H112: 0 | I112: 0 | J112: 0 | K112: 0 | L112: 0 | M112: 0 | N112: 0 | O112: 0 | P112: 0 | Q112: 0 | R112: 0 | S112: 0 | T112: 0 | U112: 0 | V112: 0 | W112: 0 | X112: 0 | Y112: 0 | Z112: 0 | AA112: 0 | AB112: 0 | AC112: 0 | AD112: 0 | AE112: 0
A113: Ashfield District Council | B113: 2015/16 | C113: 0 | D113: 0 | E113: 0 | F113: 0 | G113: 0 | H113: 0 | I113: 0 | J113: 0 | K113: 0 | L113: 0 | M113: 0 | N113: 0 | O113: 0 | P113: 0 | Q113: 0 | R113: 0 | S113: 0 | T113: 0 | U113: 0 | V113: 0 | W113: 0 | X113: 0 | Y113: 0 | Z113: 0 | AA113: 0 | AB113: 0 | AC113: 0 | AD113: 0 | AE113: 0
A114: Ashfield District Council | B114: 2016/17 | C114: 0 | D114: 0 | E114: 0 | F114: 0 | G114: 3 | H114: 0 | I114: 0 | J114: 0 | K114: 0 | L114: 0 | M114: 0 | N114: 0 | O114: 0 | P114: 0 | Q114: 0 | R114: 0 | S114: 0 | T114: 0 | U114: 0 | V114: 0 | W114: 0 | X114: 0 | Y114: 0 | Z114: 0 | AA114: 0 | AB114: 0 | AC114: 0 | AD114: 0 | AE114: 3
A115: Ashfield District Council | B115: 2017/18 | C115: 0 | D115: 0 | E115: 0 | F115: 0 | G115: 0 | H115: 0 | I115: 0 | J115: 0 | K115: 0 | L115: 0 | M115: 0 | N115: 0 | O115: 0 | P115: 0 | Q115: 0 | R115: 0 | S115: 0 | T115: 0 | U115: 0 | V115: 0 | W115: 0 | X115: 0 | Y115: 0 | Z115: 0 | AA115: 0 | AB115: 0 | AC115: 0 | AD115: 0 | AE115: 0
A116: Ashfield District Council | B116: 2018/19 | C116: 0 | D116: 0 | E116: 0 | F116: 0 | G116: 0 | H116: 0 | I116: 0 | J116: 0 | K116: 0 | L116: 0 | M116: 0 | N116: 0 | O116: 0 | P116: 0 | Q116: 0 | R116: 0 | S116: 0 | T116: 0 | U116: 0 | V116: 0 | W116: 0 | X116: 0 | Y116: 0 | Z116: 0 | AA116: 0 | AB116: 0 | AC116: 0 | AD116: 0 | AE116: 0
A117: Ashford Borough Council | B117: 2009/10 | C117: 0 | D117: 0 | E117: 0 | F117: 0 | G117: 2 | H117: 0 | I117: 0 | J117: 0 | K117: 0 | L117: 0 | M117: 0 | N117: 0 | O117: 0 | P117: 0 | Q117: 0 | R117: 0 | S117: 0 | T117: 0 | U117: 0 | V117: 0 | W117: 0 | X117: 0 | Y117: 0 | Z117: 0 | AA117: 0 | AB117: 0 | AC117: 0 | AD117: 0 | AE117: 2
A118: Ashford Borough Council | B118: 2010/11 | C118: 2 | D118: 0 | E118: 0 | F118: 0 | G118: 0 | H118: 0 | I118: 0 | J118: 0 | K118: 1 | L118: 0 | M118: 0 | N118: 0 | O118: 0 | P118: 0 | Q118: 0 | R118: 0 | S118: 0 | T118: 0 | U118: 0 | V118: 0 | W118: 0 | X118: 0 | Y118: 0 | Z118: 0 | AA118: 0 | AB118: 0 | AC118: 0 | AD118: 0 | AE118: 3
A119: Ashford Borough Council | B119: 2011/12 | C119: 0 | D119: 0 | E119: 0 | F119: 0 | G119: 0 | H119: 0 | I119: 0 | J119: 0 | K119: 0 | L119: 0 | M119: 0 | N119: 0 | O119: 0 | P119: 0 | Q119: 0 | R119: 0 | S119: 0 | T119: 0 | U119: 0 | V119: 0 | W119: 0 | X119: 0 | Y119: 0 | Z119: 0 | AA119: 0 | AB119: 0 | AC119: 0 | AD119: 0 | AE119: 0
A120: Ashford Borough Council | B120: 2012/13 | C120: 0 | D120: 0 | E120: 0 | F120: 0 | G120: 0 | H120: 0 | I120: 0 | J120: 0 | K120: 0 | L120: 0 | M120: 0 | N120: 0 | O120: 0 | P120: 0 | Q120: 0 | R120: 0 | S120: 0 | T120: 0 | U120: 0 | V120: 0 | W120: 0 | X120: 0 | Y120: 0 | Z120: 0 | AA120: 0 | AB120: 0 | AC120: 0 | AD120: 0 | AE120: 0
A121: Ashford Borough Council | B121: 2013/14 | C121: 0 | D121: 0 | E121: 0 | F121: 0 | G121: 0 | H121: 0 | I121: 0 | J121: 0 | K121: 0 | L121: 0 | M121: 0 | N121: 0 | O121: 0 | P121: 0 | Q121: 0 | R121: 0 | S121: 0 | T121: 0 | U121: 0 | V121: 0 | W121: 0 | X121: 0 | Y121: 0 | Z121: 0 | AA121: 0 | AB121: 0 | AC121: 0 | AD121: 0 | AE121: 0
A122: Ashford Borough Council | B122: 2014/15 | C122: 1 | D122: 0 | E122: 0 | F122: 0 | G122: 7 | H122: 0 | I122: 0 | J122: 0 | K122: 1 | L122: 0 | M122: 0 | N122: 0 | O122: 0 | P122: 0 | Q122: 0 | R122: 0 | S122: 0 | T122: 0 | U122: 0 | V122: 0 | W122: 0 | X122: 0 | Y122: 0 | Z122: 0 | AA122: 0 | AB122: 0 | AC122: 0 | AD122: 0 | AE122: 9
A123: Ashford Borough Council | B123: 2015/16 | C123: 3 | D123: 0 | E123: 0 | F123: 0 | G123: 12 | H123: 0 | I123: 0 | J123: 0 | K123: 1 | L123: 0 | M123: 0 | N123: 0 | O123: 0 | P123: 0 | Q123: 0 | R123: 0 | S123: 0 | T123: 0 | U123: 0 | V123: 0 | W123: 0 | X123: 0 | Y123: 0 | Z123: 0 | AA123: 0 | AB123: 0 | AC123: 0 | AD123: 0 | AE123: 16
A124: Ashford Borough Council | B124: 2016/17 | C124: 0 | D124: 0 | E124: 0 | F124: 0 | G124: 1 | H124: 0 | I124: 0 | J124: 0 | K124: 1 | L124: 0 | M124: 0 | N124: 0 | O124: 0 | P124: 0 | Q124: 0 | R124: 0 | S124: 0 | T124: 0 | U124: 0 | V124: 0 | W124: 0 | X124: 1 | Y124: 0 | Z124: 0 | AA124: 0 | AB124: 0 | AC124: 0 | AD124: 0 | AE124: 3
A125: Ashford Borough Council | B125: 2017/18 | C125: 0 | D125: 0 | E125: 0 | F125: 0 | G125: 3 | H125: 0 | I125: 0 | J125: 0 | K125: 0 | L125: 0 | M125: 0 | N125: 0 | O125: 0 | P125: 0 | Q125: 0 | R125: 0 | S125: 0 | T125: 0 | U125: 0 | V125: 0 | W125: 179 | X125: 0 | Y125: 0 | Z125: 0 | AA125: 0 | AB125: 0 | AC125: 0 | AD125: 0 | AE125: 182
A126: Ashford Borough Council | B126: 2018/19 | C126: 0 | D126: 0 | E126: 0 | F126: 0 | G126: 0 | H126: 0 | I126: 0 | J126: 0 | K126: 0 | L126: 0 | M126: 0 | N126: 0 | O126: 0 | P126: 0 | Q126: 0 | R126: 0 | S126: 0 | T126: 0 | U126: 0 | V126: 0 | W126: 10 | X126: 0 | Y126: 0 | Z126: 0 | AA126: 0 | AB126: 0 | AC126: 0 | AD126: 0 | AE126: 10
A127: Aylesbury Vale District Council | B127: 2009/10 | C127: 0 | D127: 0 | E127: 0 | F127: 0 | G127: 0 | H127: 0 | I127: 0 | J127: 0 | K127: 0 | L127: 0 | M127: 0 | N127: 0 | O127: 0 | P127: 0 | Q127: 0 | R127: 0 | S127: 0 | T127: 0 | U127: 0 | V127: 0 | W127: 0 | X127: 0 | Y127: 0 | Z127: 0 | AA127: 0 | AB127: 0 | AC127: 0 | AD127: 0 | AE127: 0
A128: Aylesbury Vale District Council | B128: 2010/11 | C128: 0 | D128: 0 | E128: 0 | F128: 0 | G128: 7 | H128: 0 | I128: 0 | J128: 0 | K128: 0 | L128: 0 | M128: 0 | N128: 0 | O128: 0 | P128: 0 | Q128: 0 | R128: 0 | S128: 0 | T128: 0 | U128: 0 | V128: 0 | W128: 0 | X128: 0 | Y128: 0 | Z128: 0 | AA128: 0 | AB128: 0 | AC128: 0 | AD128: 0 | AE128: 7
A129: Aylesbury Vale District Council | B129: 2011/12 | C129: 0 | D129: 0 | E129: 0 | F129: 0 | G129: 2 | H129: 0 | I129: 0 | J129: 0 | K129: 0 | L129: 0 | M129: 0 | N129: 0 | O129: 0 | P129: 0 | Q129: 0 | R129: 0 | S129: 0 | T129: 0 | U129: 0 | V129: 0 | W129: 0 | X129: 0 | Y129: 0 | Z129: 0 | AA129: 0 | AB129: 0 | AC129: 0 | AD129: 0 | AE129: 2
A130: Aylesbury Vale District Council | B130: 2012/13 | C130: 0 | D130: 0 | E130: 0 | F130: 0 | G130: 0 | H130: 0 | I130: 0 | J130: 0 | K130: 0 | L130: 0 | M130: 0 | N130: 0 | O130: 0 | P130: 0 | Q130: 0 | R130: 0 | S130: 0 | T130: 0 | U130: 0 | V130: 0 | W130: 0 | X130: 0 | Y130: 0 | Z130: 0 | AA130: 0 | AB130: 0 | AC130: 0 | AD130: 0 | AE130: 0
A131: Aylesbury Vale District Council | B131: 2013/14 | C131: 0 | D131: 0 | E131: 0 | F131: 0 | G131: 0 | H131: 0 | I131: 0 | J131: 0 | K131: 0 | L131: 0 | M131: 0 | N131: 0 | O131: 0 | P131: 0 | Q131: 0 | R131: 0 | S131: 0 | T131: 0 | U131: 0 | V131: 0 | W131: 0 | X131: 0 | Y131: 0 | Z131: 0 | AA131: 0 | AB131: 0 | AC131: 0 | AD131: 0 | AE131: 0
A132: Aylesbury Vale District Council | B132: 2014/15 | C132: 0 | D132: 0 | E132: 0 | F132: 0 | G132: 0 | H132: 0 | I132: 0 | J132: 0 | K132: 0 | L132: 0 | M132: 0 | N132: 0 | O132: 0 | P132: 0 | Q132: 0 | R132: 0 | S132: 0 | T132: 0 | U132: 0 | V132: 0 | W132: 0 | X132: 0 | Y132: 0 | Z132: 0 | AA132: 0 | AB132: 0 | AC132: 0 | AD132: 0 | AE132: 0
A133: Aylesbury Vale District Council | B133: 2015/16 | C133: 0 | D133: 0 | E133: 0 | F133: 0 | G133: 0 | H133: 0 | I133: 0 | J133: 0 | K133: 0 | L133: 0 | M133: 0 | N133: 0 | O133: 0 | P133: 0 | Q133: 0 | R133: 0 | S133: 0 | T133: 0 | U133: 0 | V133: 0 | W133: 0 | X133: 0 | Y133: 0 | Z133: 0 | AA133: 0 | AB133: 0 | AC133: 0 | AD133: 0 | AE133: 0
A134: Aylesbury Vale District Council | B134: 2016/17 | C134: 0 | D134: 0 | E134: 0 | F134: 0 | G134: 4 | H134: 0 | I134: 0 | J134: 0 | K134: 0 | L134: 0 | M134: 0 | N134: 0 | O134: 0 | P134: 0 | Q134: 0 | R134: 0 | S134: 0 | T134: 0 | U134: 0 | V134: 0 | W134: 0 | X134: 0 | Y134: 0 | Z134: 0 | AA134: 0 | AB134: 0 | AC134: 0 | AD134: 0 | AE134: 4
A135: Aylesbury Vale District Council | B135: 2017/18 | C135: 1 | D135: 0 | E135: 0 | F135: 0 | G135: 1 | H135: 0 | I135: 0 | J135: 0 | K135: 0 | L135: 0 | M135: 0 | N135: 0 | O135: 0 | P135: 0 | Q135: 0 | R135: 0 | S135: 0 | T135: 0 | U135: 0 | V135: 0 | W135: 0 | X135: 0 | Y135: 0 | Z135: 0 | AA135: 0 | AB135: 0 | AC135: 0 | AD135: 0 | AE135: 2
A136: Aylesbury Vale District Council | B136: 2018/19 | C136: 0 | D136: 0 | E136: 0 | F136: 0 | G136: 7 | H136: 0 | I136: 0 | J136: 0 | K136: 0 | L136: 0 | M136: 0 | N136: 0 | O136: 0 | P136: 0 | Q136: 0 | R136: 0 | S136: 0 | T136: 0 | U136: 0 | V136: 0 | W136: 0 | X136: 0 | Y136: 0 | Z136: 0 | AA136: 0 | AB136: 0 | AC136: 0 | AD136: 0 | AE136: 7
A137: Babergh District Council | B137: 2009/10 | C137: 0 | D137: 0 | E137: 0 | F137: 0 | G137: 0 | H137: 0 | I137: 0 | J137: 0 | K137: 0 | L137: 0 | M137: 0 | N137: 0 | O137: 0 | P137: 0 | Q137: 0 | R137: 0 | S137: 0 | T137: 0 | U137: 0 | V137: 0 | W137: 0 | X137: 0 | Y137: 0 | Z137: 0 | AA137: 0 | AB137: 0 | AC137: 0 | AD137: 0 | AE137: 0
A138: Babergh District Council | B138: 2010/11 | C138: 0 | D138: 0 | E138: 0 | F138: 0 | G138: 5 | H138: 0 | I138: 1 | J138: 0 | K138: 0 | L138: 0 | M138: 0 | N138: 0 | O138: 0 | P138: 0 | Q138: 0 | R138: 0 | S138: 0 | T138: 0 | U138: 0 | V138: 0 | W138: 0 | X138: 0 | Y138: 0 | Z138: 0 | AA138: 0 | AB138: 0 | AC138: 0 | AD138: 0 | AE138: 6
A139: Babergh District Council | B139: 2011/12 | C139: 0 | D139: 0 | E139: 0 | F139: 0 | G139: 0 | H139: 0 | I139: 0 | J139: 0 | K139: 0 | L139: 0 | M139: 0 | N139: 0 | O139: 0 | P139: 0 | Q139: 0 | R139: 0 | S139: 0 | T139: 0 | U139: 0 | V139: 0 | W139: 0 | X139: 0 | Y139: 0 | Z139: 0 | AA139: 0 | AB139: 0 | AC139: 0 | AD139: 0 | AE139: 0
A140: Babergh District Council | B140: 2012/13 | C140: 0 | D140: 0 | E140: 0 | F140: 0 | G140: 6 | H140: 0 | I140: 1 | J140: 0 | K140: 0 | L140: 0 | M140: 0 | N140: 0 | O140: 0 | P140: 0 | Q140: 0 | R140: 0 | S140: 0 | T140: 0 | U140: 0 | V140: 0 | W140: 0 | X140: 0 | Y140: 0 | Z140: 0 | AA140: 0 | AB140: 0 | AC140: 0 | AD140: 0 | AE140: 7
A141: Babergh District Council | B141: 2013/14 | C141: 0 | D141: 0 | E141: 0 | F141: 0 | G141: 6 | H141: 0 | I141: 0 | J141: 0 | K141: 0 | L141: 0 | M141: 0 | N141: 0 | O141: 0 | P141: 0 | Q141: 0 | R141: 0 | S141: 0 | T141: 0 | U141: 0 | V141: 0 | W141: 0 | X141: 0 | Y141: 0 | Z141: 0 | AA141: 0 | AB141: 0 | AC141: 0 | AD141: 0 | AE141: 6
A142: Babergh District Council | B142: 2014/15 | C142: 0 | D142: 0 | E142: 0 | F142: 0 | G142: 6 | H142: 0 | I142: 0 | J142: 0 | K142: 0 | L142: 0 | M142: 0 | N142: 0 | O142: 0 | P142: 0 | Q142: 0 | R142: 0 | S142: 0 | T142: 0 | U142: 0 | V142: 0 | W142: 1 | X142: 0 | Y142: 0 | Z142: 0 | AA142: 0 | AB142: 0 | AC142: 0 | AD142: 0 | AE142: 7
A143: Babergh District Council | B143: 2015/16 | C143: 0 | D143: 0 | E143: 0 | F143: 0 | G143: 4 | H143: 0 | I143: 0 | J143: 0 | K143: 0 | L143: 0 | M143: 0 | N143: 0 | O143: 0 | P143: 0 | Q143: 0 | R143: 0 | S143: 0 | T143: 0 | U143: 0 | V143: 0 | W143: 20 | X143: 0 | Y143: 0 | Z143: 0 | AA143: 0 | AB143: 0 | AC143: 0 | AD143: 0 | AE143: 24
A144: Babergh District Council | B144: 2016/17 | C144: 0 | D144: 0 | E144: 0 | F144: 0 | G144: 6 | H144: 0 | I144: 0 | J144: 0 | K144: 0 | L144: 0 | M144: 0 | N144: 0 | O144: 0 | P144: 0 | Q144: 0 | R144: 0 | S144: 0 | T144: 0 | U144: 0 | V144: 0 | W144: 20 | X144: 0 | Y144: 0 | Z144: 0 | AA144: 0 | AB144: 0 | AC144: 0 | AD144: 0 | AE144: 26
A145: Babergh District Council | B145: 2017/18 | C145: 0 | D145: 0 | E145: 0 | F145: 0 | G145: 6 | H145: 0 | I145: 0 | J145: 0 | K145: 0 | L145: 0 | M145: 0 | N145: 0 | O145: 0 | P145: 0 | Q145: 0 | R145: 0 | S145: 0 | T145: 0 | U145: 0 | V145: 0 | W145: 20 | X145: 0 | Y145: 0 | Z145: 0 | AA145: 0 | AB145: 0 | AC145: 0 | AD145: 0 | AE145: 26
A146: Babergh District Council | B146: 2018/19 | C146: 0 | D146: 0 | E146: 0 | F146: 0 | G146: 6 | H146: 0 | I146: 0 | J146: 0 | K146: 0 | L146: 0 | M146: 0 | N146: 0 | O146: 0 | P146: 0 | Q146: 0 | R146: 0 | S146: 0 | T146: 0 | U146: 0 | V146: 0 | W146: 20 | X146: 0 | Y146: 0 | Z146: 0 | AA146: 0 | AB146: 0 | AC146: 0 | AD146: 0 | AE146: 26
A147: Barnsley Metropolitan Borough Council | B147: 2009/10 | C147: 12 | D147: 0 | E147: 0 | F147: 0 | G147: 31 | H147: 0 | I147: 0 | J147: 0 | K147: 1 | L147: 0 | M147: 0 | N147: 0 | O147: 0 | P147: 0 | Q147: 0 | R147: 0 | S147: 1 | T147: 0 | U147: 0 | V147: 0 | W147: 173 | X147: 0 | Y147: 0 | Z147: 0 | AA147: 1 | AB147: 0 | AC147: 0 | AD147: 0 | AE147: 219
A148: Barnsley Metropolitan Borough Council | B148: 2010/11 | C148: 3 | D148: 0 | E148: 0 | F148: 0 | G148: 8 | H148: 0 | I148: 0 | J148: 0 | K148: 1 | L148: 1 | M148: 0 | N148: 0 | O148: 0 | P148: 0 | Q148: 0 | R148: 0 | S148: 1 | T148: 0 | U148: 0 | V148: 0 | W148: 98 | X148: 0 | Y148: 10 | Z148: 0 | AA148: 1 | AB148: 0 | AC148: 0 | AD148: 0 | AE148: 123
A149: Barnsley Metropolitan Borough Council | B149: 2011/12 | C149: 0 | D149: 0 | E149: 0 | F149: 0 | G149: 0 | H149: 0 | I149: 0 | J149: 0 | K149: 0 | L149: 0 | M149: 0 | N149: 0 | O149: 0 | P149: 0 | Q149: 0 | R149: 0 | S149: 0 | T149: 0 | U149: 0 | V149: 0 | W149: 0 | X149: 0 | Y149: 0 | Z149: 0 | AA149: 0 | AB149: 0 | AC149: 0 | AD149: 0 | AE149: 0
A150: Barnsley Metropolitan Borough Council | B150: 2012/13 | C150: 0 | D150: 0 | E150: 0 | F150: 0 | G150: 0 | H150: 0 | I150: 0 | J150: 0 | K150: 0 | L150: 0 | M150: 0 | N150: 0 | O150: 0 | P150: 0 | Q150: 0 | R150: 0 | S150: 0 | T150: 0 | U150: 0 | V150: 0 | W150: 0 | X150: 0 | Y150: 0 | Z150: 0 | AA150: 0 | AB150: 0 | AC150: 0 | AD150: 0 | AE150: 0
A151: Barnsley Metropolitan Borough Council | B151: 2013/14 | C151: 0 | D151: 0 | E151: 0 | F151: 0 | G151: 0 | H151: 0 | I151: 0 | J151: 0 | K151: 1 | L151: 0 | M151: 0 | N151: 0 | O151: 0 | P151: 0 | Q151: 0 | R151: 0 | S151: 0 | T151: 0 | U151: 0 | V151: 0 | W151: 0 | X151: 1 | Y151: 0 | Z151: 0 | AA151: 1 | AB151: 0 | AC151: 1 | AD151: 0 | AE151: 4
A152: Barnsley Metropolitan Borough Council | B152: 2014/15 | C152: 0 | D152: 0 | E152: 0 | F152: 0 | G152: 0 | H152: 0 | I152: 0 | J152: 0 | K152: 0 | L152: 0 | M152: 0 | N152: 0 | O152: 0 | P152: 0 | Q152: 0 | R152: 0 | S152: 0 | T152: 0 | U152: 0 | V152: 0 | W152: 0 | X152: 1 | Y152: 0 | Z152: 0 | AA152: 0 | AB152: 1 | AC152: 0 | AD152: 0 | AE152: 2
A153: Barnsley Metropolitan Borough Council | B153: 2015/16 | C153: 0 | D153: 0 | E153: 0 | F153: 0 | G153: 0 | H153: 0 | I153: 0 | J153: 0 | K153: 0 | L153: 0 | M153: 0 | N153: 0 | O153: 0 | P153: 0 | Q153: 0 | R153: 0 | S153: 0 | T153: 0 | U153: 0 | V153: 0 | W153: 0 | X153: 0 | Y153: 0 | Z153: 0 | AA153: 0 | AB153: 0 | AC153: 0 | AD153: 0 | AE153: 0
A154: Barnsley Metropolitan Borough Council | B154: 2016/17 | C154: 0 | D154: 0 | E154: 0 | F154: 0 | G154: 0 | H154: 0 | I154: 0 | J154: 0 | K154: 0 | L154: 0 | M154: 0 | N154: 0 | O154: 0 | P154: 0 | Q154: 0 | R154: 0 | S154: 0 | T154: 0 | U154: 0 | V154: 0 | W154: 0 | X154: 0 | Y154: 0 | Z154: 0 | AA154: 0 | AB154: 0 | AC154: 0 | AD154: 0 | AE154: 0
A155: Barnsley Metropolitan Borough Council | B155: 2017/18 | C155: 0 | D155: 0 | E155: 0 | F155: 0 | G155: 0 | H155: 0 | I155: 0 | J155: 0 | K155: 0 | L155: 0 | M155: 0 | N155: 0 | O155: 0 | P155: 0 | Q155: 0 | R155: 0 | S155: 0 | T155: 0 | U155: 0 | V155: 0 | W155: 0 | X155: 0 | Y155: 0 | Z155: 0 | AA155: 0 | AB155: 0 | AC155: 0 | AD155: 0 | AE155: 0
A156: Barnsley Metropolitan Borough Council | B156: 2018/19 | C156: 0 | D156: 0 | E156: 0 | F156: 0 | G156: 0 | H156: 0 | I156: 0 | J156: 0 | K156: 0 | L156: 0 | M156: 0 | N156: 0 | O156: 0 | P156: 0 | Q156: 0 | R156: 0 | S156: 0 | T156: 0 | U156: 0 | V156: 0 | W156: 0 | X156: 0 | Y156: 0 | Z156: 0 | AA156: 0 | AB156: 0 | AC156: 0 | AD156: 0 | AE156: 0
A157: Barrow in Furness Borough Council | B157: 2009/10 | C157: 0 | D157: 0 | E157: 0 | F157: 0 | G157: 1 | H157: 0 | I157: 0 | J157: 0 | K157: 0 | L157: 0 | M157: 0 | N157: 0 | O157: 0 | P157: 0 | Q157: 0 | R157: 0 | S157: 0 | T157: 0 | U157: 0 | V157: 0 | W157: 61 | X157: 0 | Y157: 0 | Z157: 0 | AA157: 0 | AB157: 0 | AC157: 0 | AD157: 0 | AE157: 62
A158: Barrow in Furness Borough Council | B158: 2010/11 | C158: 1 | D158: 0 | E158: 0 | F158: 0 | G158: 3 | H158: 0 | I158: 0 | J158: 0 | K158: 0 | L158: 0 | M158: 0 | N158: 0 | O158: 0 | P158: 0 | Q158: 0 | R158: 0 | S158: 1 | T158: 0 | U158: 0 | V158: 0 | W158: 0 | X158: 0 | Y158: 0 | Z158: 0 | AA158: 0 | AB158: 0 | AC158: 0 | AD158: 0 | AE158: 5
A159: Barrow in Furness Borough Council | B159: 2011/12 | C159: 1 | D159: 0 | E159: 0 | F159: 0 | G159: 10 | H159: 0 | I159: 0 | J159: 0 | K159: 2 | L159: 0 | M159: 0 | N159: 0 | O159: 0 | P159: 0 | Q159: 0 | R159: 0 | S159: 0 | T159: 0 | U159: 0 | V159: 0 | W159: 10 | X159: 0 | Y159: 0 | Z159: 0 | AA159: 0 | AB159: 0 | AC159: 0 | AD159: 0 | AE159: 23
A160: Barrow in Furness Borough Council | B160: 2012/13 | C160: 0 | D160: 1 | E160: 0 | F160: 0 | G160: 0 | H160: 0 | I160: 0 | J160: 0 | K160: 0 | L160: 0 | M160: 0 | N160: 0 | O160: 0 | P160: 0 | Q160: 0 | R160: 0 | S160: 0 | T160: 0 | U160: 0 | V160: 0 | W160: 0 | X160: 5 | Y160: 0 | Z160: 0 | AA160: 0 | AB160: 0 | AC160: 0 | AD160: 0 | AE160: 6
A161: Barrow in Furness Borough Council | B161: 2013/14 | C161: 0 | D161: 0 | E161: 0 | F161: 0 | G161: 0 | H161: 0 | I161: 0 | J161: 0 | K161: 0 | L161: 0 | M161: 0 | N161: 0 | O161: 0 | P161: 0 | Q161: 0 | R161: 0 | S161: 0 | T161: 0 | U161: 0 | V161: 0 | W161: 0 | X161: 3 | Y161: 0 | Z161: 0 | AA161: 0 | AB161: 0 | AC161: 0 | AD161: 0 | AE161: 3
A162: Barrow in Furness Borough Council | B162: 2014/15 | C162: 1 | D162: 0 | E162: 0 | F162: 0 | G162: 0 | H162: 0 | I162: 0 | J162: 0 | K162: 0 | L162: 0 | M162: 0 | N162: 0 | O162: 0 | P162: 0 | Q162: 0 | R162: 0 | S162: 0 | T162: 0 | U162: 0 | V162: 0 | W162: 0 | X162: 0 | Y162: 0 | Z162: 0 | AA162: 0 | AB162: 0 | AC162: 0 | AD162: 0 | AE162: 1
A163: Barrow in Furness Borough Council | B163: 2015/16 | C163: 0 | D163: 0 | E163: 0 | F163: 0 | G163: 0 | H163: 0 | I163: 0 | J163: 0 | K163: 0 | L163: 0 | M163: 0 | N163: 0 | O163: 0 | P163: 0 | Q163: 0 | R163: 0 | S163: 0 | T163: 0 | U163: 0 | V163: 0 | W163: 0 | X163: 0 | Y163: 0 | Z163: 0 | AA163: 0 | AB163: 0 | AC163: 0 | AD163: 0 | AE163: 0
A164: Barrow in Furness Borough Council | B164: 2016/17 | C164: 0 | D164: 0 | E164: 0 | F164: 0 | G164: 0 | H164: 0 | I164: 0 | J164: 0 | K164: 0 | L164: 0 | M164: 0 | N164: 0 | O164: 0 | P164: 0 | Q164: 0 | R164: 0 | S164: 0 | T164: 0 | U164: 0 | V164: 0 | W164: 0 | X164: 1 | Y164: 0 | Z164: 0 | AA164: 0 | AB164: 0 | AC164: 0 | AD164: 0 | AE164: 1
A165: Barrow in Furness Borough Council | B165: 2017/18 | C165: 0 | D165: 0 | E165: 0 | F165: 0 | G165: 0 | H165: 0 | I165: 0 | J165: 0 | K165: 0 | L165: 0 | M165: 0 | N165: 0 | O165: 0 | P165: 0 | Q165: 0 | R165: 0 | S165: 0 | T165: 0 | U165: 0 | V165: 0 | W165: 0 | X165: 0 | Y165: 0 | Z165: 0 | AA165: 0 | AB165: 0 | AC165: 0 | AD165: 0 | AE165: 0
A166: Barrow in Furness Borough Council | B166: 2018/19 | C166: 1 | D166: 0 | E166: 0 | F166: 0 | G166: 11 | H166: 0 | I166: 0 | J166: 0 | K166: 1 | L166: 0 | M166: 0 | N166: 0 | O166: 0 | P166: 0 | Q166: 0 | R166: 0 | S166: 0 | T166: 0 | U166: 0 | V166: 0 | W166: 52 | X166: 0 | Y166: 1 | Z166: 0 | AA166: 0 | AB166: 0 | AC166: 0 | AD166: 0 | AE166: 66
A167: Basildon District Council | B167: 2009/10 | C167: 0 | D167: 0 | E167: 0 | F167: 0 | G167: 0 | H167: 0 | I167: 0 | J167: 0 | K167: 0 | L167: 0 | M167: 2 | N167: 0 | O167: 0 | P167: 0 | Q167: 0 | R167: 0 | S167: 0 | T167: 0 | U167: 0 | V167: 0 | W167: 0 | X167: 0 | Y167: 0 | Z167: 0 | AA167: 0 | AB167: 0 | AC167: 0 | AD167: 0 | AE167: 2
A168: Basildon District Council | B168: 2010/11 | C168: 0 | D168: 0 | E168: 0 | F168: 0 | G168: 0 | H168: 0 | I168: 0 | J168: 0 | K168: 0 | L168: 0 | M168: 0 | N168: 0 | O168: 0 | P168: 0 | Q168: 0 | R168: 0 | S168: 0 | T168: 0 | U168: 0 | V168: 0 | W168: 0 | X168: 0 | Y168: 0 | Z168: 0 | AA168: 0 | AB168: 0 | AC168: 0 | AD168: 0 | AE168: 0
A169: Basildon District Council | B169: 2011/12 | C169: 0 | D169: 0 | E169: 0 | F169: 0 | G169: 0 | H169: 0 | I169: 0 | J169: 0 | K169: 0 | L169: 0 | M169: 0 | N169: 0 | O169: 0 | P169: 0 | Q169: 0 | R169: 0 | S169: 0 | T169: 0 | U169: 0 | V169: 0 | W169: 0 | X169: 0 | Y169: 0 | Z169: 0 | AA169: 0 | AB169: 0 | AC169: 0 | AD169: 0 | AE169: 0
A170: Basildon District Council | B170: 2012/13 | C170: 0 | D170: 0 | E170: 0 | F170: 0 | G170: 0 | H170: 0 | I170: 0 | J170: 0 | K170: 0 | L170: 0 | M170: 0 | N170: 0 | O170: 0 | P170: 0 | Q170: 0 | R170: 0 | S170: 0 | T170: 0 | U170: 0 | V170: 0 | W170: 0 | X170: 0 | Y170: 0 | Z170: 0 | AA170: 0 | AB170: 0 | AC170: 0 | AD170: 0 | AE170: 0
A171: Basildon District Council | B171: 2013/14 | C171: 0 | D171: 0 | E171: 0 | F171: 0 | G171: 0 | H171: 0 | I171: 0 | J171: 0 | K171: 0 | L171: 0 | M171: 0 | N171: 0 | O171: 0 | P171: 0 | Q171: 0 | R171: 0 | S171: 0 | T171: 0 | U171: 0 | V171: 0 | W171: 0 | X171: 0 | Y171: 0 | Z171: 0 | AA171: 0 | AB171: 0 | AC171: 0 | AD171: 0 | AE171: 0
A172: Basildon District Council | B172: 2014/15 | C172: 0 | D172: 0 | E172: 0 | F172: 0 | G172: 0 | H172: 0 | I172: 0 | J172: 0 | K172: 0 | L172: 0 | M172: 0 | N172: 0 | O172: 0 | P172: 0 | Q172: 0 | R172: 0 | S172: 0 | T172: 0 | U172: 0 | V172: 0 | W172: 0 | X172: 0 | Y172: 0 | Z172: 0 | AA172: 0 | AB172: 0 | AC172: 0 | AD172: 0 | AE172: 0
A173: Basildon District Council | B173: 2015/16 | C173: 0 | D173: 0 | E173: 0 | F173: 0 | G173: 0 | H173: 0 | I173: 0 | J173: 0 | K173: 0 | L173: 0 | M173: 0 | N173: 0 | O173: 0 | P173: 0 | Q173: 0 | R173: 0 | S173: 0 | T173: 0 | U173: 0 | V173: 0 | W173: 0 | X173: 0 | Y173: 0 | Z173: 0 | AA173: 0 | AB173: 0 | AC173: 0 | AD173: 0 | AE173: 0
A174: Basildon District Council | B174: 2016/17 | C174: 2 | D174: 0 | E174: 0 | F174: 0 | G174: 2 | H174: 0 | I174: 0 | J174: 0 | K174: 2 | L174: 0 | M174: 0 | N174: 0 | O174: 0 | P174: 0 | Q174: 0 | R174: 0 | S174: 0 | T174: 0 | U174: 0 | V174: 0 | W174: 0 | X174: 0 | Y174: 0 | Z174: 0 | AA174: 0 | AB174: 0 | AC174: 0 | AD174: 0 | AE174: 6
A175: Basildon District Council | B175: 2017/18 | C175: 0 | D175: 0 | E175: 0 | F175: 0 | G175: 2 | H175: 0 | I175: 0 | J175: 0 | K175: 0 | L175: 0 | M175: 0 | N175: 0 | O175: 0 | P175: 0 | Q175: 0 | R175: 0 | S175: 0 | T175: 0 | U175: 0 | V175: 0 | W175: 0 | X175: 0 | Y175: 0 | Z175: 0 | AA175: 0 | AB175: 0 | AC175: 0 | AD175: 0 | AE175: 2
A176: Basildon District Council | B176: 2018/19 | C176: 0 | D176: 0 | E176: 0 | F176: 0 | G176: 2 | H176: 0 | I176: 0 | J176: 0 | K176: 0 | L176: 0 | M176: 0 | N176: 0 | O176: 0 | P176: 0 | Q176: 0 | R176: 0 | S176: 0 | T176: 0 | U176: 0 | V176: 0 | W176: 0 | X176: 0 | Y176: 0 | Z176: 0 | AA176: 0 | AB176: 0 | AC176: 0 | AD176: 0 | AE176: 2
A177: Basingstoke and Deane Borough Council | B177: 2009/10 | C177: 0 | D177: 0 | E177: 0 | F177: 0 | G177: 0 | H177: 0 | I177: 0 | J177: 0 | K177: 1 | L177: 0 | M177: 1 | N177: 0 | O177: 0 | P177: 0 | Q177: 0 | R177: 0 | S177: 0 | T177: 0 | U177: 0 | V177: 0 | W177: 25 | X177: 0 | Y177: 0 | Z177: 0 | AA177: 0 | AB177: 0 | AC177: 0 | AD177: 0 | AE177: 27
A178: Basingstoke and Deane Borough Council | B178: 2010/11 | C178: 0 | D178: 0 | E178: 0 | F178: 0 | G178: 0 | H178: 0 | I178: 0 | J178: 0 | K178: 0 | L178: 0 | M178: 0 | N178: 0 | O178: 0 | P178: 0 | Q178: 0 | R178: 0 | S178: 0 | T178: 0 | U178: 0 | V178: 0 | W178: 26 | X178: 1 | Y178: 5 | Z178: 0 | AA178: 0 | AB178: 0 | AC178: 0 | AD178: 0 | AE178: 32
A179: Basingstoke and Deane Borough Council | B179: 2011/12 | C179: 0 | D179: 0 | E179: 0 | F179: 0 | G179: 0 | H179: 0 | I179: 0 | J179: 0 | K179: 1 | L179: 0 | M179: 0 | N179: 0 | O179: 0 | P179: 0 | Q179: 0 | R179: 0 | S179: 0 | T179: 0 | U179: 0 | V179: 0 | W179: 49 | X179: 0 | Y179: 2 | Z179: 0 | AA179: 0 | AB179: 0 | AC179: 0 | AD179: 0 | AE179: 52
A180: Basingstoke and Deane Borough Council | B180: 2012/13 | C180: 0 | D180: 0 | E180: 0 | F180: 0 | G180: 0 | H180: 0 | I180: 0 | J180: 0 | K180: 0 | L180: 0 | M180: 0 | N180: 0 | O180: 0 | P180: 0 | Q180: 0 | R180: 0 | S180: 0 | T180: 0 | U180: 0 | V180: 0 | W180: 0 | X180: 3 | Y180: 0 | Z180: 0 | AA180: 0 | AB180: 0 | AC180: 0 | AD180: 0 | AE180: 3
A181: Basingstoke and Deane Borough Council | B181: 2013/14 | C181: 0 | D181: 0 | E181: 0 | F181: 0 | G181: 0 | H181: 0 | I181: 0 | J181: 0 | K181: 0 | L181: 0 | M181: 0 | N181: 0 | O181: 0 | P181: 0 | Q181: 0 | R181: 0 | S181: 0 | T181: 0 | U181: 0 | V181: 0 | W181: 20 | X181: 0 | Y181: 0 | Z181: 0 | AA181: 0 | AB181: 0 | AC181: 0 | AD181: 0 | AE181: 20
A182: Basingstoke and Deane Borough Council | B182: 2014/15 | C182: 0 | D182: 0 | E182: 0 | F182: 0 | G182: 1 | H182: 1 | I182: 1 | J182: 0 | K182: 0 | L182: 0 | M182: 0 | N182: 0 | O182: 0 | P182: 0 | Q182: 0 | R182: 0 | S182: 0 | T182: 0 | U182: 0 | V182: 0 | W182: 0 | X182: 0 | Y182: 0 | Z182: 0 | AA182: 0 | AB182: 0 | AC182: 0 | AD182: 0 | AE182: 3
A183: Basingstoke and Deane Borough Council | B183: 2015/16 | C183: 0 | D183: 0 | E183: 0 | F183: 0 | G183: 2 | H183: 0 | I183: 1 | J183: 0 | K183: 0 | L183: 0 | M183: 0 | N183: 0 | O183: 0 | P183: 0 | Q183: 0 | R183: 0 | S183: 0 | T183: 0 | U183: 0 | V183: 0 | W183: 0 | X183: 0 | Y183: 0 | Z183: 0 | AA183: 0 | AB183: 0 | AC183: 0 | AD183: 0 | AE183: 3
A184: Basingstoke and Deane Borough Council | B184: 2016/17 | C184: 0 | D184: 0 | E184: 0 | F184: 0 | G184: 1 | H184: 0 | I184: 0 | J184: 0 | K184: 2 | L184: 0 | M184: 1 | N184: 0 | O184: 0 | P184: 0 | Q184: 0 | R184: 0 | S184: 0 | T184: 0 | U184: 0 | V184: 0 | W184: 16 | X184: 0 | Y184: 0 | Z184: 0 | AA184: 0 | AB184: 0 | AC184: 0 | AD184: 0 | AE184: 20
A185: Basingstoke and Deane Borough Council | B185: 2017/18 | C185: 1 | D185: 0 | E185: 0 | F185: 0 | G185: 3 | H185: 0 | I185: 0 | J185: 0 | K185: 1 | L185: 0 | M185: 0 | N185: 0 | O185: 0 | P185: 0 | Q185: 0 | R185: 0 | S185: 0 | T185: 0 | U185: 0 | V185: 0 | W185: 0 | X185: 0 | Y185: 0 | Z185: 0 | AA185: 0 | AB185: 0 | AC185: 0 | AD185: 0 | AE185: 5
A186: Basingstoke and Deane Borough Council | B186: 2018/19 | C186: 1 | D186: 0 | E186: 0 | F186: 0 | G186: 0 | H186: 0 | I186: 0 | J186: 0 | K186: 0 | L186: 0 | M186: 0 | N186: 0 | O186: 0 | P186: 0 | Q186: 0 | R186: 0 | S186: 0 | T186: 0 | U186: 0 | V186: 0 | W186: 0 | X186: 0 | Y186: 0 | Z186: 0 | AA186: 0 | AB186: 0 | AC186: 0 | AD186: 0 | AE186: 1
A187: Bassetlaw District Council | B187: 2009/10 | C187: 0 | D187: 0 | E187: 0 | F187: 0 | G187: 1 | H187: 0 | I187: 0 | J187: 0 | K187: 1 | L187: 0 | M187: 0 | N187: 0 | O187: 0 | P187: 0 | Q187: 0 | R187: 0 | S187: 7 | T187: 0 | U187: 1 | V187: 0 | W187: 0 | X187: 0 | Y187: 0 | Z187: 0 | AA187: 0 | AB187: 0 | AC187: 0 | AD187: 0 | AE187: 10
A188: Bassetlaw District Council | B188: 2010/11 | C188: 0 | D188: 0 | E188: 0 | F188: 0 | G188: 0 | H188: 0 | I188: 0 | J188: 0 | K188: 0 | L188: 0 | M188: 0 | N188: 0 | O188: 0 | P188: 0 | Q188: 0 | R188: 0 | S188: 0 | T188: 0 | U188: 0 | V188: 0 | W188: 0 | X188: 0 | Y188: 0 | Z188: 0 | AA188: 0 | AB188: 0 | AC188: 0 | AD188: 0 | AE188: 0
A189: Bassetlaw District Council | B189: 2011/12 | C189: 2 | D189: 0 | E189: 0 | F189: 0 | G189: 4 | H189: 0 | I189: 0 | J189: 0 | K189: 1 | L189: 0 | M189: 0 | N189: 0 | O189: 0 | P189: 0 | Q189: 0 | R189: 0 | S189: 2 | T189: 0 | U189: 0 | V189: 0 | W189: 0 | X189: 0 | Y189: 0 | Z189: 0 | AA189: 0 | AB189: 0 | AC189: 0 | AD189: 0 | AE189: 9
A190: Bassetlaw District Council | B190: 2012/13 | C190: 7 | D190: 0 | E190: 0 | F190: 0 | G190: 19 | H190: 0 | I190: 0 | J190: 0 | K190: 1 | L190: 0 | M190: 0 | N190: 0 | O190: 0 | P190: 0 | Q190: 0 | R190: 0 | S190: 1 | T190: 0 | U190: 0 | V190: 0 | W190: 0 | X190: 0 | Y190: 0 | Z190: 0 | AA190: 0 | AB190: 0 | AC190: 0 | AD190: 0 | AE190: 28
A191: Bassetlaw District Council | B191: 2013/14 | C191: 6 | D191: 0 | E191: 0 | F191: 0 | G191: 16 | H191: 0 | I191: 0 | J191: 0 | K191: 1 | L191: 0 | M191: 0 | N191: 0 | O191: 0 | P191: 0 | Q191: 0 | R191: 0 | S191: 2 | T191: 0 | U191: 0 | V191: 0 | W191: 0 | X191: 0 | Y191: 0 | Z191: 0 | AA191: 0 | AB191: 0 | AC191: 0 | AD191: 0 | AE191: 25
A192: Bassetlaw District Council | B192: 2014/15 | C192: 4 | D192: 0 | E192: 0 | F192: 0 | G192: 20 | H192: 0 | I192: 0 | J192: 0 | K192: 1 | L192: 0 | M192: 0 | N192: 0 | O192: 0 | P192: 0 | Q192: 0 | R192: 0 | S192: 1 | T192: 0 | U192: 0 | V192: 0 | W192: 0 | X192: 0 | Y192: 0 | Z192: 0 | AA192: 0 | AB192: 0 | AC192: 0 | AD192: 0 | AE192: 26
A193: Bassetlaw District Council | B193: 2015/16 | C193: 3 | D193: 0 | E193: 0 | F193: 0 | G193: 15 | H193: 0 | I193: 0 | J193: 0 | K193: 1 | L193: 0 | M193: 0 | N193: 0 | O193: 0 | P193: 0 | Q193: 0 | R193: 0 | S193: 1 | T193: 0 | U193: 0 | V193: 0 | W193: 0 | X193: 0 | Y193: 0 | Z193: 0 | AA193: 0 | AB193: 0 | AC193: 0 | AD193: 0 | AE193: 20
A194: Bassetlaw District Council | B194: 2016/17 | C194: 4 | D194: 0 | E194: 0 | F194: 0 | G194: 20 | H194: 0 | I194: 0 | J194: 0 | K194: 4 | L194: 0 | M194: 0 | N194: 0 | O194: 0 | P194: 0 | Q194: 0 | R194: 0 | S194: 1 | T194: 0 | U194: 0 | V194: 0 | W194: 0 | X194: 0 | Y194: 0 | Z194: 0 | AA194: 0 | AB194: 0 | AC194: 0 | AD194: 0 | AE194: 29
A195: Bassetlaw District Council | B195: 2017/18 | C195: 6 | D195: 0 | E195: 0 | F195: 0 | G195: 18 | H195: 0 | I195: 0 | J195: 0 | K195: 2 | L195: 0 | M195: 0 | N195: 0 | O195: 0 | P195: 0 | Q195: 0 | R195: 0 | S195: 1 | T195: 0 | U195: 0 | V195: 0 | W195: 0 | X195: 0 | Y195: 0 | Z195: 0 | AA195: 0 | AB195: 0 | AC195: 0 | AD195: 0 | AE195: 27
A196: Bassetlaw District Council | B196: 2018/19 | C196: 7 | D196: 0 | E196: 0 | F196: 0 | G196: 15 | H196: 0 | I196: 0 | J196: 0 | K196: 1 | L196: 0 | M196: 0 | N196: 0 | O196: 0 | P196: 0 | Q196: 0 | R196: 0 | S196: 1 | T196: 0 | U196: 0 | V196: 0 | W196: 0 | X196: 0 | Y196: 0 | Z196: 0 | AA196: 0 | AB196: 0 | AC196: 0 | AD196: 0 | AE196: 24
A197: Bath and North East Somerset Council | B197: 2009/10 | C197: 1 | D197: 0 | E197: 0 | F197: 0 | G197: 0 | H197: 0 | I197: 0 | J197: 0 | K197: 0 | L197: 0 | M197: 0 | N197: 0 | O197: 0 | P197: 0 | Q197: 0 | R197: 0 | S197: 0 | T197: 0 | U197: 0 | V197: 0 | W197: 0 | X197: 0 | Y197: 0 | Z197: 0 | AA197: 0 | AB197: 0 | AC197: 0 | AD197: 0 | AE197: 1
A198: Bath and North East Somerset Council | B198: 2010/11 | C198: 1 | D198: 0 | E198: 4 | F198: 0 | G198: 14 | H198: 0 | I198: 7 | J198: 0 | K198: 0 | L198: 0 | M198: 0 | N198: 0 | O198: 0 | P198: 0 | Q198: 0 | R198: 0 | S198: 0 | T198: 0 | U198: 0 | V198: 0 | W198: 0 | X198: 0 | Y198: 0 | Z198: 0 | AA198: 1 | AB198: 0 | AC198: 0 | AD198: 0 | AE198: 27
A199: Bath and North East Somerset Council | B199: 2011/12 | C199: 1 | D199: 0 | E199: 0 | F199: 0 | G199: 5 | H199: 0 | I199: 4 | J199: 0 | K199: 1 | L199: 0 | M199: 1 | N199: 0 | O199: 0 | P199: 0 | Q199: 0 | R199: 0 | S199: 0 | T199: 0 | U199: 0 | V199: 0 | W199: 0 | X199: 0 | Y199: 0 | Z199: 0 | AA199: 0 | AB199: 0 | AC199: 0 | AD199: 0 | AE199: 12
A200: Bath and North East Somerset Council | B200: 2012/13 | C200: 0 | D200: 0 | E200: 0 | F200: 0 | G200: 0 | H200: 0 | I200: 0 | J200: 0 | K200: 0 | L200: 0 | M200: 0 | N200: 0 | O200: 0 | P200: 0 | Q200: 0 | R200: 0 | S200: 0 | T200: 0 | U200: 0 | V200: 0 | W200: 12 | X200: 0 | Y200: 2 | Z200: 0 | AA200: 1 | AB200: 0 | AC200: 0 | AD200: 0 | AE200: 15
A201: Bath and North East Somerset Council | B201: 2013/14 | C201: 0 | D201: 0 | E201: 0 | F201: 0 | G201: 0 | H201: 0 | I201: 0 | J201: 0 | K201: 1 | L201: 0 | M201: 0 | N201: 0 | O201: 0 | P201: 0 | Q201: 0 | R201: 0 | S201: 0 | T201: 0 | U201: 0 | V201: 0 | W201: 0 | X201: 0 | Y201: 0 | Z201: 0 | AA201: 0 | AB201: 0 | AC201: 0 | AD201: 0 | AE201: 1
A202: Bath and North East Somerset Council | B202: 2014/15 | C202: 0 | D202: 0 | E202: 0 | F202: 0 | G202: 0 | H202: 0 | I202: 0 | J202: 0 | K202: 0 | L202: 0 | M202: 0 | N202: 0 | O202: 0 | P202: 0 | Q202: 0 | R202: 0 | S202: 0 | T202: 0 | U202: 0 | V202: 0 | W202: 0 | X202: 0 | Y202: 0 | Z202: 0 | AA202: 0 | AB202: 0 | AC202: 0 | AD202: 0 | AE202: 0
A203: Bath and North East Somerset Council | B203: 2015/16 | C203: 0 | D203: 0 | E203: 0 | F203: 0 | G203: 28 | H203: 0 | I203: 2 | J203: 0 | K203: 0 | L203: 0 | M203: 0 | N203: 0 | O203: 0 | P203: 0 | Q203: 0 | R203: 0 | S203: 0 | T203: 0 | U203: 0 | V203: 0 | W203: 8 | X203: 0 | Y203: 0 | Z203: 0 | AA203: 0 | AB203: 0 | AC203: 0 | AD203: 0 | AE203: 38
A204: Bath and North East Somerset Council | B204: 2016/17 | C204: 0 | D204: 0 | E204: 0 | F204: 0 | G204: 0 | H204: 0 | I204: 0 | J204: 0 | K204: 0 | L204: 0 | M204: 0 | N204: 0 | O204: 0 | P204: 0 | Q204: 0 | R204: 0 | S204: 0 | T204: 0 | U204: 0 | V204: 0 | W204: 0 | X204: 0 | Y204: 0 | Z204: 0 | AA204: 1 | AB204: 0 | AC204: 0 | AD204: 0 | AE204: 1
A205: Bath and North East Somerset Council | B205: 2017/18 | C205: 0 | D205: 0 | E205: 0 | F205: 0 | G205: 0 | H205: 0 | I205: 0 | J205: 0 | K205: 0 | L205: 0 | M205: 0 | N205: 0 | O205: 0 | P205: 0 | Q205: 0 | R205: 0 | S205: 0 | T205: 0 | U205: 0 | V205: 0 | W205: 0 | X205: 0 | Y205: 0 | Z205: 0 | AA205: 0 | AB205: 0 | AC205: 0 | AD205: 0 | AE205: 0
... 2045 more rows

Sheet 4.1 INSPECTIONS MAP
B1: Gambling Commission
B2: Local authority statistics - 01 April 2009 - 31 March 2019
A4: 4.1 Inspections and visits map - 01 April 2018 to 31 March 2019
A6: The Commission published an Advice Note (The role of authorised persons in Scotland) to assist licensing authorities in Scotland in carrying out their functions under the Act.

Sheet 5. LACE
B1: Gambling Commission
B2: Local authority statistics - 01 April 2012 - 31 March 2019
A4: 5 Local Authority Compliance Events
B6: 2012/13 | C6: 2013/14 | D6: 2014/15 | E6: 2015/16 | F6: 2016/17 | G6: 2017/18 | H6: 2018/19
A7: Arcades | B7: 6 | C7: 2 | D7: 3 | E7: 5 | F7: 21 | G7: 9 | H7: 4
A8: Betting | B8: 40 | C8: 46 | D8: 36 | E8: 36 | F8: 24 | G8: 33 | H8: 28
A9: Bingo | B9: 4 | C9: 10 | D9: 7 | E9: 8 | F9: 8 | G9: 4 | H9: 12
A10: Casino | B10: 0 | C10: 4 | D10: 1 | E10: 1 | F10: 1 | G10: 1 | H10: 0
A11: Lotteries | B11: 4 | C11: 11 | D11: 10 | E11: 7 | F11: 7 | G11: 2 | H11: 7
A12: Machines | B12: 81 | C12: 36 | D12: 52 | E12: 55 | F12: 27 | G12: 11 | H12: 13
A13: Poker | B13: 32 | C13: 29 | D13: 39 | E13: 44 | F13: 20 | G13: 13 | H13: 19
A14: Unallocated | B14: 0 | C14: 0 | D14: 0 | E14: 3 | F14: 1 | G14: 1 | H14: 2
A15: Total | B15: 167 | C15: 138 | D15: 148 | E15: 159 | F15: 109 | G15: 74 | H15: 85
B17: LACE Referrals - Period Ending 31 March
A18: Licensing Authority | B18: Year | C18: Arcades | D18: Betting | E18: Bingo | F18: Casino | G18: Lotteries | H18: Machines | I18: Poker | J18: Unallocated | K18: Total
A19: Allerdale Borough Council | B19: 2012/13 | C19: 0 | D19: 2 | E19: 0 | F19: 0 | G19: 0 | H19: 0 | I19: 0 | J19: 0 | K19: 2
A20: Barrow in Furness Borough Council | B20: 2012/13 | C20: 0 | D20: 0 | E20: 0 | F20: 0 | G20: 0 | H20: 1 | I20: 0 | J20: 0 | K20: 1
A21: Basildon District Council | B21: 2012/13 | C21: 0 | D21: 1 | E21: 0 | F21: 0 | G21: 0 | H21: 0 | I21: 0 | J21: 0 | K21: 1
A22: Bassetlaw District Council | B22: 2012/13 | C22: 1 | D22: 1 | E22: 0 | F22: 0 | G22: 0 | H22: 0 | I22: 0 | J22: 0 | K22: 2
A23: Bedford Borough Council | B23: 2012/13 | C23: 0 | D23: 0 | E23: 0 | F23: 0 | G23: 0 | H23: 0 | I23: 1 | J23: 0 | K23: 1
A24: Birmingham City Council | B24: 2012/13 | C24: 0 | D24: 0 | E24: 0 | F24: 0 | G24: 0 | H24: 6 | I24: 0 | J24: 0 | K24: 6
A25: Blaby District Council | B25: 2012/13 | C25: 0 | D25: 0 | E25: 0 | F25: 0 | G25: 0 | H25: 1 | I25: 0 | J25: 0 | K25: 1
A26: Borough of Poole | B26: 2012/13 | C26: 0 | D26: 0 | E26: 0 | F26: 0 | G26: 0 | H26: 0 | I26: 1 | J26: 0 | K26: 1
A27: Bournemouth Borough Council | B27: 2012/13 | C27: 0 | D27: 0 | E27: 0 | F27: 0 | G27: 0 | H27: 0 | I27: 1 | J27: 0 | K27: 1
A28: Braintree District Council | B28: 2012/13 | C28: 0 | D28: 0 | E28: 0 | F28: 0 | G28: 0 | H28: 1 | I28: 0 | J28: 0 | K28: 1
A29: Breckland District Council | B29: 2012/13 | C29: 0 | D29: 0 | E29: 0 | F29: 0 | G29: 0 | H29: 1 | I29: 0 | J29: 0 | K29: 1
A30: Brighton & Hove City Council | B30: 2012/13 | C30: 0 | D30: 0 | E30: 0 | F30: 0 | G30: 0 | H30: 0 | I30: 1 | J30: 0 | K30: 1
A31: Broadland District Council | B31: 2012/13 | C31: 0 | D31: 0 | E31: 0 | F31: 0 | G31: 0 | H31: 1 | I31: 0 | J31: 0 | K31: 1
A32: Broxbourne Borough Council | B32: 2012/13 | C32: 0 | D32: 0 | E32: 0 | F32: 0 | G32: 0 | H32: 1 | I32: 0 | J32: 0 | K32: 1
A33: Bury Metropolitan Borough Council | B33: 2012/13 | C33: 0 | D33: 0 | E33: 0 | F33: 0 | G33: 0 | H33: 0 | I33: 1 | J33: 0 | K33: 1
A34: Cardiff Council | B34: 2012/13 | C34: 0 | D34: 0 | E34: 0 | F34: 0 | G34: 0 | H34: 0 | I34: 2 | J34: 0 | K34: 2
A35: Ceredigion County Council | B35: 2012/13 | C35: 0 | D35: 0 | E35: 0 | F35: 0 | G35: 0 | H35: 0 | I35: 1 | J35: 0 | K35: 1
A36: Charnwood Borough Council | B36: 2012/13 | C36: 0 | D36: 1 | E36: 0 | F36: 0 | G36: 0 | H36: 0 | I36: 0 | J36: 0 | K36: 1
A37: Cheltenham Borough Council | B37: 2012/13 | C37: 0 | D37: 0 | E37: 0 | F37: 0 | G37: 0 | H37: 0 | I37: 1 | J37: 0 | K37: 1
A38: Cheshire East Council | B38: 2012/13 | C38: 0 | D38: 0 | E38: 0 | F38: 0 | G38: 0 | H38: 0 | I38: 1 | J38: 0 | K38: 1
A39: Cheshire West and Chester Council | B39: 2012/13 | C39: 0 | D39: 0 | E39: 0 | F39: 0 | G39: 0 | H39: 1 | I39: 0 | J39: 0 | K39: 1
A40: Chorley Borough Council | B40: 2012/13 | C40: 0 | D40: 1 | E40: 0 | F40: 0 | G40: 0 | H40: 0 | I40: 0 | J40: 0 | K40: 1
A41: City of Bradford Metropolitan District Council | B41: 2012/13 | C41: 0 | D41: 0 | E41: 0 | F41: 0 | G41: 0 | H41: 0 | I41: 1 | J41: 0 | K41: 1
A42: City of Wakefield Metropolitan District Council | B42: 2012/13 | C42: 0 | D42: 2 | E42: 0 | F42: 0 | G42: 0 | H42: 0 | I42: 0 | J42: 0 | K42: 2
A43: Copeland Borough Council | B43: 2012/13 | C43: 0 | D43: 1 | E43: 0 | F43: 0 | G43: 0 | H43: 0 | I43: 0 | J43: 0 | K43: 1
A44: Coventry City Council | B44: 2012/13 | C44: 0 | D44: 0 | E44: 0 | F44: 0 | G44: 0 | H44: 5 | I44: 0 | J44: 0 | K44: 5
A45: Craven District Council | B45: 2012/13 | C45: 0 | D45: 0 | E45: 0 | F45: 0 | G45: 0 | H45: 0 | I45: 1 | J45: 0 | K45: 1
A46: Derby City Council | B46: 2012/13 | C46: 0 | D46: 0 | E46: 0 | F46: 0 | G46: 1 | H46: 0 | I46: 0 | J46: 0 | K46: 1
A47: Doncaster Metropolitan Borough Council | B47: 2012/13 | C47: 0 | D47: 3 | E47: 0 | F47: 0 | G47: 0 | H47: 1 | I47: 0 | J47: 0 | K47: 4
A48: Dudley Metropolitan Borough Council | B48: 2012/13 | C48: 0 | D48: 0 | E48: 0 | F48: 0 | G48: 0 | H48: 2 | I48: 0 | J48: 0 | K48: 2
A49: Durham County Council | B49: 2012/13 | C49: 0 | D49: 2 | E49: 0 | F49: 0 | G49: 0 | H49: 1 | I49: 0 | J49: 0 | K49: 3
A50: East Lindsey District Council | B50: 2012/13 | C50: 0 | D50: 0 | E50: 0 | F50: 0 | G50: 0 | H50: 1 | I50: 0 | J50: 0 | K50: 1
A51: East Riding of Yorkshire Council | B51: 2012/13 | C51: 3 | D51: 1 | E51: 1 | F51: 0 | G51: 0 | H51: 1 | I51: 0 | J51: 0 | K51: 6
A52: Epping Forest District Council | B52: 2012/13 | C52: 0 | D52: 0 | E52: 0 | F52: 0 | G52: 0 | H52: 1 | I52: 0 | J52: 0 | K52: 1
A53: Fenland District Council | B53: 2012/13 | C53: 0 | D53: 0 | E53: 0 | F53: 0 | G53: 0 | H53: 0 | I53: 1 | J53: 0 | K53: 1
A54: Guildford Borough Council | B54: 2012/13 | C54: 0 | D54: 0 | E54: 0 | F54: 0 | G54: 0 | H54: 0 | I54: 1 | J54: 0 | K54: 1
A55: Hambleton District Council | B55: 2012/13 | C55: 0 | D55: 1 | E55: 0 | F55: 0 | G55: 0 | H55: 0 | I55: 0 | J55: 0 | K55: 1
A56: Hastings Borough Council | B56: 2012/13 | C56: 0 | D56: 0 | E56: 0 | F56: 0 | G56: 0 | H56: 1 | I56: 0 | J56: 0 | K56: 1
A57: Havant Borough Council | B57: 2012/13 | C57: 1 | D57: 0 | E57: 0 | F57: 0 | G57: 0 | H57: 0 | I57: 0 | J57: 0 | K57: 1
A58: Hertsmere Borough Council | B58: 2012/13 | C58: 0 | D58: 0 | E58: 0 | F58: 0 | G58: 0 | H58: 1 | I58: 0 | J58: 0 | K58: 1
A59: Ipswich Borough Council | B59: 2012/13 | C59: 0 | D59: 0 | E59: 0 | F59: 0 | G59: 0 | H59: 3 | I59: 0 | J59: 0 | K59: 3
A60: King's Lynn and West Norfolk Borough Council | B60: 2012/13 | C60: 0 | D60: 0 | E60: 0 | F60: 0 | G60: 0 | H60: 1 | I60: 0 | J60: 0 | K60: 1
A61: Leeds City Council | B61: 2012/13 | C61: 0 | D61: 1 | E61: 0 | F61: 0 | G61: 0 | H61: 0 | I61: 0 | J61: 0 | K61: 1
A62: Leicester City Council | B62: 2012/13 | C62: 0 | D62: 0 | E62: 0 | F62: 0 | G62: 1 | H62: 1 | I62: 1 | J62: 0 | K62: 3
A63: Lewisham London Borough Council | B63: 2012/13 | C63: 0 | D63: 0 | E63: 0 | F63: 0 | G63: 0 | H63: 1 | I63: 0 | J63: 0 | K63: 1
A64: London Borough of Barking and Dagenham Council | B64: 2012/13 | C64: 0 | D64: 0 | E64: 0 | F64: 0 | G64: 0 | H64: 1 | I64: 0 | J64: 0 | K64: 1
A65: London Borough of Barnet Council | B65: 2012/13 | C65: 0 | D65: 0 | E65: 0 | F65: 0 | G65: 0 | H65: 1 | I65: 0 | J65: 0 | K65: 1
A66: London Borough of Brent Council | B66: 2012/13 | C66: 0 | D66: 0 | E66: 0 | F66: 0 | G66: 0 | H66: 3 | I66: 0 | J66: 0 | K66: 3
A67: London Borough of Croydon Council | B67: 2012/13 | C67: 0 | D67: 0 | E67: 0 | F67: 0 | G67: 0 | H67: 2 | I67: 0 | J67: 0 | K67: 2
A68: London Borough of Ealing Council | B68: 2012/13 | C68: 0 | D68: 1 | E68: 0 | F68: 0 | G68: 0 | H68: 1 | I68: 0 | J68: 0 | K68: 2
A69: London Borough of Enfield Council | B69: 2012/13 | C69: 0 | D69: 0 | E69: 0 | F69: 0 | G69: 0 | H69: 1 | I69: 0 | J69: 0 | K69: 1
A70: London Borough of Greenwich Council | B70: 2012/13 | C70: 0 | D70: 0 | E70: 0 | F70: 0 | G70: 0 | H70: 1 | I70: 0 | J70: 0 | K70: 1
A71: London Borough of Hackney Council | B71: 2012/13 | C71: 0 | D71: 0 | E71: 0 | F71: 0 | G71: 0 | H71: 1 | I71: 0 | J71: 0 | K71: 1
A72: London Borough of Harrow Council | B72: 2012/13 | C72: 0 | D72: 0 | E72: 0 | F72: 0 | G72: 0 | H72: 1 | I72: 1 | J72: 0 | K72: 2
A73: London Borough of Hounslow Council | B73: 2012/13 | C73: 0 | D73: 0 | E73: 0 | F73: 0 | G73: 0 | H73: 2 | I73: 0 | J73: 0 | K73: 2
A74: London Borough of Lambeth Council | B74: 2012/13 | C74: 0 | D74: 0 | E74: 0 | F74: 0 | G74: 0 | H74: 2 | I74: 0 | J74: 0 | K74: 2
A75: London Borough of Merton Council | B75: 2012/13 | C75: 0 | D75: 0 | E75: 0 | F75: 0 | G75: 0 | H75: 1 | I75: 1 | J75: 0 | K75: 2
A76: London Borough of Newham Council | B76: 2012/13 | C76: 0 | D76: 0 | E76: 0 | F76: 0 | G76: 0 | H76: 1 | I76: 0 | J76: 0 | K76: 1
A77: London Borough of Wandsworth Council | B77: 2012/13 | C77: 0 | D77: 0 | E77: 0 | F77: 0 | G77: 0 | H77: 0 | I77: 3 | J77: 0 | K77: 3
A78: Manchester City Council | B78: 2012/13 | C78: 0 | D78: 0 | E78: 0 | F78: 0 | G78: 0 | H78: 1 | I78: 0 | J78: 0 | K78: 1
A79: Medway Council | B79: 2012/13 | C79: 0 | D79: 0 | E79: 0 | F79: 0 | G79: 0 | H79: 1 | I79: 0 | J79: 0 | K79: 1
A80: Melton Borough Council | B80: 2012/13 | C80: 0 | D80: 0 | E80: 1 | F80: 0 | G80: 0 | H80: 0 | I80: 0 | J80: 0 | K80: 1
A81: Mid Sussex District Council | B81: 2012/13 | C81: 0 | D81: 0 | E81: 0 | F81: 0 | G81: 0 | H81: 0 | I81: 1 | J81: 0 | K81: 1
A82: Middlesbrough Council | B82: 2012/13 | C82: 0 | D82: 2 | E82: 0 | F82: 0 | G82: 0 | H82: 0 | I82: 0 | J82: 0 | K82: 2
A83: Neath Port Talbot County Borough Council | B83: 2012/13 | C83: 0 | D83: 0 | E83: 1 | F83: 0 | G83: 0 | H83: 0 | I83: 0 | J83: 0 | K83: 1
A84: Newcastle upon Tyne City Council | B84: 2012/13 | C84: 0 | D84: 1 | E84: 0 | F84: 0 | G84: 0 | H84: 0 | I84: 0 | J84: 0 | K84: 1
A85: North Dorset District Council | B85: 2012/13 | C85: 0 | D85: 1 | E85: 0 | F85: 0 | G85: 0 | H85: 0 | I85: 0 | J85: 0 | K85: 1
A86: North Hertfordshire District Council | B86: 2012/13 | C86: 0 | D86: 1 | E86: 0 | F86: 0 | G86: 0 | H86: 0 | I86: 0 | J86: 0 | K86: 1
A87: North Lincolnshire Council | B87: 2012/13 | C87: 0 | D87: 0 | E87: 0 | F87: 0 | G87: 0 | H87: 1 | I87: 0 | J87: 0 | K87: 1
A88: North Tyneside Metropolitan Borough Council | B88: 2012/13 | C88: 0 | D88: 1 | E88: 0 | F88: 0 | G88: 0 | H88: 1 | I88: 0 | J88: 0 | K88: 2
A89: North West Leicestershire District Council | B89: 2012/13 | C89: 0 | D89: 0 | E89: 0 | F89: 0 | G89: 0 | H89: 1 | I89: 0 | J89: 0 | K89: 1
A90: Northumberland County Council | B90: 2012/13 | C90: 0 | D90: 1 | E90: 0 | F90: 0 | G90: 0 | H90: 0 | I90: 0 | J90: 0 | K90: 1
A91: Norwich City Council | B91: 2012/13 | C91: 0 | D91: 0 | E91: 0 | F91: 0 | G91: 0 | H91: 1 | I91: 0 | J91: 0 | K91: 1
A92: Nottingham City Council | B92: 2012/13 | C92: 0 | D92: 0 | E92: 0 | F92: 0 | G92: 0 | H92: 1 | I92: 0 | J92: 0 | K92: 1
A93: Pendle Borough Council | B93: 2012/13 | C93: 0 | D93: 0 | E93: 0 | F93: 0 | G93: 0 | H93: 0 | I93: 1 | J93: 0 | K93: 1
A94: Peterborough City Council | B94: 2012/13 | C94: 0 | D94: 0 | E94: 0 | F94: 0 | G94: 0 | H94: 2 | I94: 0 | J94: 0 | K94: 2
A95: Plymouth City Council | B95: 2012/13 | C95: 0 | D95: 0 | E95: 0 | F95: 0 | G95: 1 | H95: 0 | I95: 0 | J95: 0 | K95: 1
A96: Portsmouth City Council | B96: 2012/13 | C96: 0 | D96: 0 | E96: 0 | F96: 0 | G96: 0 | H96: 0 | I96: 1 | J96: 0 | K96: 1
A97: Redcar and Cleveland Borough Council | B97: 2012/13 | C97: 0 | D97: 0 | E97: 0 | F97: 0 | G97: 0 | H97: 0 | I97: 1 | J97: 0 | K97: 1
A98: Redditch Borough Council | B98: 2012/13 | C98: 0 | D98: 1 | E98: 0 | F98: 0 | G98: 0 | H98: 0 | I98: 0 | J98: 0 | K98: 1
A99: Reigate and Banstead Borough Council | B99: 2012/13 | C99: 0 | D99: 0 | E99: 0 | F99: 0 | G99: 0 | H99: 0 | I99: 1 | J99: 0 | K99: 1
A100: Rhondda Cynon Taff County Borough Council | B100: 2012/13 | C100: 0 | D100: 0 | E100: 0 | F100: 0 | G100: 0 | H100: 1 | I100: 0 | J100: 0 | K100: 1
A101: Richmondshire District Council | B101: 2012/13 | C101: 0 | D101: 1 | E101: 0 | F101: 0 | G101: 0 | H101: 0 | I101: 0 | J101: 0 | K101: 1
A102: Rugby Borough Council | B102: 2012/13 | C102: 0 | D102: 1 | E102: 0 | F102: 0 | G102: 0 | H102: 0 | I102: 0 | J102: 0 | K102: 1
A103: Rutland County Council | B103: 2012/13 | C103: 0 | D103: 1 | E103: 0 | F103: 0 | G103: 0 | H103: 0 | I103: 0 | J103: 0 | K103: 1
A104: Sandwell Metropolitan Borough Council | B104: 2012/13 | C104: 0 | D104: 0 | E104: 0 | F104: 0 | G104: 0 | H104: 2 | I104: 0 | J104: 0 | K104: 2
A105: Scarborough Borough Council | B105: 2012/13 | C105: 1 | D105: 0 | E105: 0 | F105: 0 | G105: 0 | H105: 0 | I105: 0 | J105: 0 | K105: 1
A106: Sedgemoor District Council | B106: 2012/13 | C106: 0 | D106: 0 | E106: 0 | F106: 0 | G106: 0 | H106: 1 | I106: 0 | J106: 0 | K106: 1
A107: Sevenoaks District Council | B107: 2012/13 | C107: 0 | D107: 0 | E107: 0 | F107: 0 | G107: 0 | H107: 1 | I107: 0 | J107: 0 | K107: 1
A108: Shropshire Council | B108: 2012/13 | C108: 0 | D108: 2 | E108: 0 | F108: 0 | G108: 0 | H108: 0 | I108: 0 | J108: 0 | K108: 2
A109: Slough Borough Council | B109: 2012/13 | C109: 0 | D109: 0 | E109: 0 | F109: 0 | G109: 0 | H109: 0 | I109: 1 | J109: 0 | K109: 1
A110: South Norfolk Council | B110: 2012/13 | C110: 0 | D110: 0 | E110: 0 | F110: 0 | G110: 0 | H110: 2 | I110: 0 | J110: 0 | K110: 2
A111: South Staffordshire Council | B111: 2012/13 | C111: 0 | D111: 0 | E111: 0 | F111: 0 | G111: 0 | H111: 0 | I111: 1 | J111: 0 | K111: 1
A112: Southampton City Council | B112: 2012/13 | C112: 0 | D112: 0 | E112: 0 | F112: 0 | G112: 0 | H112: 1 | I112: 0 | J112: 0 | K112: 1
A113: St Albans District Council | B113: 2012/13 | C113: 0 | D113: 0 | E113: 0 | F113: 0 | G113: 0 | H113: 1 | I113: 0 | J113: 0 | K113: 1
A114: Stockport Metropolitan Borough Council | B114: 2012/13 | C114: 0 | D114: 0 | E114: 0 | F114: 0 | G114: 0 | H114: 1 | I114: 0 | J114: 0 | K114: 1
A115: Stockton-on-Tees Borough Council | B115: 2012/13 | C115: 0 | D115: 0 | E115: 0 | F115: 0 | G115: 0 | H115: 1 | I115: 0 | J115: 0 | K115: 1
A116: Stoke on Trent City Council | B116: 2012/13 | C116: 0 | D116: 0 | E116: 0 | F116: 0 | G116: 0 | H116: 0 | I116: 1 | J116: 0 | K116: 1
A117: Stroud District Council | B117: 2012/13 | C117: 0 | D117: 0 | E117: 0 | F117: 0 | G117: 0 | H117: 0 | I117: 1 | J117: 0 | K117: 1
A118: Swansea City and Borough Council | B118: 2012/13 | C118: 0 | D118: 3 | E118: 0 | F118: 0 | G118: 0 | H118: 0 | I118: 1 | J118: 0 | K118: 4
A119: Teignbridge District Council | B119: 2012/13 | C119: 0 | D119: 0 | E119: 1 | F119: 0 | G119: 0 | H119: 0 | I119: 0 | J119: 0 | K119: 1
A120: Tendring District Council | B120: 2012/13 | C120: 0 | D120: 0 | E120: 0 | F120: 0 | G120: 1 | H120: 0 | I120: 0 | J120: 0 | K120: 1
A121: Walsall Metropolitan Borough Council | B121: 2012/13 | C121: 0 | D121: 0 | E121: 0 | F121: 0 | G121: 0 | H121: 2 | I121: 0 | J121: 0 | K121: 2
A122: Warwick District Council | B122: 2012/13 | C122: 0 | D122: 3 | E122: 0 | F122: 0 | G122: 0 | H122: 2 | I122: 0 | J122: 0 | K122: 5
A123: Watford Borough Council | B123: 2012/13 | C123: 0 | D123: 1 | E123: 0 | F123: 0 | G123: 0 | H123: 0 | I123: 0 | J123: 0 | K123: 1
A124: Wigan Metropolitan Borough Council | B124: 2012/13 | C124: 0 | D124: 0 | E124: 0 | F124: 0 | G124: 0 | H124: 0 | I124: 1 | J124: 0 | K124: 1
A125: Wirral Metropolitan Borough Council | B125: 2012/13 | C125: 0 | D125: 0 | E125: 0 | F125: 0 | G125: 0 | H125: 0 | I125: 1 | J125: 0 | K125: 1
A126: Wolverhampton City Council | B126: 2012/13 | C126: 0 | D126: 0 | E126: 0 | F126: 0 | G126: 0 | H126: 4 | I126: 0 | J126: 0 | K126: 4
A127: Worcester City Council | B127: 2012/13 | C127: 0 | D127: 0 | E127: 0 | F127: 0 | G127: 0 | H127: 1 | I127: 0 | J127: 0 | K127: 1
A128: Wrexham County Borough Council | B128: 2012/13 | C128: 0 | D128: 2 | E128: 0 | F128: 0 | G128: 0 | H128: 0 | I128: 0 | J128: 0 | K128: 2
A129: Wychavon District Council | B129: 2012/13 | C129: 0 | D129: 0 | E129: 0 | F129: 0 | G129: 0 | H129: 1 | I129: 0 | J129: 0 | K129: 1
A130: Amber Valley Borough Council | B130: 2013/14 | C130: 0 | D130: 1 | E130: 0 | F130: 0 | G130: 0 | H130: 0 | I130: 0 | J130: 0 | K130: 1
A131: Aylesbury Vale District Council | B131: 2013/14 | C131: 0 | D131: 1 | E131: 0 | F131: 0 | G131: 0 | H131: 0 | I131: 0 | J131: 0 | K131: 1
A132: Barnsley Metropolitan Borough Council | B132: 2013/14 | C132: 0 | D132: 1 | E132: 0 | F132: 0 | G132: 0 | H132: 0 | I132: 0 | J132: 0 | K132: 1
A133: Bath and North East Somerset Council | B133: 2013/14 | C133: 0 | D133: 1 | E133: 0 | F133: 0 | G133: 0 | H133: 0 | I133: 0 | J133: 0 | K133: 1
A134: Birmingham City Council | B134: 2013/14 | C134: 0 | D134: 0 | E134: 0 | F134: 0 | G134: 0 | H134: 6 | I134: 0 | J134: 0 | K134: 6
A135: Blackburn with Darwen Borough Council | B135: 2013/14 | C135: 0 | D135: 0 | E135: 0 | F135: 0 | G135: 1 | H135: 0 | I135: 1 | J135: 0 | K135: 2
A136: Blackpool Borough Council | B136: 2013/14 | C136: 0 | D136: 1 | E136: 0 | F136: 0 | G136: 0 | H136: 0 | I136: 1 | J136: 0 | K136: 2
A137: Bolsover District Council | B137: 2013/14 | C137: 0 | D137: 1 | E137: 0 | F137: 0 | G137: 0 | H137: 0 | I137: 0 | J137: 0 | K137: 1
A138: Brentwood Borough Council | B138: 2013/14 | C138: 0 | D138: 0 | E138: 0 | F138: 0 | G138: 1 | H138: 0 | I138: 0 | J138: 0 | K138: 1
A139: Brighton & Hove City Council | B139: 2013/14 | C139: 0 | D139: 0 | E139: 0 | F139: 0 | G139: 0 | H139: 0 | I139: 1 | J139: 0 | K139: 1
A140: Bristol City Council | B140: 2013/14 | C140: 0 | D140: 1 | E140: 0 | F140: 0 | G140: 0 | H140: 1 | I140: 0 | J140: 0 | K140: 2
A141: Canterbury City Council | B141: 2013/14 | C141: 0 | D141: 1 | E141: 0 | F141: 0 | G141: 0 | H141: 0 | I141: 0 | J141: 0 | K141: 1
A142: Cherwell District Council | B142: 2013/14 | C142: 0 | D142: 1 | E142: 0 | F142: 0 | G142: 0 | H142: 0 | I142: 0 | J142: 0 | K142: 1
A143: Chesterfield Borough Council | B143: 2013/14 | C143: 0 | D143: 1 | E143: 0 | F143: 0 | G143: 0 | H143: 0 | I143: 0 | J143: 0 | K143: 1
A144: Chorley Borough Council | B144: 2013/14 | C144: 0 | D144: 2 | E144: 0 | F144: 0 | G144: 0 | H144: 0 | I144: 0 | J144: 0 | K144: 2
A145: Christchurch Borough Council | B145: 2013/14 | C145: 0 | D145: 0 | E145: 1 | F145: 0 | G145: 0 | H145: 0 | I145: 0 | J145: 0 | K145: 1
A146: City of Bradford Metropolitan District Council | B146: 2013/14 | C146: 0 | D146: 1 | E146: 0 | F146: 0 | G146: 0 | H146: 0 | I146: 2 | J146: 0 | K146: 3
A147: City of Wakefield Metropolitan District Council | B147: 2013/14 | C147: 0 | D147: 1 | E147: 1 | F147: 0 | G147: 0 | H147: 1 | I147: 0 | J147: 0 | K147: 3
A148: Colchester Borough Council | B148: 2013/14 | C148: 0 | D148: 0 | E148: 0 | F148: 0 | G148: 1 | H148: 0 | I148: 0 | J148: 0 | K148: 1
A149: Copeland Borough Council | B149: 2013/14 | C149: 0 | D149: 2 | E149: 0 | F149: 0 | G149: 0 | H149: 0 | I149: 0 | J149: 0 | K149: 2
A150: Coventry City Council | B150: 2013/14 | C150: 0 | D150: 0 | E150: 0 | F150: 0 | G150: 0 | H150: 5 | I150: 0 | J150: 0 | K150: 5
A151: Dacorum Borough Council | B151: 2013/14 | C151: 0 | D151: 0 | E151: 0 | F151: 0 | G151: 0 | H151: 0 | I151: 1 | J151: 0 | K151: 1
A152: Darlington Borough Council | B152: 2013/14 | C152: 0 | D152: 2 | E152: 0 | F152: 0 | G152: 0 | H152: 0 | I152: 0 | J152: 0 | K152: 2
A153: Doncaster Metropolitan Borough Council | B153: 2013/14 | C153: 0 | D153: 0 | E153: 1 | F153: 0 | G153: 0 | H153: 0 | I153: 0 | J153: 0 | K153: 1
A154: Dover District Council | B154: 2013/14 | C154: 0 | D154: 0 | E154: 0 | F154: 0 | G154: 0 | H154: 1 | I154: 0 | J154: 0 | K154: 1
A155: Dudley Metropolitan Borough Council | B155: 2013/14 | C155: 0 | D155: 1 | E155: 0 | F155: 0 | G155: 0 | H155: 1 | I155: 0 | J155: 0 | K155: 2
A156: Durham County Council | B156: 2013/14 | C156: 0 | D156: 4 | E156: 0 | F156: 0 | G156: 0 | H156: 0 | I156: 0 | J156: 0 | K156: 4
A157: East Dorset District Council | B157: 2013/14 | C157: 0 | D157: 0 | E157: 0 | F157: 0 | G157: 0 | H157: 0 | I157: 1 | J157: 0 | K157: 1
A158: East Hertfordshire District Council | B158: 2013/14 | C158: 0 | D158: 0 | E158: 0 | F158: 0 | G158: 0 | H158: 1 | I158: 1 | J158: 0 | K158: 2
A159: East Lindsey District Council | B159: 2013/14 | C159: 0 | D159: 0 | E159: 1 | F159: 0 | G159: 0 | H159: 0 | I159: 0 | J159: 0 | K159: 1
A160: Exeter City Council | B160: 2013/14 | C160: 0 | D160: 0 | E160: 0 | F160: 0 | G160: 0 | H160: 0 | I160: 1 | J160: 0 | K160: 1
A161: Gateshead Metropolitan Borough Council | B161: 2013/14 | C161: 0 | D161: 0 | E161: 1 | F161: 0 | G161: 0 | H161: 0 | I161: 0 | J161: 0 | K161: 1
A162: Great Yarmouth Borough Council | B162: 2013/14 | C162: 0 | D162: 0 | E162: 1 | F162: 0 | G162: 0 | H162: 1 | I162: 0 | J162: 0 | K162: 2
A163: Harborough District Council | B163: 2013/14 | C163: 0 | D163: 0 | E163: 0 | F163: 1 | G163: 0 | H163: 0 | I163: 0 | J163: 0 | K163: 1
A164: Harlow District Council | B164: 2013/14 | C164: 0 | D164: 0 | E164: 0 | F164: 0 | G164: 1 | H164: 0 | I164: 0 | J164: 0 | K164: 1
A165: Harrogate Borough Council | B165: 2013/14 | C165: 0 | D165: 0 | E165: 1 | F165: 0 | G165: 0 | H165: 0 | I165: 0 | J165: 0 | K165: 1
A166: Herefordshire County Council | B166: 2013/14 | C166: 0 | D166: 1 | E166: 0 | F166: 0 | G166: 0 | H166: 0 | I166: 0 | J166: 0 | K166: 1
A167: Hull City Council | B167: 2013/14 | C167: 0 | D167: 0 | E167: 0 | F167: 0 | G167: 1 | H167: 0 | I167: 0 | J167: 0 | K167: 1
A168: Hyndburn Borough Council | B168: 2013/14 | C168: 0 | D168: 0 | E168: 0 | F168: 0 | G168: 0 | H168: 0 | I168: 1 | J168: 0 | K168: 1
A169: Knowsley Metropolitan Borough Council | B169: 2013/14 | C169: 0 | D169: 1 | E169: 0 | F169: 0 | G169: 0 | H169: 0 | I169: 0 | J169: 0 | K169: 1
A170: Lancaster City Council | B170: 2013/14 | C170: 0 | D170: 1 | E170: 0 | F170: 0 | G170: 1 | H170: 0 | I170: 0 | J170: 0 | K170: 2
A171: Leeds City Council | B171: 2013/14 | C171: 0 | D171: 0 | E171: 0 | F171: 0 | G171: 0 | H171: 0 | I171: 1 | J171: 0 | K171: 1
A172: Leicester City Council | B172: 2013/14 | C172: 0 | D172: 0 | E172: 0 | F172: 0 | G172: 0 | H172: 1 | I172: 0 | J172: 0 | K172: 1
A173: Liverpool City Council | B173: 2013/14 | C173: 0 | D173: 1 | E173: 0 | F173: 0 | G173: 0 | H173: 0 | I173: 0 | J173: 0 | K173: 1
A174: London Borough of Barnet Council | B174: 2013/14 | C174: 0 | D174: 0 | E174: 0 | F174: 0 | G174: 0 | H174: 1 | I174: 0 | J174: 0 | K174: 1
A175: London Borough of Brent Council | B175: 2013/14 | C175: 0 | D175: 0 | E175: 0 | F175: 0 | G175: 1 | H175: 0 | I175: 1 | J175: 0 | K175: 2
A176: London Borough of Enfield Council | B176: 2013/14 | C176: 0 | D176: 1 | E176: 0 | F176: 0 | G176: 0 | H176: 0 | I176: 0 | J176: 0 | K176: 1
A177: London Borough of Greenwich Council | B177: 2013/14 | C177: 0 | D177: 0 | E177: 0 | F177: 0 | G177: 0 | H177: 0 | I177: 2 | J177: 0 | K177: 2
A178: London Borough of Haringey Council | B178: 2013/14 | C178: 0 | D178: 0 | E178: 0 | F178: 0 | G178: 0 | H178: 0 | I178: 1 | J178: 0 | K178: 1
A179: London Borough of Harrow Council | B179: 2013/14 | C179: 0 | D179: 0 | E179: 0 | F179: 0 | G179: 0 | H179: 2 | I179: 0 | J179: 0 | K179: 2
A180: London Borough of Hillingdon Council | B180: 2013/14 | C180: 0 | D180: 1 | E180: 0 | F180: 0 | G180: 0 | H180: 0 | I180: 0 | J180: 0 | K180: 1
A181: London Borough of Islington Council | B181: 2013/14 | C181: 0 | D181: 0 | E181: 0 | F181: 0 | G181: 0 | H181: 3 | I181: 0 | J181: 0 | K181: 3
A182: London Borough of Merton Council | B182: 2013/14 | C182: 0 | D182: 0 | E182: 0 | F182: 0 | G182: 0 | H182: 0 | I182: 1 | J182: 0 | K182: 1
A183: London Borough of Waltham Forest Council | B183: 2013/14 | C183: 0 | D183: 0 | E183: 0 | F183: 0 | G183: 0 | H183: 1 | I183: 0 | J183: 0 | K183: 1
A184: Merthyr Tydfil County Borough Council | B184: 2013/14 | C184: 0 | D184: 1 | E184: 0 | F184: 0 | G184: 0 | H184: 0 | I184: 0 | J184: 0 | K184: 1
A185: Mid Devon LA | B185: 2013/14 | C185: 0 | D185: 0 | E185: 0 | F185: 0 | G185: 1 | H185: 0 | I185: 0 | J185: 0 | K185: 1
A186: Milton Keynes Council | B186: 2013/14 | C186: 0 | D186: 1 | E186: 0 | F186: 0 | G186: 0 | H186: 0 | I186: 0 | J186: 0 | K186: 1
A187: North East Lincolnshire Council | B187: 2013/14 | C187: 0 | D187: 1 | E187: 0 | F187: 0 | G187: 0 | H187: 0 | I187: 0 | J187: 0 | K187: 1
A188: North Kesteven District Council | B188: 2013/14 | C188: 0 | D188: 0 | E188: 1 | F188: 0 | G188: 0 | H188: 0 | I188: 0 | J188: 0 | K188: 1
A189: Norwich City Council | B189: 2013/14 | C189: 0 | D189: 0 | E189: 0 | F189: 0 | G189: 0 | H189: 1 | I189: 0 | J189: 0 | K189: 1
A190: Pendle Borough Council | B190: 2013/14 | C190: 0 | D190: 0 | E190: 0 | F190: 0 | G190: 0 | H190: 0 | I190: 2 | J190: 0 | K190: 2
A191: Portsmouth City Council | B191: 2013/14 | C191: 0 | D191: 0 | E191: 0 | F191: 0 | G191: 0 | H191: 0 | I191: 1 | J191: 0 | K191: 1
A192: Powys County Council | B192: 2013/14 | C192: 0 | D192: 1 | E192: 0 | F192: 0 | G192: 0 | H192: 0 | I192: 0 | J192: 0 | K192: 1
A193: Preston City Council | B193: 2013/14 | C193: 0 | D193: 0 | E193: 0 | F193: 0 | G193: 0 | H193: 0 | I193: 4 | J193: 0 | K193: 4
A194: Reading Borough Council | B194: 2013/14 | C194: 0 | D194: 0 | E194: 0 | F194: 1 | G194: 0 | H194: 1 | I194: 0 | J194: 0 | K194: 2
A195: Redcar and Cleveland Borough Council | B195: 2013/14 | C195: 0 | D195: 0 | E195: 0 | F195: 0 | G195: 0 | H195: 1 | I195: 0 | J195: 0 | K195: 1
A196: Rhondda Cynon Taff County Borough Council | B196: 2013/14 | C196: 0 | D196: 3 | E196: 0 | F196: 0 | G196: 0 | H196: 0 | I196: 0 | J196: 0 | K196: 3
A197: Rossendale Borough Council | B197: 2013/14 | C197: 0 | D197: 1 | E197: 0 | F197: 0 | G197: 0 | H197: 0 | I197: 0 | J197: 0 | K197: 1
A198: Rotherham Metropolitan Borough Council | B198: 2013/14 | C198: 0 | D198: 0 | E198: 0 | F198: 0 | G198: 0 | H198: 1 | I198: 0 | J198: 0 | K198: 1
A199: Royal Borough of Kingston upon Thames Council | B199: 2013/14 | C199: 0 | D199: 0 | E199: 0 | F199: 0 | G199: 0 | H199: 0 | I199: 1 | J199: 0 | K199: 1
A200: Rugby Borough Council | B200: 2013/14 | C200: 0 | D200: 1 | E200: 0 | F200: 0 | G200: 0 | H200: 0 | I200: 0 | J200: 0 | K200: 1
A201: Sandwell Metropolitan Borough Council | B201: 2013/14 | C201: 0 | D201: 0 | E201: 0 | F201: 0 | G201: 0 | H201: 1 | I201: 0 | J201: 0 | K201: 1
A202: Sheffield City Council | B202: 2013/14 | C202: 0 | D202: 1 | E202: 0 | F202: 0 | G202: 0 | H202: 0 | I202: 0 | J202: 0 | K202: 1
A203: Shropshire Council | B203: 2013/14 | C203: 0 | D203: 1 | E203: 0 | F203: 0 | G203: 0 | H203: 0 | I203: 0 | J203: 0 | K203: 1
... 432 more rows

Sheet 6. APPENDICES
B1: Gambling Commission
B2: Local authority statistics - 01 April 2009 - 31 March 2019
A4: 6 Appendices
A6: Appendix A: Terminology
A39: Appendix B: Data collection methodology
